Workbook

Sheet Anexo Cuantitativo
C4: ANEXO 3 AVANCE CUANTITATIVO
C5: NOMBRE DE LA SECRETARIA: | G5: OPD
C6: NOMBRE DE LA DIRECCIÓN O JEFATURA: | G6: IMMUJERES
C7: TRIMESTRE REPORTADO: | G7: Del 1 de Octubre al 31 de Diciembre del 2024 | I7: Fecha de Elaboración: | J7: =TODAY() -> 2025-01-07
C8: Registro de avances de PbR 2025
D11: NOMBRE DE LA PROPUESTA | E11: DIMENSIÓN A MEDIR (Eficiencia/Eficacia/ Economía/Calidad) | F11: Nombre Indicador (Indicador Operativo) | G11: UNIDAD DE MEDIDA | H11: LÍNEA BASE | I11: META ANUAL (ABSOLUTA) | J11: AVANCE 1 | K11: AVANCE 2 | L11: AVANCE 3 | M11: AVANCE 4 | N11: AVANCE ACUMULADO EN PORCENTAJE
J12: Primer Trimestre (octubre-diciembre 2024) | K12: Segundo Trimestre (enero-marzo 2025) | L12: Tercer Trimestre (abril-junio 2025) | M12: Cuarto Trimestre (julio-septiembre 2025)
C13: 1 | D13: =IFERROR(VLOOKUP($G$5&$G$6&C13,'Pbr''s'!B:J,5,0)," ") -> Enfoque Transversal con Perspectiva de Género | E13: Eficacia | F13: =IFERROR(VLOOKUP($G$5&$G$6&C13&D13,'Pbr''s'!A:M,7,0)," ") -> Porcentaje de acciones con perspectiva de genero reportadas | G13: =IFERROR(VLOOKUP($G$5&$G$6&C13&D13,'Pbr''s'!A:N,8,0)," ") -> Numero de Acciones | H13: =IFERROR(VLOOKUP($G$5&$G$6&C13&D13,'Pbr''s'!A:O,9,0)," ") -> 52 | I13: =IFERROR(VLOOKUP($G$5&$G$6&C13&D13,'Pbr''s'!A:P,10,0)," ") -> 52 | J13: 5 | N13: =IFERROR(SUM(J13:M13)/I13," ") -> 0.09615384615
C14: =C13+1 -> 2 | D14: =IFERROR(VLOOKUP($G$5&$G$6&C14,'Pbr''s'!B:J,5,0)," ") -> Enfoque Transversal con Perspectiva de Género | E14: Eficacia | F14: =IFERROR(VLOOKUP($G$5&$G$6&C14&D14,'Pbr''s'!A:M,7,0)," ") -> Instrumentos normativos y programáticos Observados para incorporar la perspectiva de Genero | G14: =IFERROR(VLOOKUP($G$5&$G$6&C14&D14,'Pbr''s'!A:N,8,0)," ") -> Numero de instrumentos | H14: =IFERROR(VLOOKUP($G$5&$G$6&C14&D14,'Pbr''s'!A:O,9,0)," ") -> 3 | I14: =IFERROR(VLOOKUP($G$5&$G$6&C14&D14,'Pbr''s'!A:P,10,0)," ") -> 4 | J14: 1 | N14: =IFERROR(SUM(J14:M14)/I14," ") -> 0.25
C15: =C14+1 -> 3 | D15: =IFERROR(VLOOKUP($G$5&$G$6&C15,'Pbr''s'!B:J,5,0)," ") -> Enfoque Transversal con Perspectiva de Género | E15: Eficacia | F15: =IFERROR(VLOOKUP($G$5&$G$6&C15&D15,'Pbr''s'!A:M,7,0)," ") -> Porcentaje formatos prestablecidos y utilizados en planeación de la APM con perspectiva de Genero y lenguaje incluyente | G15: =IFERROR(VLOOKUP($G$5&$G$6&C15&D15,'Pbr''s'!A:N,8,0)," ") -> Numero de Formatos (Anexos PBR) | H15: =IFERROR(VLOOKUP($G$5&$G$6&C15&D15,'Pbr''s'!A:O,9,0)," ") -> 80 | I15: =IFERROR(VLOOKUP($G$5&$G$6&C15&D15,'Pbr''s'!A:P,10,0)," ") -> 80 | J15: 5 | N15: 0.0625
C16: 4 | D16: =IFERROR(VLOOKUP($G$5&$G$6&C16,'Pbr''s'!B:J,5,0)," ") -> Enfoque Transversal con Perspectiva de Género | E16: Eficacia | F16: =IFERROR(VLOOKUP($G$5&$G$6&C16&D16,'Pbr''s'!A:M,7,0)," ") -> Porcentaje mujeres beneficiadas por incorporación de perspectiva de genero a los anexos de planeación | G16: =IFERROR(VLOOKUP($G$5&$G$6&C16&D16,'Pbr''s'!A:N,8,0)," ") -> Personas Beneficiadas | H16: =IFERROR(VLOOKUP($G$5&$G$6&C16&D16,'Pbr''s'!A:O,9,0)," ") -> 30000 | I16: =IFERROR(VLOOKUP($G$5&$G$6&C16&D16,'Pbr''s'!A:P,10,0)," ") -> 30100 | J16: 203 | N16: 0.006744186047
C17: 5 | D17: =IFERROR(VLOOKUP($G$5&$G$6&C17,'Pbr''s'!B:J,5,0)," ") -> Libres por la igualdad | E17: Eficacia | F17: =IFERROR(VLOOKUP($G$5&$G$6&C17&D17,'Pbr''s'!A:M,7,0)," ") -> Porcentaje acciones de promoción de la igualdad Sustantiva | G17: =IFERROR(VLOOKUP($G$5&$G$6&C17&D17,'Pbr''s'!A:N,8,0)," ") -> Numero de Acciones | H17: =IFERROR(VLOOKUP($G$5&$G$6&C17&D17,'Pbr''s'!A:O,9,0)," ") -> 21 | I17: =IFERROR(VLOOKUP($G$5&$G$6&C17&D17,'Pbr''s'!A:P,10,0)," ") -> 25 | J17: 5 | N17: 0.2
C18: 6 | D18: =IFERROR(VLOOKUP($G$5&$G$6&C18,'Pbr''s'!B:J,5,0)," ") -> Libres por la igualdad | E18: Eficacia | F18: =IFERROR(VLOOKUP($G$5&$G$6&C18&D18,'Pbr''s'!A:M,7,0)," ") -> Porcentaje de personas beneficiadas por las acciones de promoción | G18: =IFERROR(VLOOKUP($G$5&$G$6&C18&D18,'Pbr''s'!A:N,8,0)," ") -> Numero de personas Beneficiadas | H18: =IFERROR(VLOOKUP($G$5&$G$6&C18&D18,'Pbr''s'!A:O,9,0)," ") -> 21000 | I18: =IFERROR(VLOOKUP($G$5&$G$6&C18&D18,'Pbr''s'!A:P,10,0)," ") -> 1500 | J18: 161 | N18: 0.1073333333
C19: =C18+1 -> 7 | D19: =IFERROR(VLOOKUP($G$5&$G$6&C19,'Pbr''s'!B:J,5,0)," ") -> Libres por la igualdad | E19: Eficacia | F19: =IFERROR(VLOOKUP($G$5&$G$6&C19&D19,'Pbr''s'!A:M,7,0)," ") -> Eventos Conmemorativos para promover y reconocer los derechos de las mujeres en sus diversidad | G19: =IFERROR(VLOOKUP($G$5&$G$6&C19&D19,'Pbr''s'!A:N,8,0)," ") -> Numero de eventos | H19: =IFERROR(VLOOKUP($G$5&$G$6&C19&D19,'Pbr''s'!A:O,9,0)," ") -> 2 | I19: =IFERROR(VLOOKUP($G$5&$G$6&C19&D19,'Pbr''s'!A:P,10,0)," ") -> 2 | J19: 0 | N19: 0
C20: 8 | D20: =IFERROR(VLOOKUP($G$5&$G$6&C20,'Pbr''s'!B:J,5,0)," ") -> Vivir sin violencia | E20: Eficacia | F20: =IFERROR(VLOOKUP($G$5&$G$6&C20&D20,'Pbr''s'!A:M,7,0)," ") -> Porcentaje de atenciones de primer contacto | G20: =IFERROR(VLOOKUP($G$5&$G$6&C20&D20,'Pbr''s'!A:N,8,0)," ") -> Numero de Mujeres Atendidas | H20: =IFERROR(VLOOKUP($G$5&$G$6&C20&D20,'Pbr''s'!A:O,9,0)," ") -> 425 | I20: =IFERROR(VLOOKUP($G$5&$G$6&C20&D20,'Pbr''s'!A:P,10,0)," ") -> 430 | J20: 159 | N20: 0.3697674419
C21: 9 | D21: =IFERROR(VLOOKUP($G$5&$G$6&C21,'Pbr''s'!B:J,5,0)," ") -> Vivir sin violencia | E21: Eficacia | F21: =IFERROR(VLOOKUP($G$5&$G$6&C21&D21,'Pbr''s'!A:M,7,0)," ") -> Porcentaje de Acciones de prevención de la violencia de generó en la comunidad | G21: =IFERROR(VLOOKUP($G$5&$G$6&C21&D21,'Pbr''s'!A:N,8,0)," ") -> Numero de Acciones | H21: =IFERROR(VLOOKUP($G$5&$G$6&C21&D21,'Pbr''s'!A:O,9,0)," ") -> 30 | I21: =IFERROR(VLOOKUP($G$5&$G$6&C21&D21,'Pbr''s'!A:P,10,0)," ") -> 40 | J21: 10 | N21: 0.25
C22: 10 | D22: =IFERROR(VLOOKUP($G$5&$G$6&C22,'Pbr''s'!B:J,5,0)," ") -> Vivir sin violencia | E22: Eficacia | F22: =IFERROR(VLOOKUP($G$5&$G$6&C22&D22,'Pbr''s'!A:M,7,0)," ") -> Porcentaje de acciones de actualización o profesionalización para personal del servicio publico en materia de atención a victimas | G22: =IFERROR(VLOOKUP($G$5&$G$6&C22&D22,'Pbr''s'!A:N,8,0)," ") -> Numero de Acciones | H22: =IFERROR(VLOOKUP($G$5&$G$6&C22&D22,'Pbr''s'!A:O,9,0)," ") -> 12 | I22: =IFERROR(VLOOKUP($G$5&$G$6&C22&D22,'Pbr''s'!A:P,10,0)," ") -> 15 | J22: 0 | N22: 0
C23: 11 | D23: =IFERROR(VLOOKUP($G$5&$G$6&C23,'Pbr''s'!B:J,5,0)," ") -> Vivir sin violencia | E23: Eficacia | F23: =IFERROR(VLOOKUP($G$5&$G$6&C23&D23,'Pbr''s'!A:M,7,0)," ") -> Porcentaje de personas Beneficiadas con las acciones de prevención, atención y profesionalización en Materia de Violencia contra las mujeres | G23: =IFERROR(VLOOKUP($G$5&$G$6&C23&D23,'Pbr''s'!A:N,8,0)," ") -> Numero de personas Beneficiadas | H23: =IFERROR(VLOOKUP($G$5&$G$6&C23&D23,'Pbr''s'!A:O,9,0)," ") -> 3000 | I23: =IFERROR(VLOOKUP($G$5&$G$6&C23&D23,'Pbr''s'!A:P,10,0)," ") -> 3450 | J23: 357 | N23: 0.1034782609
C24: 12 | D24: =IFERROR(VLOOKUP($G$5&$G$6&C24,'Pbr''s'!B:J,5,0)," ") -> Vivir sin violencia | E24: Eficacia | F24: =IFERROR(VLOOKUP($G$5&$G$6&C24&D24,'Pbr''s'!A:M,7,0)," ") -> Porcentaje de eventos conmemorativos de fechas o acciones contra la violencia de genero | G24: =IFERROR(VLOOKUP($G$5&$G$6&C24&D24,'Pbr''s'!A:N,8,0)," ") -> Número de Eventos | H24: =IFERROR(VLOOKUP($G$5&$G$6&C24&D24,'Pbr''s'!A:O,9,0)," ") -> 1 | I24: =IFERROR(VLOOKUP($G$5&$G$6&C24&D24,'Pbr''s'!A:P,10,0)," ") -> 1 | J24: 1 | N24: 1
C25: 13 | D25: =IFERROR(VLOOKUP($G$5&$G$6&C25,'Pbr''s'!B:J,5,0)," ") ->  | F25: =IFERROR(VLOOKUP($G$5&$G$6&C25&D25,'Pbr''s'!A:M,7,0)," ") ->  | G25: =IFERROR(VLOOKUP($G$5&$G$6&C25&D25,'Pbr''s'!A:N,8,0)," ") ->  | H25: =IFERROR(VLOOKUP($G$5&$G$6&C25&D25,'Pbr''s'!A:O,9,0)," ") ->  | I25: =IFERROR(VLOOKUP($G$5&$G$6&C25&D25,'Pbr''s'!A:P,10,0)," ") -> 
C26: 14 | D26: =IFERROR(VLOOKUP($G$5&$G$6&C26,'Pbr''s'!B:J,5,0)," ") ->  | F26: =IFERROR(VLOOKUP($G$5&$G$6&C26&D26,'Pbr''s'!A:M,7,0)," ") ->  | G26: =IFERROR(VLOOKUP($G$5&$G$6&C26&D26,'Pbr''s'!A:N,8,0)," ") ->  | H26: =IFERROR(VLOOKUP($G$5&$G$6&C26&D26,'Pbr''s'!A:O,9,0)," ") ->  | I26: =IFERROR(VLOOKUP($G$5&$G$6&C26&D26,'Pbr''s'!A:P,10,0)," ") -> 
C27: 15 | D27: =IFERROR(VLOOKUP($G$5&$G$6&C27,'Pbr''s'!B:J,5,0)," ") ->  | F27: =IFERROR(VLOOKUP($G$5&$G$6&C27&D27,'Pbr''s'!A:M,7,0)," ") ->  | G27: =IFERROR(VLOOKUP($G$5&$G$6&C27&D27,'Pbr''s'!A:N,8,0)," ") ->  | H27: =IFERROR(VLOOKUP($G$5&$G$6&C27&D27,'Pbr''s'!A:O,9,0)," ") ->  | I27: =IFERROR(VLOOKUP($G$5&$G$6&C27&D27,'Pbr''s'!A:P,10,0)," ") -> 
C28: 16 | D28: =IFERROR(VLOOKUP($G$5&$G$6&C28,'Pbr''s'!B:J,5,0)," ") ->  | F28: =IFERROR(VLOOKUP($G$5&$G$6&C28&D28,'Pbr''s'!A:M,7,0)," ") ->  | G28: =IFERROR(VLOOKUP($G$5&$G$6&C28&D28,'Pbr''s'!A:N,8,0)," ") ->  | H28: =IFERROR(VLOOKUP($G$5&$G$6&C28&D28,'Pbr''s'!A:O,9,0)," ") ->  | I28: =IFERROR(VLOOKUP($G$5&$G$6&C28&D28,'Pbr''s'!A:P,10,0)," ") -> 
C29: 17 | D29: =IFERROR(VLOOKUP($G$5&$G$6&C29,'Pbr''s'!B:J,5,0)," ") ->  | F29: =IFERROR(VLOOKUP($G$5&$G$6&C29&D29,'Pbr''s'!A:M,7,0)," ") ->  | G29: =IFERROR(VLOOKUP($G$5&$G$6&C29&D29,'Pbr''s'!A:N,8,0)," ") ->  | H29: =IFERROR(VLOOKUP($G$5&$G$6&C29&D29,'Pbr''s'!A:O,9,0)," ") ->  | I29: =IFERROR(VLOOKUP($G$5&$G$6&C29&D29,'Pbr''s'!A:P,10,0)," ") -> 
C30: 18 | D30: =IFERROR(VLOOKUP($G$5&$G$6&C30,'Pbr''s'!B:J,5,0)," ") ->  | F30: =IFERROR(VLOOKUP($G$5&$G$6&C30&D30,'Pbr''s'!A:M,7,0)," ") ->  | G30: =IFERROR(VLOOKUP($G$5&$G$6&C30&D30,'Pbr''s'!A:N,8,0)," ") ->  | H30: =IFERROR(VLOOKUP($G$5&$G$6&C30&D30,'Pbr''s'!A:O,9,0)," ") ->  | I30: =IFERROR(VLOOKUP($G$5&$G$6&C30&D30,'Pbr''s'!A:P,10,0)," ") -> 
C31: 19 | D31: =IFERROR(VLOOKUP($G$5&$G$6&C31,'Pbr''s'!B:J,5,0)," ") ->  | F31: =IFERROR(VLOOKUP($G$5&$G$6&C31&D31,'Pbr''s'!A:M,7,0)," ") ->  | G31: =IFERROR(VLOOKUP($G$5&$G$6&C31&D31,'Pbr''s'!A:N,8,0)," ") ->  | H31: =IFERROR(VLOOKUP($G$5&$G$6&C31&D31,'Pbr''s'!A:O,9,0)," ") ->  | I31: =IFERROR(VLOOKUP($G$5&$G$6&C31&D31,'Pbr''s'!A:P,10,0)," ") -> 
C32: 20 | D32: =IFERROR(VLOOKUP($G$5&$G$6&C32,'Pbr''s'!B:J,5,0)," ") ->  | F32: =IFERROR(VLOOKUP($G$5&$G$6&C32&D32,'Pbr''s'!A:M,7,0)," ") ->  | G32: =IFERROR(VLOOKUP($G$5&$G$6&C32&D32,'Pbr''s'!A:N,8,0)," ") ->  | H32: =IFERROR(VLOOKUP($G$5&$G$6&C32&D32,'Pbr''s'!A:O,9,0)," ") ->  | I32: =IFERROR(VLOOKUP($G$5&$G$6&C32&D32,'Pbr''s'!A:P,10,0)," ") -> 
C33: 21 | D33: =IFERROR(VLOOKUP($G$5&$G$6&C33,'Pbr''s'!B:J,5,0)," ") ->  | F33: =IFERROR(VLOOKUP($G$5&$G$6&C33&D33,'Pbr''s'!A:M,7,0)," ") ->  | G33: =IFERROR(VLOOKUP($G$5&$G$6&C33&D33,'Pbr''s'!A:N,8,0)," ") ->  | H33: =IFERROR(VLOOKUP($G$5&$G$6&C33&D33,'Pbr''s'!A:O,9,0)," ") ->  | I33: =IFERROR(VLOOKUP($G$5&$G$6&C33&D33,'Pbr''s'!A:P,10,0)," ") -> 
C34: 22 | D34: =IFERROR(VLOOKUP($G$5&$G$6&C34,'Pbr''s'!B:J,5,0)," ") ->  | F34: =IFERROR(VLOOKUP($G$5&$G$6&C34&D34,'Pbr''s'!A:M,7,0)," ") ->  | G34: =IFERROR(VLOOKUP($G$5&$G$6&C34&D34,'Pbr''s'!A:N,8,0)," ") ->  | H34: =IFERROR(VLOOKUP($G$5&$G$6&C34&D34,'Pbr''s'!A:O,9,0)," ") ->  | I34: =IFERROR(VLOOKUP($G$5&$G$6&C34&D34,'Pbr''s'!A:P,10,0)," ") -> 
C35: 23 | D35: =IFERROR(VLOOKUP($G$5&$G$6&C35,'Pbr''s'!B:J,5,0)," ") ->  | F35: =IFERROR(VLOOKUP($G$5&$G$6&C35&D35,'Pbr''s'!A:M,7,0)," ") ->  | G35: =IFERROR(VLOOKUP($G$5&$G$6&C35&D35,'Pbr''s'!A:N,8,0)," ") ->  | H35: =IFERROR(VLOOKUP($G$5&$G$6&C35&D35,'Pbr''s'!A:O,9,0)," ") ->  | I35: =IFERROR(VLOOKUP($G$5&$G$6&C35&D35,'Pbr''s'!A:P,10,0)," ") -> 
C36: 24 | D36: =IFERROR(VLOOKUP($G$5&$G$6&C36,'Pbr''s'!B:J,5,0)," ") ->  | F36: =IFERROR(VLOOKUP($G$5&$G$6&C36&D36,'Pbr''s'!A:M,7,0)," ") ->  | G36: =IFERROR(VLOOKUP($G$5&$G$6&C36&D36,'Pbr''s'!A:N,8,0)," ") ->  | H36: =IFERROR(VLOOKUP($G$5&$G$6&C36&D36,'Pbr''s'!A:O,9,0)," ") ->  | I36: =IFERROR(VLOOKUP($G$5&$G$6&C36&D36,'Pbr''s'!A:P,10,0)," ") -> 
C37: 25 | D37: =IFERROR(VLOOKUP($G$5&$G$6&C37,'Pbr''s'!B:J,5,0)," ") ->  | F37: =IFERROR(VLOOKUP($G$5&$G$6&C37&D37,'Pbr''s'!A:M,7,0)," ") ->  | G37: =IFERROR(VLOOKUP($G$5&$G$6&C37&D37,'Pbr''s'!A:N,8,0)," ") ->  | H37: =IFERROR(VLOOKUP($G$5&$G$6&C37&D37,'Pbr''s'!A:O,9,0)," ") ->  | I37: =IFERROR(VLOOKUP($G$5&$G$6&C37&D37,'Pbr''s'!A:P,10,0)," ") -> 

Sheet Anexo Cualitativo
E3: ANEXO 4 EVALUACIÓN DE PROGRAMAS Y/O PROYECTOS (AVANCE CUALITATIVO)
E4: NOMBRE DE LA SECRETARIA: | I4: ='Anexo Cuantitativo'!G5 -> OPD
E5: NOMBRE DE LA ENTIDAD PÚBLICA: | I5: ='Anexo Cuantitativo'!G6 -> IMMUJERES
E6: TRIMESTRE REPORTADO: | I6: ='Anexo Cuantitativo'!G7 -> Del 1 de Octubre al 31 de Diciembre del 2024
G9: DESCRIPCIÓN
E10: NO. | F10: NOMBRE DE LA PROPUESTA | G10: DESCRIPCIÓN DE LAS ACTIVIDADES REALIZADAS (REDACTAR SÓLO LO REALIZADO EN TIEMPO PASADO)
E11: 1 | F11: =IFERROR('Anexo Cuantitativo'!D13," ") -> Enfoque Transversal con Perspectiva de Género | G11: Se realizó un convenio con Casa Calera, que atiende a mujeres con situaciones de vulnerabilidad enfocadas en las adicciones o temas conductuales. Se asistió a una reunión de trabajo en la Comisaría de Seguridad Municipal de Tlaquepaque sobre el Programa Sendero Seguro, que buscaba garantizar la seguridad de las escuelas y sus estudiantes. Se llevó a cabo de manera interinstitucional la colaboración del Instituto en jornadas de salud junto a otras dependencias y OPDs, en las que se buscaba tener mayor cercanía con la ciudadanía. De igual manera, se asistió a la Comisaría de Seguridad de Tlaquepaque referente a la Mesa de Construcción de Paz y Seguridad, en la que se buscó unir esfuerzos de coordinación entre los tres niveles de gobierno para la lucha contra la violencia y la impunidad. Finalmente, se realizó un foro con la temática "Retos y Oportunidades en la Defensa de Derechos Humanos de Mujeres Víctimas de Violencia" con invitadas especialistas en dicho tema. | L11: qa
G12: Narrativa de trimestre Enero-marzo:
G13: Narrativa de trimestre Abril-junio:
G14: Narrativa de trimestre Julio-sept:
E15: =E11+1 -> 2 | F15: =IFERROR('Anexo Cuantitativo'!D14," ") -> Enfoque Transversal con Perspectiva de Género | G15: Narrativa de trimestre Octubre-diciembre: Se observó la falta de actualización sobre el Reglamento Interno del propio Instituto, por lo que se atendió para su pronta finalización.
G16: Narrativa de trimestre Enero-marzo:
G17: Narrativa de trimestre Abril-junio:
G18: Narrativa de trimestre Julio-sept:
E19: =E15+1 -> 3 | F19: =IFERROR('Anexo Cuantitativo'!D15," ") -> Enfoque Transversal con Perspectiva de Género | G19: Narrativa de trimestre Octubre-diciembre: Se realizaron formatos de invitaciones y oficios que incluyeron la perspectiva de género con lenguaje incluyente, así como en formatos de publicidad interna del Instituto.
G20: Narrativa de trimestre Enero-marzo:
G21: Narrativa de trimestre Abril-junio:
G22: Narrativa de trimestre Julio-sept:
E23: =E19+1 -> 4 | F23: =IFERROR('Anexo Cuantitativo'!D16," ") -> Enfoque Transversal con Perspectiva de Género | G23: Narrativa de trimestre Octubre-diciembre: Se realizaron diversos eventos sobre la temática de la perspectiva de género, así como sobre la eliminación de la violencia hacia las mujeres, en los que se obtuvo una buena respuesta por parte de las mujeres asistentes.
G24: Narrativa de trimestre Enero-marzo:
G25: Narrativa de trimestre Abril-junio:
G26: Narrativa de trimestre Julio-sept:
E27: =E23+1 -> 5 | F27: =IFERROR('Anexo Cuantitativo'!D17," ") -> Libres por la igualdad | G27: Narrativa de trimestre Octubre-diciembre: Se realizaron campañas de difusión a través de las diversas herramientas de comunicación interna del propio Instituto, como por ejemplo Facebook, Instagram y Twitter. Se tomaron en cuenta acciones en la comunidad, en donde el Instituto asistió a diversas delegaciones, como Santa Anita, Santa María Tequepexpan, Toluquilla, Loma Bonita, San Sebastianito, San Martín de las Flores y San Pedrito. Se implementó, en apoyo a las mujeres víctimas de violencia que se atienden en el propio Instituto, el Programa de Ludoteca, en el que todas aquellas mujeres que lleguen solicitando atención y vengan con bebés o niños, también puedan tener un espacio digno con ambiente a cargo de personal especializado mientras se le brinda la atención a la madre. Se implementó la participación política de un grupo de mujeres activistas en uno de los eventos que realizó el Instituto, a modo de que intervinieran con una pinta de graffiti artístico conmemorando la eliminación de la violencia de género. Se llevó a cabo la colaboración en conjunto con grandes empresas importantes para consolidar la autonomía económica de las mujeres víctimas de violencia que atiende el Instituto, en donde se les ofrece una amplia bolsa de trabajo con las distintas empresas, como por ejemplo: Sello Rojo, LALA, Kellogg's y algunas franquicias de la cadena de gasolineras PEMEX.
G28: Narrativa de trimestre Enero-marzo:
G29: Narrativa de trimestre Abril-junio:
G30: Narrativa de trimestre Julio-sept:
E31: =E27+1 -> 6 | F31: =IFERROR('Anexo Cuantitativo'!D18," ") -> Libres por la igualdad | G31: Narrativa de trimestre Octubre-diciembre:Con las acciones realizadas por el Instituto en colaboración con empresas y personal del propio instituto, se logró impactar en todas estas mujeres que, de alguna manera, fueron víctimas de violencia, por lo que se buscó apoyarlas en su desarrollo economíco. .
G32: Narrativa de trimestre Enero-marzo:
G33: Narrativa de trimestre Abril-junio:
G34: Narrativa de trimestre Julio-sept:
E35: =E31+1 -> 7 | F35: =IFERROR('Anexo Cuantitativo'!D19," ") -> Libres por la igualdad | G35: Narrativa de trimestre Octubre-diciembre:
G36: Narrativa de trimestre Enero-marzo:
G37: Narrativa de trimestre Abril-junio:
G38: Narrativa de trimestre Julio-sept:
E39: =E35+1 -> 8 | F39: =IFERROR('Anexo Cuantitativo'!D20," ") -> Vivir sin violencia | G39: Narrativa de trimestre Octubre-diciembre: Todas aquellas mujeres que llegaron a nuestro Instituto buscando ayuda de asesoramiento legal y psicológico, las cuales fueron víctimas de algún tipo de violencia de género ocasionada por el género masculino.
G40: Narrativa de trimestre Enero-marzo:
G41: Narrativa de trimestre Abril-junio:
G42: Narrativa de trimestre Julio-sept:
E43: =E39+1 -> 9 | F43: =IFERROR('Anexo Cuantitativo'!D21," ") -> Vivir sin violencia | G43: Narrativa de trimestre Octubre-diciembre: Se realizaron caravanas de salud en las distintas delegaciones del municipio, en donde se brindó asesoramiento y orientación a mujeres sobre los lugares a los que debían acudir para recibir atención y seguimiento de su caso. En eventos como un cineforo, se proyectó una película llamada "Desde mi Cielo" que abordaba la violencia y la concientización de cómo la experimentan las mujeres. Se llevó a cabo un cambaceo en dichos eventos y caravanas, en donde se proporcionó publicidad sobre cómo prevenir la violencia y se ofrecieron números de contacto para que las mujeres puedan acudir en caso de estar viviendo algún tipo de violencia. También se realizaron talleres de prevención y concientización sobre la violencia de género. Además, se establecieron juntas de trabajo con la directora de UVI para fortalecer lazos colaborativos en beneficio de las mujeres, así como con la comisaria de seguridad de Tlaquepaque en conjunto con los tres niveles de gobierno. En estas juntas, se previó la prevención de delitos que atenten contra la integridad de las estudiantes, y se promovió la concientización sobre la eliminación de la violencia de género a través de la jornada del 25 de noviembre, en la que se desarrollaron temas para la prevención de violencias hacia las mujeres.
G44: Narrativa de trimestre Enero-marzo:
G45: Narrativa de trimestre Abril-junio:
G46: Narrativa de trimestre Julio-sept:
E47: =E43+1 -> 10 | F47: =IFERROR('Anexo Cuantitativo'!D22," ") -> Vivir sin violencia | G47: Narrativa de trimestre Octubre-diciembre:
G48: Narrativa de trimestre Enero-marzo:
G49: Narrativa de trimestre Abril-junio:
G50: Narrativa de trimestre Julio-sept:
E51: =E47+1 -> 11 | F51: =IFERROR('Anexo Cuantitativo'!D23," ") -> Vivir sin violencia | G51: Narrativa de trimestre Octubre-diciembre:Con todas las acciones realizadas por el Instituto, divididas en otros campos relativos a los diversos Programas y Proyectos (PbR) con los que se cuenta, se han obtenido estos resultados, ya que ambos PbR contribuyen a la prevención de la violencia y a la perspectiva de género desde distintos temas, como la transversalidad, la igualdad y la violencia de género.
G52: Narrativa de trimestre Enero-marzo:
G53: Narrativa de trimestre Abril-junio:
G54: Narrativa de trimestre Julio-sept:
E55: =E51+1 -> 12 | F55: =IFERROR('Anexo Cuantitativo'!D24," ") -> Vivir sin violencia | G55: Narrativa de trimestre Octubre-diciembre: Se realizo el evento conmemorativo del 25N "Día de la Eliminación de la Violencia de Género" llamado " Huellas con Historia" contando con participación de activistas, mujeres de la comunidad de San Pedro Tlaquepaque, regidores, directivos y perosnal de distintas dependencias y OPDs, teniendo un impacto de mas de 100 mujeres asistentes.
G56: Narrativa de trimestre Enero-marzo:
G57: Narrativa de trimestre Abril-junio:
G58: Narrativa de trimestre Julio-sept:
E59: =E55+1 -> 13 | F59: =IFERROR('Anexo Cuantitativo'!D25," ") ->  | G59: Narrativa de trimestre Octubre-diciembre:
G60: Narrativa de trimestre Enero-marzo:
G61: Narrativa de trimestre Abril-junio:
G62: Narrativa de trimestre Julio-sept:
E63: =E59+1 -> 14 | F63: =IFERROR('Anexo Cuantitativo'!D26," ") ->  | G63: Narrativa de trimestre Octubre-diciembre:
G64: Narrativa de trimestre Enero-marzo:
G65: Narrativa de trimestre Abril-junio:
G66: Narrativa de trimestre Julio-sept:
E67: =E63+1 -> 15 | F67: =IFERROR('Anexo Cuantitativo'!D27," ") ->  | G67: Narrativa de trimestre Octubre-diciembre:
G68: Narrativa de trimestre Enero-marzo:
G69: Narrativa de trimestre Abril-junio:
G70: Narrativa de trimestre Julio-sept:
E71: =E67+1 -> 16 | F71: =IFERROR('Anexo Cuantitativo'!D28," ") ->  | G71: Narrativa de trimestre Octubre-diciembre:
G72: Narrativa de trimestre Enero-marzo:
G73: Narrativa de trimestre Abril-junio:
G74: Narrativa de trimestre Julio-sept:
E75: =E71+1 -> 17 | F75: =IFERROR('Anexo Cuantitativo'!D29," ") ->  | G75: Narrativa de trimestre Octubre-diciembre:
G76: Narrativa de trimestre Enero-marzo:
G77: Narrativa de trimestre Abril-junio:
G78: Narrativa de trimestre Julio-sept:
E79: =E75+1 -> 18 | F79: =IFERROR('Anexo Cuantitativo'!D30," ") ->  | G79: Narrativa de trimestre Octubre-diciembre:
G80: Narrativa de trimestre Enero-marzo:
G81: Narrativa de trimestre Abril-junio:
G82: Narrativa de trimestre Julio-sept:
E83: =E79+1 -> 19 | F83: =IFERROR('Anexo Cuantitativo'!D31," ") ->  | G83: Narrativa de trimestre Octubre-diciembre:
G84: Narrativa de trimestre Enero-marzo:
G85: Narrativa de trimestre Abril-junio:
G86: Narrativa de trimestre Julio-sept:
E87: =E83+1 -> 20 | F87: =IFERROR('Anexo Cuantitativo'!D32," ") ->  | G87: Narrativa de trimestre Octubre-diciembre:
G88: Narrativa de trimestre Enero-marzo:
G89: Narrativa de trimestre Abril-junio:
G90: Narrativa de trimestre Julio-sept:
E91: =E87+1 -> 21 | F91: =IFERROR('Anexo Cuantitativo'!D33," ") ->  | G91: Narrativa de trimestre Octubre-diciembre:
G92: Narrativa de trimestre Enero-marzo:
G93: Narrativa de trimestre Abril-junio:
G94: Narrativa de trimestre Julio-sept:
E95: =E91+1 -> 22 | F95: =IFERROR('Anexo Cuantitativo'!D34," ") ->  | G95: Narrativa de trimestre Octubre-diciembre:
G96: Narrativa de trimestre Enero-marzo:
G97: Narrativa de trimestre Abril-junio:
G98: Narrativa de trimestre Julio-sept:
E99: =E95+1 -> 23 | F99: =IFERROR('Anexo Cuantitativo'!D35," ") ->  | G99: Narrativa de trimestre Octubre-diciembre:
G100: Narrativa de trimestre Enero-marzo:
G101: Narrativa de trimestre Abril-junio:
G102: Narrativa de trimestre Julio-sept:
F103: =IFERROR('Anexo Cuantitativo'!D36," ") ->  | G103: Narrativa de trimestre Octubre-diciembre:
G104: Narrativa de trimestre Enero-marzo:
G105: Narrativa de trimestre Abril-junio:
G106: Narrativa de trimestre Julio-sept:
E107: =E99+1 -> 24 | F107: =IFERROR('Anexo Cuantitativo'!D36," ") ->  | G107: Narrativa de trimestre Octubre-diciembre:
G108: Narrativa de trimestre Enero-marzo:
G109: Narrativa de trimestre Abril-junio:
G110: Narrativa de trimestre Julio-sept:

Sheet Hoja2 (hidden)
B6: ESTRATÉGICO
B7: GESTIÓN

Sheet SECRETARIASYPROYECTOS (hidden)
A1: SECRETARIAS / DIRECCIONES /SUBDIRECCIONES | Q1: SECRETARIAS / PROYECTOS
A2: OFICINA_DE_PRESIDENCIA | B2: SINDICATURA | C2: SECRETARIA_DE_LA_CONSEJERIA_JURIDICA | D2: SECRETARIA_DE_GOBERNANZA_Y_TERRITORIO | E2: SECRETARIA_DE_ADMINISTRACION_Y_FINANZAS | F2: SECRETARIA_DE_CONTRALORIA_MUNICIPAL_Y_COMBATE_A_LA_CORRUPCION | G2: OFICIALIA_MAYOR | H2: SECRETARIA_DE_PLANIFICACION_ANALISIS_Y_GESTION_URBANA | I2: SECRETARIA_DE_BIENESTAR | J2: SECRETARIA_DE_FOMENTO_ECONOMICO_Y_CULTURAL | K2: SECRETARIA_DE_SERVICIOS_PUBLICOS_Y_MEDIO_AMBIENTE | L2: SECRETARIA_DE_SALUD | M2: SECRETARIA_DE_OBRAS_PUBLICAS | N2: SECRETARIA_DE_SEGURIDAD_Y_PROTECCION_CIUDADANA | O2: OPD | Q2: PRESIDENCIA | R2: SINDICATURA_PROYECTO | S2: CONSEJERIA_JURIDICA | T2: GOBERNANZA_Y_TERRITORIO | U2: ADMINISTRACION_Y_FINANZAS | V2: CONTRALORIA_MUNICIPAL_Y_COMBATE_A_LA_CORRUPCION | W2: OFICIALIA | X2: PLANIFICACION_ANALISIS_Y_GESTION_URBANA | Y2: BIENESTAR | Z2: FOMENTO_ECONOMICO_Y_CULTURAL | AA2: SERVICIOS_PUBLICOS_Y_MEDIO_AMBIENTE | AB2: SALUD | AC2: OBRAS_PUBLICAS | AD2: SEGURIDAD_Y_PROTECCION_CIUDADANA | AE2: OPD_PROYECTO
A3: DIRECCION DE ATENCION Y VINCULACION CIUDADANA | B3: DEPARTAMENTO DE CONTRATOS Y CONVENIOS | C3: DEPARTAMENTO DE RECLUTAMIENTO MILITAR | D3: DELEGACION SAN SEBASTIANITO | E3: DEPARTAMENTO DE BIENES MUEBLES | F3: DIRECCION DE AUDITORIA A OBRA PUBLICA Y SERVICIOS | G3: DEPARTAMENTO DE CAPACITACION Y SERVICIO SOCIAL | H3: DEPARTAMENTO DE EVALUACION DE PROYECTOS Y PROGRAMAS | I3: DIRECCION DE EDUCACION | J3: DIRECCIÓN DE CEMENTERIOS | K3: DEPARTAMENTO DE REGULACION AMBIENTAL | L3: DEPARTAMENTO DE TRABAJO SOCIAL | M3: DIRECCION DE CONSTRUCCION Y MANTENIMIENTO | N3: DEPARTAMENTO DE AREA DE PREVENCION | O3: COMUCAT | Q3: Atención a Reportesde Servicios Públicos, Información sobre Ayudas Sociales y Reportes en General | R3: Servicios de asesoramiento legal y jurídico a la población que presenta vulnerabilidad legal e indefención de su patrimonio | S3: Opiniones jurídicas | T3: Actividades Administrativas | U3: Programa de Apoyo a Adultos Mayores | V3: Análisis documental de expedientes de obras | W3: Elaboración de Manuales Administrativos | X3: Coordinación de actividades de los departamentos de la Dirección de Desempeño, Resultados y Tablero de Control | Y3: Alas de Esperanza | Z3: Formacion Continua | AA3: Trabajos emergentes de redes hidrosanitarias | AB3: Soporte Ventilatorio | AC3: Programa de Urbanización | AD3: Gestión Adquisición de Uniformes | AE3: Capacitaciones Preventivas en Adicciones
A4: DIRECCION DE COMUNICACION ESTRATEGICA | B4: DEPARTAMENTO DE MEJORA REGULATORIA | C4: DIRECCION DE APOYO A CABILDO | D4: DEPARTAMENTO DE ASUNTOS RELIGIOSOS | E4: DEPARTAMENTO DE REDES Y TELECOMUNICACIONES | F4: DIRECCION DE AUDITORIA GUBERNAMENTAL Y COMBATE A LA CORRUPCION | G4: DEPARTAMENTO DE INCIDENCIAS Y CALCULO DE NOMINA | H4: DEPARTAMENTO DE GESTION TERRITORIAL SUELO Y VIVIENDA | I4: DIRECCION DE PROGRAMAS SOCIALES PARA EL BIENESTAR | J4: DIRECCION DE CULTURA | K4: DIRECCION DE AGUA POTABLE, DRENAJE Y ALCANTARILLADO | L4: DIRECCION DE SALUD PUBLICA | M4: DIRECCION DE PRESUPUESTOS Y CONTRATACION DE OBRA PUBLICA | N4: DIRECCION ADMINISTRATIVA | O4: COMUDE | Q4: Atencion y capacitacion a organizaciones vecinales en materia de participacion ciudadana | R4: Catálogo Municipal de Trámites y Servicios | S4: Consultas y asesoría jurídica | T4: Atención a Solicitudes Ciudadanas | U4: Programa de Convenios | V4: Control documental de expedientes de obras | W4: Armonización Organizativa | X4: Servicio de Acompañamiento para la gestión del sistema de Planeación Municipal | Y4: Aprendiendo bien | Z4: Ferias, Festivales y Exposiciones | AA4: Servicio Medido | AB4: Atención Urgente en Sala de Choque | AC4: Señalización Horizontal y Vertical | AD4: Programa permanente de seguimiento para la administración eficiente de los recursos humanos y materiales de la Secretaría | AE4: Atención Terapeútica
A5: SUBDIRECCION DE GESTION DE PARTICIPACION TERRITORIAL | B5: DIRECCION JURIDICA | C5: DIRECCION DE DERECHOS HUMANOS | D5: DEPARTAMENTO DE OFICINA DE PASAPORTES | E5: DEPARTAMENTO DE SERVICIOS GENERALES | F5: DIRECCION DE RESPONSABILIDADES Y EVOLUCION PATRIMONIAL | G5: DIRECCION DE DESARROLLO ORGANIZACIONAL | H5: DEPARTAMENTO DE INDICADORES Y METAS PARA RESULTADOS | I5: SUBDIRECCION DE DESARROLLO Y ATENCION AL SECTOR AGROPECUARIO | J5: DIRECCION DE DESARROLLO ARTESANAL Y TURISTICO | K5: DIRECCION DE ALUMBRADO PUBLICO | L5: DIRECCION DE URGENCIAS MEDICAS | M5: SUBDIRECCION DE INSPECCION DE CONTROL DE LA EDIFICACION Y ORDENAMIENTO TERRITORIAL | N5: DIRECCION DE ATENCION A LA VIOLENCIA DE GENERO | O5: IMJUVET | Q5: Conformacion de Organizaciones Vecinales | R5: Servicio de Revisión Contratos | S5: Cartillas Militares | T5: Brigadas de Mantenimiento y Recuperación de Espacios Públicos | U5: Programa Integral de Recaudación | V5: Auditorías | W5: Certificación en el ECO385 | X5: Seguimiento y Evaluación a la Administración Pública Municipal | Y5: Unidos en Corazón | Z5: Cultura por la Paz | AA5: Recepción, Distribución, Dosificación, Monitoreo de cloro residual de Agua Potable | AB5: Enseñanza Continua | AC5: Intervenciones al Entorno Urbano | AD5: Material para el desempeño de las actividades de la Unidad de Proximidad Social | AE5: Espacios COMUCAT
A6: UNIDAD DE TRANSPARENCIA | B6: SINDICATURA | C6: DIRECCION DE MEDIACION Y JUZGADOS CIVICOS MUNICIPALES | D6: DIRECCION DE ARCHIVO MUNICIPAL | E6: DEPARTAMENTO DE SOPORTE Y MANTENIMIENTO | F6: SUBDIRECCION DE AUDITORIA FINANCIERA Y DE DESEMPEÑO | H6: DEPARTAMENTO DE PLANEACION URBANA | J6: DIRECCION DE GESTION EMPRESARIAL E INDUSTRIAL | K6: DIRECCION DE ASEO PUBLICO | L6: SUBDIRECCION DE ENSEÑANZA | M6: SUBDIRECCION DE MANTENIMIENTO | N6: DIRECCION DE BOMBEROS Y PROTECCION CIVIL | O6: IMMUJERES | Q6: Socializando y perifoneando para la cuidadania | R6: Actualización de los instrumentos de control de Archivo de Tramite de la Sindicatura | S6: Campaña de Integración Familiar 2025 | T6: Festividades Tradicionales Cívicas | U6: Administración y control de los Recursos Materiales | V6: Visitas de Inspección | W6: Capacitación en materia de Derechos Humanos | X6: Seguimiento y Evaluación a los Programas Sociales | Y6: Cuidando tu Esperanza | Z6: Cultura en tu colonia | AA6: Padrón Único de Usuarios | AB6: Monitores al Área de Urgencias (Choque) | AC6: Mtto. a Edificios y Espacios Públicos | AD6: Certificación de personal y oficiales caninos K-9 | AE6: Red de Apoyo para Establecimientos especializado en Adicciones
C7: DIRECCION DE REGISTRO CIVIL | D7: DIRECCION DE DELEGACIONES Y AGENCIAS | E7: DEPARTAMENTO DE TALLER MUNICIPAL | H7: DEPARTAMENTO DEL SISTEMA DE EVALUACION DEL DESEMPEÑO | J7: DIRECCION DEL CENTRO HISTORICO | K7: DIRECCION DE RASTRO | L7: SUBDIRECCION DE SALUD ANIMAL | N7: DIRECCION OPERATIVA | O7: PREMIO NACIONAL DE LA CERÁMICA | Q7: Campañas en Redes Sociales | R7: Presentación de Iniciativas de modificación de normatividad | S7: Celebracion de Matrimonios en Lugares emblemáticos | T7: Visitas a Colonias | U7: Administracion de Bienes Inmuebles | V7: Auditorías | W7: Desarrollo Académico Básico de las y los servidores públicos de la Secretaría de Servicios Públicos y Medio Ambiente | X7: Banco integrado de proyectos y programas | Y7: Esperanza Joven | Z7: Amigos de Refugio | AA7: Gestión y puesta en marcha del laboratorio de análisis de Agua Potable | AB7: Camillas al Área de Urgencias (Choque) | AC7: Programa Permanente de Mantenimiento de Vialidades | AD7: Equipamiento para el desarrollo del centro de unidades policiales especializadas de Tlaquepaque (C.U.P.E.T.) | AE7: Área Alimentaria
C8: DIRECCION LEGAL-CONSULTIVA | D8: DIRECCION DE INSPECCION Y VIGILANCIA | E8: DIRECCION DE CATASTRO | H8: DIRECCION DE GESTION DEL DESEMPEÑO, EVALUACION DE RESULTADOS Y TABLERO DE CONTROL | J8: SUBDIRECCION DE BIBLIOTECAS | K8: DIRECCION DE SALUD AMBIENTAL Y CAMBIO CLIMATICO | N8: SUBDIRECCION DE GESTION GENERAL DEL RIESGO | O8: Sistema de Desarrollo Integral de la Familia (DIF) de Tlaquepaque | Q8: Atención a Reportesde Servicios Públicos, Información sobre Ayudas Sociales y Reportes en General | S8: Calificacion de Actas de Infraccion | T8: Servicio eficaz de trámite de licencias municipal precensial y en línea | U8: Actualización y control de los inventarios de los bienes muebles. | V8: Procedimientos de aclaración derivados de entrega recepción | W8: Difusión de Protocolos | X8: Seguimiento de Mesas de gestión Metropolitana ante el IMEPLAN | Y8: Inclusión con Esperanza | Z8: Equipamiento de talleres y Administrativo de Artes, Artesanías y Oficios | AA8: Estudio de Factibiloidades de Redes Hidrosanitarias | AB8: Terapia de Infusión Intravenosa | AC8: Mantenimiento a Escuelas | AD8: Proyecto de adapatación de espacio para entrenamiento de oficiales caninos | AE8: Psicología
C9: OFICINA DEL REGISTRO CIVIL NO. 1 | D9: DIRECCION DE PADRON Y LICENCIAS | E9: DIRECCION DE CONTABILIDAD Y GLOSA | H9: DIRECCION DE GESTION TERRITORIAL Y PLANEACION URBANA | J9: SUBDIRECCION DE MUSEOS | K9: SUBDIRECCION DE PARQUES, JARDINES Y GESTIÓN DEL CAMBIO CLIMÁTICO DE SERVICIOS ECOSISTEMICOS Y GESTION DEL CAMBIO CLIMATICO | N9: SUBDIRECCION DE PLANEACION ESTRATEGICA | Q9: Atencion y capacitacion a organizaciones vecinales en materia de participacion ciudadana | S9: Restablecer el servicio de trabajo social y psicología a Juzgados Cívicos Municipales | T9: Regularizacion de licencias en base a la ley de hacienda | U9: Implementar Sistema de Inventarios | V9: Visitas de Inspección | W9: Fortalecimiento y Desarrollo de Habilidades Blandas y Desarrollo Humano | X9: Gestión de recursos para la adquisición de vehículos para el seguimiento de programas de los tres niveles de gobierno | Y9: Legados de Esperanza | Z9: Equipamiento para las Bibliotecas | AA9: Equipamiento de Parque Vehicular para el Suministro de Agua Potable | AB9: Prevención de riesgo de caidas | AC9: Programa para la gestión sustentable de la infraestructura y movilidad segura. | AD9: Unidad de Proximidad Policial | AE9: Talleres de Esperanza
C10: SECRETARIA DE LA CONSEJERIA JURIDICA | D10: DIRECCION DE PADRON Y LICENCIAS 1 | E10: DIRECCION DE EGRESOS | H10: DIRECCION DEL BANCO INTEGRADO DE PROYECTOS Y PROGRAMAS | K10: SUBDIRECCION DE SERVICIOS ECOSISTEMICOS Y GESTION DEL CAMBIO CLIMATICO DE PARQUES, JARDINES Y GESTIÓN DEL CAMBIO CLIMÁTICO | N10: SUBDIRECCION DE PREVENCION AL DELITO | Q10: Conformacion de Organizaciones Vecinales | S10: Construcción y habilitación del espacio digno y seguro para la atención a mujeres víctimas de violencia | T10: Verificación de giros comerciales rezagados en el municipio de San Pedro Tlaquepaque | U10: Recursos Humanos eficiente | V10: Educación e Innovación Técnológica | W10: Fortalecimiento y Desarrollo de Habilidades Técnicas | X10: Dictamen de evaluación de solicitud de obras | Y10: Líderes de Esperanza | Z10: Mantenimiento de la infraestructura de las Bibliotecas | AA10: Entrega del Vital Líquido | AB10: Ferías de la Salud Tlaquepaque | AC10: Programa para la gestión sustentable de la infraestructura básica. | AD10: Atención a las violencias en el ámbito familiar y seguimiento a Medidas/Ordenes de Protercción emitidas en razón de Género. | AE10: Programa de Atención a la Discapacidad
D11: SUBDIRECCION DE ATENCION E INSPECCION A TIANGUIS Y ESPACIOS ABIERTOS | E11: DIRECCION DE INGRESOS | H11: SECRETARIA DE PLANIFICACION, ANALISIS Y GESTION URBANA | N11: SUBDIRECCION DE PROFESIONALIZACION Y ACREDITACION POLICIAL | Q11: Socializando y perifoneando para la cuidadania | S11: Difusión de la Cultura de Paz en conflictos comunitarios | T11: Verificación y regularización de residuos peligrosos y emisiones en talleres de laminado y pintura | U11: Mantenimiento preventivo y correctivo del parque vehicular | W11: Promoción de estilos de vida y entornos laboral, alimentaria y físicamente saludable para el personal | X11: Coordinación de actividades de las direcciones que integran la Secretaría de Planificación, Análisis y Gestión Urbana | Y11: Mujeres Colibrí | Z11: Talleres de Fomento a Cultura | AA11: Actualización de Datos de Redes Hidrosanitarias | AB11: Reinstauracion de Unidad Medica La Guadalupana | AC11: Programa para la recuperación del espacio público y regeneración del tejido social | AD11: Prevención Comunitaria de las Violencias en el ámbito familiar y por razón de género. | AE11: Inclusión y Derechos Humanos de las Personas con Discapacidad
D12: SUBDIRECCION DE ATENCION E INSPECCION DE MERCADOS | E12: DIRECCION DE RECURSOS MATERIALES | N12: SUBDIRECCION DE VIALIDAD | Q12: Campañas en Redes Sociales | S12: Atención primaria a problemas de adicción | T12: Regularizar comercio en espacio abierto en la colonia San Martín de las Flores | U12: Licitaciones Ejecutadas | W12: Tlaquepaque Universitario | Y12: Nutriendo Esperanza | Z12: XVLVII Premio Nacional de la Cerámica | AA12: Servicio de dictaminación ambiental | AB12: Vinculación de Asistencia Social | AC12: Programa Fortalecimiento institucional financiero y operativo, para la provisión de los servicios públicos municipales bajo criterios de calidad, eficiencia y oportunidad. | AD12: Programa Volanta | AE12: Protección y Atención ante casos de Violencia Familia
D13: SUBDIRECCION DE INSPECCION AMBIENTAL | E13: SUBDIRECCION DE COMPRAS Y ADQUISICIONES | N13: SUBDIRECCION DE VINCULACION CIUDADANA | S13: Orientación y Asesoría Jurídica | T13: Actualizar los padrones de los comerciantes de tianguis | U13: Capacitación para Adquisiciones | W13: Pago de Nóminas | Y13: Ojos mirando al Futuro | Z13: Museos a la Calle | AA13: Retiro de bienes en estado de abandono en la vía pública | AB13: Campañas de esterilización y vacunación antirrábica gratuitas | AC13: Programa de Inspección y Vigilancia de Tramites y Licencias de Construcción. | AD13: Gestión y adquisición de vehículo, equipos de computo y material, para una mejor atención eficiente y efizaz a los ciudadanos de San Pedro Tlaquepaque | AE13: Procuraduría de Protección de NNA
E14: SUBDIRECCION DE CONTROL DE PAGOS | N14: SUBDIRECCION JURIDICA Y DE DERECHOS HUMANOS | S14: Diplomado en MASC | T14: Recuperación de locales abandonados en merados municipales | U14: Porcentaje de presupuesto ejercido de acuerdo con criterios de eficiencia, austeridad y ahorro | Y14: Peques, Estancias de Esperanza | Z14: Museo Itinerante | AA14: Registro de ladrilleros | AB14: Atención Médica a Paciente Encamado a Domicilio | AC14: Trámites y Servicios | AD14: Gestión, adquisición y entrega de uniformes | AE14: Albergue Vista Hermosa
E15: SUBDIRECCION DE PATRIMONIO | N15: SUBDIRECCION OPERATIVA | S15: La Mediación con rumbo a tu Colonia | T15: Creación de un libro sobre la historia del Archivo Municipal | U15: Optimizar el proceso de pagos | Y15: Raíces Jóvenes | Z15: Exposiciones Temporales | AA15: Registro de fuentes fijas municipales | AD15: Gestión, adquisición y entrega de vehículos | AE15: Protección y Restitución de Derechos de Niñas. Niños y Adolescentes
S16: Atención y desahogo de los MASC | T16: Programa de Apoyo a la Infraestructura Cultural de los Estados PAICE | U16: Programa de elaboración y presentación de Cuentas Públicas | Y16: Semilleros de la Esperanza | Z16: Acondicionamiento y Equipamiento del Centro Cultural El Refugio | AA16: Denuncia ambiental ciudadana | AD16: Evaluaciones de Control de Confianza | AE16: Área Médica
S17: Apoyo Asuntos derivados por Secretaría | T17: Programa de capacitación para la clasificación, organización, transferencia, resguardo y consulta de información oficial | U17: Normalización e identificación de la TI | Y17: Tlaquepasos | Z17: Equipamiento del Departamento Promoción y Difusión Cultural | AA17: Adopta un árbol y dale vida al planeta | AD17: Credencialización de Personal Operativo | AE17: Laboratorio Clínico
S18: Consolidar el Sistema de Información de Acuerdos del Pleno | T18: Proyecto de digitalización para el Archivo Municipal | U18: Sistema de control de servicios | Y18: Tu Esperanza Vale | Z18: Rescatando nuestras Tradiciones | AA18: Operativo de Reforestación | AD18: Mantenimiento Preventivo de Armas | AE18: Por una Gestión Responsable
S19: Integración, Dictaminación de Iniciativas | T19: Campaña de divulgación cultural histórica del Archivo Muicipal a escuelas de educación básica en Tlaquepaque | U19: Instalación de Cámaras de Seguridad | Y19: Actividades Extraescolares | Z19: Permanencia Pueblo Mágico | AA19: Trituración de material organico para la elaboración de composta | AD19: Compra de armamento | AE19: Rehabilitación
S20: Participación en Sesiones del Ayuntamiento | T20: Coadyuvar en la creación de un convenio tripartita entre la A.C. Vifac, el Gobierno Municipal y Asociaciones religiosas de San Pedro Tlaquepaque | U20: Reingeniería Ciudadanía Digital | Y20: Re-conociendo a la labor docente y entrega de medalla al merito | Z20: Padrón Artesanal y Credencialización | AA20: Operativo Mantenimiento de áreas verdes | AD20: Compra de municiones | AE20: Atención a la Población en Condiciones de Emergencia
S21: Sitio Web de Actas y Acuerdos | T21: Servicio de atención a las necesidades de las distintas asociaciones religiosas del municipio | U21: Tramites y Servicios | Y21: Re-conociendo con bienestar | Z21: Festivales, Eventos, Ferías y Exposiciones | AA21: Operativo de podas preventivas | AD21: Compra de chalecos balísticos | AE21: Fortalecimiento Sociofamiliar
B22: Del 1 de Octubre al 31 de Diciembre del 2024 | S22: Reconstruccion del tejido social. Atencion a los grupos vulnerables. | T22: Trámite de Pasaporte Mexicano en Oficinas de Enlace de Tlaquepaque | Y22: Profesionalización Docente | Z22: Ferías y Exposiciones | AA22: Operativos de derribos secos | AD22: Elaboración de documentos y/o diagnósticos basados en evidencias | AE22: Atención Integral a personas a Adultos Mayores
B23: Del 1 de Enero al 31 de Marzo del 2025 | R23: Revisión documentos para firma Presidenta | X23: Alerta con la diversidad funcional | Y23: Capacitación | Z23: Parque Vehicular | AC23: Coordinación de la Politica Transversal de Recontsrucción del Tejido Social | AD23: CDC
B24: Del 1 de Abril al 30 de Junio del 2025 | R24: Atención y orientación jurídica a la ciudadanía | X24: Feria de la oferta educativa media superior y superior | Y24: Mujeres Empresarias en Tlaquepaque | Z24: Sembrando Esperanza | AC24: Sendero Seguro | AD24: Clinica Deportiva Prevención de Adicciones
B25: Del 1 de Julio al 31 de Septiembre del 2025 | R25: Capacitación Jurídica al Gobierno Municipal | X25: Educación y capacitación para el medio ambiente | Y25: Expo Emprende y Transforma 2025 | Z25: Creadores de Esperanza para el Medio Ambiente | AC25: Programa de Participación Ciudadana (Línea Segura) | AD25: Prevención de Embarazo Adolescente
S26: Participación comisiones, comités y grupos de trabajo | Y26: Cabildo infantil y juvenil | Z26: Empleo a Tu Alcance | AA26: Gobierno con Buen Papel | AD26: Actualización de Requisitos de Permanencia | AE26: Crecer sin Violencia
Y27: Aulas tecnológicas e interáctivas | Z27: Capacitación Permanente Empresarial, Cooperativas bienes y/o Servicios y Talleres Autoempleo | AA27: Trueque | AD27: Becas para Cadetes en Formación Inicial Policía de Proximidad | AE27: Situación de Calle
Y28: Abrigando tu bienestar | Z28: Vinculación directa con empresas | AA28: El Mercadito | AD28: Formación de docentes e instructores certificados | AE28: Mejoramiento Educativo
Y29: Escuelas para el bienestar | Z29: Mantenimiento y Conservación del Centro Histórico | AA29: Hacía un futuro más limpio | AD29: Convocatoria para Selección de Personal Operativo | AE29: Prevención y Detención de abuso Sexual
Y30: Graduaciones del bienestar | Z30: Exposiciones Casa Morelos | AA30: Servicio de recolección de residuos urbanos | AD30: Formación Inicial Policía de Proximidad | AE30: Beca Joven
Y31: Adecuaciones de acceso | Z31: Agenda del Espacio Público | AA31: Fortalecimiento y adiestramiento al personal operativo | AD31: Profesionalización Continua | AE31: Cabildo Juvenil
Y32: Expanción de delagaciónes del bienestar | AA32: Plataforma de Atención Ciudadana (Reportes) | AD32: Selección y Reclutamiento para plazas operativas | AE32: Cine en tu Barrio
Y33: Bienestar Tla-li | AA33: Programa de operativos de limpieza | AD33: Centro de Atención a Niños, Niñas y Adolescentes de Tlaquepaque | AE33: Coloquios Juveniles
Y34: Bienestar sin fronteras | AA34: Acciones para el ahorro del parque vehícular | AD34: Programas Preventivos | AE34: Ciltiva-T
Y35: Bienestar con Orgullo | AA35: Rehabilitación de las instalaciones de atención de aseo público | AD35: Gabinete Psicológico | AE35: Cultura en tu escuela
Y36: Rehabilitación Permanente de Caminos Rurales | AA36: Compra de unidades | AD36: ASIPT | AE36: Enchula tu barrio
Y37: Procesadora de composta orgánica. | AA37: Servicio de fumigación para prevención del dengue y otras plagas | AD37: Cascareando por la prevención | AE37: Festival Juventudes Tlaquepaque
Y38: Pozos de absorción Tecnificados. | AA38: Sustitucion de luminarias a la red de alumbrado publico. | AD38: Trotando ando por la vida y la familia | AE38: Jóvenes con arte
Y39: Conservación y mejoramiento de suelos agrícolas | AA39: Mantenimiento y reparación de luminarias a la red de alumbrado publico. | AD39: Programa del consejo municipal de Proteccion Civil de San Pedro Tlaquepaque | AE39: Jóvenes Con-Ciencia
Y40: Compra de Balastre o Gravilla | AA40: Obtención de contenedores de basura | AD40: Programa permanente de operativos de prevencion de accidentes | AE40: Juventudes Emprendedoras
Y41: Mantenimiento Dron Agricola Agras T 30 Mark DJI mod. 2023 | AA41: Digitalizacion administrativa | AD41: Programa permanente de auxilio a la poblacion para casos de emergencia y/o desastres en San Pedro Tlaquepaque | AE41: Juventudes con historia
Y42: Detección y Vacunación de Ganado Rumiante contra la Tuberculosis y Brucela. | AA42: Compra venta de espacios | AD42: Programa de evaluacion y dictaminacion de riesgos hidrometeorologicos | AE42: Juventudes a la cancha
Y43: Hidroponía | AA43: Ampliacion y adecuacion del area de archivo de catastro de cementerios | AD43: Programa de Gestion Inetrgal del Riesgo mediante visitas de inspeccion a inmuebles | AE43: Oportunidad joven
AA44: Mejora en las instalaciones | AD44: Programa de Dictaminacion de Programas Internos de Protección Civil, Estudios Generales de Riesgos y Dictaminación y Evaluación de Riesgos | AE44: Conoce tus derechos
AA45: Capacitación Continua | AD45: Programa permanente de prevencion de riesgos mediante la capacitacion a la poblacion en general | AE45: Premio de las juventudes
AA46: Inspección Carnica | AD46: Ampliación y remodelación de Bases operativas, Base Central, Base 2 (El Sauz) y Base 4 (Parques de la Victoria) | AE46: Servicio Social Integral
AA47: Participación en campañas | AD47: Equipamiento de la Base de Bomberos | AE47: Suetertón & Jugetón
AD48: Programa de Actualización del Atlas Municipal de Riesgos de San Pedro Tlaquepaque | AE48: Tlaque-Can
AD49: Programa de profecionalización, actualización, especializada y salud integral para el personal de la Dirección de Bomberos y Protección Civil | AE49: Enfoque Transversal con Perspectiva de Género
AE50: Libres por la igualdad
AE51: Vivir sin violencia
AE52: Administración y Gestión Institucional
AE53: Macro Eventos
AE54: Via recreactiva metropolitana san pedro tlaquepaque
AE55: Infraestructura
AE56: Tlaquepaque Acude

Sheet Pbr's (hidden)
C1: 352724141
C2: 352724141 | F2: 336 | G2: Indicador Operativo
C3: Secretaria | D3: Dependencia | E3: NO. | F3: Proyecto | G3: Nombre de indicador | H3: Unidad de medida | I3: Línea Base | J3: Meta
A4: =B4&F4 -> OFICINA_DE_PRESIDENCIADIRECCION DE COMUNICACION ESTRATEGICA1Campañas en Redes Sociales | B4: =C4&D4&E4 -> OFICINA_DE_PRESIDENCIADIRECCION DE COMUNICACION ESTRATEGICA1 | C4: OFICINA_DE_PRESIDENCIA | D4: DIRECCION DE COMUNICACION ESTRATEGICA | E4: =COUNTIF($D$4:D4,D4:D4) -> 1 | F4: Campañas en Redes Sociales | G4: Porcentaje de campañas realizadas en Redes Sociales | H4: Número de campañas realizadas | I4: 0 | J4: 35 | K4: GRISELDA MEDRANO CRUZ | L4: 33 10 57 60 08 | M4: mgriselda672@gmail.com Y daniela.neri@tlaquepaque.gob.mx
A5: =B5&F5 -> OFICINA_DE_PRESIDENCIADIRECCION DE ATENCION Y VINCULACION CIUDADANA1Atención a Reportes de Servicios Públicos, Información sobre Ayudas Sociales y Reportes en General | B5: OFICINA_DE_PRESIDENCIADIRECCION DE ATENCION Y VINCULACION CIUDADANA1 | C5: OFICINA_DE_PRESIDENCIA | D5: DIRECCION DE ATENCION Y VINCULACION CIUDADANA | E5: =COUNTIF($D$4:D5,D5:D5) -> 1 | F5: Atención a Reportes de Servicios Públicos, Información sobre Ayudas Sociales y Reportes en General | G5: Porcentaje de reportes atendidos mediante la plataforma de ciudadanía digital, así como de manera presencial y vía telefónica. | H5: Reportes atendidos tanto en plataforma de ciudadanía digital, vía telefónica, así como en ventanilla | I5: 7500 | J5: 9500 | K5: Lourdes Hernández Rojas | L5: 33.28.10.66.00 | M5: luhrojas.shadday@gmail.com
A6: OFICINA_DE_PRESIDENCIASUBDIRECCION DE GESTION DE PARTICIPACION TERRITORIAL1Atención y capacitación a organizaciones vecinales en materia de participación ciudadana | B6: OFICINA_DE_PRESIDENCIASUBDIRECCION DE GESTION DE PARTICIPACION TERRITORIAL1 | C6: OFICINA_DE_PRESIDENCIA | D6: SUBDIRECCION DE GESTION DE PARTICIPACION TERRITORIAL | E6: =COUNTIF($D$4:D6,D6:D6) -> 1 | F6: Atención y capacitación a organizaciones vecinales en materia de participación ciudadana | G6: Atención y capacitación a organizaciones vecinales en materia de participación ciudadana | H6: Numero atenciones y capacitaciones | I6: 80 | J6: 80 | K6: Octavio Cesar Huerta Diaz | L6: 3313085238 | M6: hudo77@hotmail.com
A7: OFICINA_DE_PRESIDENCIASUBDIRECCION DE GESTION DE PARTICIPACION TERRITORIAL2Actualización de Organizaciones Vecinales | B7: OFICINA_DE_PRESIDENCIASUBDIRECCION DE GESTION DE PARTICIPACION TERRITORIAL2 | C7: OFICINA_DE_PRESIDENCIA | D7: SUBDIRECCION DE GESTION DE PARTICIPACION TERRITORIAL | E7: =COUNTIF($D$4:D7,D7:D7) -> 2 | F7: Actualización de Organizaciones Vecinales | G7: Porcentaje de avance en la conformación de organizaciones vecinales de participación ciudadana | H7: Numero de Conformaciones de Organizaciones Vecinales, realizadas | I7: 60 | J7: 65 | K7: Octavio Cesar Huerta Diaz | L7: 3313085238 | M7: hudo77@hotmail.com
A8: OFICINA_DE_PRESIDENCIASUBDIRECCION DE GESTION DE PARTICIPACION TERRITORIAL3Socializando y perifoneando para la ciudadanía | B8: OFICINA_DE_PRESIDENCIASUBDIRECCION DE GESTION DE PARTICIPACION TERRITORIAL3 | C8: OFICINA_DE_PRESIDENCIA | D8: SUBDIRECCION DE GESTION DE PARTICIPACION TERRITORIAL | E8: =COUNTIF($D$4:D8,D8:D8) -> 3 | F8: Socializando y perifoneando para la ciudadanía | G8: Socializando y perifoneando para la ciudadanía | H8: Numero de socializaciones | I8: 500 | J8: 350 | K8: Octavio Cesar Huerta Diaz | L8: 3313085238 | M8: hudo77@hotmail.com
A9: OFICINA_DE_PRESIDENCIASUBDIRECCION DE GESTION DE PARTICIPACION TERRITORIAL4Socializando y perifoneando para la ciudadanía | B9: OFICINA_DE_PRESIDENCIASUBDIRECCION DE GESTION DE PARTICIPACION TERRITORIAL4 | C9: OFICINA_DE_PRESIDENCIA | D9: SUBDIRECCION DE GESTION DE PARTICIPACION TERRITORIAL | E9: =COUNTIF($D$4:D9,D9:D9) -> 4 | F9: Socializando y perifoneando para la ciudadanía | G9: Socializando y perifoneando para la ciudadanía | H9: Numero de perifoneó | I9: 300 | J9: 250 | K9: Octavio Cesar Huerta Diaz | L9: 3313085238 | M9: hudo77@hotmail.com
A10: OFICINA_DE_PRESIDENCIAUNIDAD DE TRANSPARENCIA1Programa de Transparencia y Atención de solicitudes de acceso a la información y protección de datos personales | B10: OFICINA_DE_PRESIDENCIAUNIDAD DE TRANSPARENCIA1 | C10: OFICINA_DE_PRESIDENCIA | D10: UNIDAD DE TRANSPARENCIA | E10: =COUNTIF($D$4:D10,D10:D10) -> 1 | F10: Programa de Transparencia y Atención de solicitudes de acceso a la información y protección de datos personales | G10: Porcentaje de atención de solicitudes de acceso a la información y protección de datos personales, | H10: total de solicitudes atendidas | I10: 1800 | J10: 2000 | K10: Cesar Ignacio Bocanegra Alvarado | L10: 3310576030 | M10: tlaquepaque.transparencia@gmail.com
A11: SINDICATURASINDICATURA1Actualización de los instrumentos de control de Archivo de Tramite de la Sindicatura | B11: SINDICATURASINDICATURA1 | C11: SINDICATURA | D11: SINDICATURA | E11: =COUNTIF($D$4:D11,D11:D11) -> 1 | F11: Actualización de los instrumentos de control de Archivo de Tramite de la Sindicatura | G11: Instrumentos de Control de Archivo | H11: Unidad | I11: 0 | J11: 1 | K11: Juan Manuel Rodríguez Patiño | L11: 3338386294 | M11: juan.rodriguez@tlaquepaque.gob.mx
A12: SINDICATURASINDICATURA2Presentación de Iniciativas de modificación de normatividad | B12: SINDICATURASINDICATURA2 | C12: SINDICATURA | D12: SINDICATURA | E12: =COUNTIF($D$4:D12,D12:D12) -> 2 | F12: Presentación de Iniciativas de modificación de normatividad | G12: Iniciativas presentadas | H12: Unidad | I12: 0 | J12: 3 | K12: Juan Manuel Rodríguez Patiño | L12: 3338386294 | M12: juan.rodriguez@tlaquepaque.gob.mx
A13: SINDICATURADIRECCION JURIDICA1Servicios de asesoramiento legal y jurídico a la población que presenta vulnerabilidad legal e indefensión de su patrimonio | B13: SINDICATURADIRECCION JURIDICA1 | C13: SINDICATURA | D13: DIRECCION JURIDICA | E13: =COUNTIF($D$4:D13,D13:D13) -> 1 | F13: Servicios de asesoramiento legal y jurídico a la población que presenta vulnerabilidad legal e indefensión de su patrimonio | G13: Porcentaje de asesorías gratuitas en materia legal otorgadas a la población que lo requiera y solicite | H13: número de asesorías otorgadas | I13: 45 | J13: 50 | K13: Lic. José Luis de la Mora Gálvez | L13: 3310576022 | M13: maria.gomez@tlaquepaque.gob.mx
A14: SINDICATURADEPARTAMENTO DE MEJORA REGULATORIA1Catálogo Municipal de Trámites y Servicios | B14: =C14&D14&E14 -> SINDICATURADEPARTAMENTO DE MEJORA REGULATORIA1 | C14: SINDICATURA | D14: DEPARTAMENTO DE MEJORA REGULATORIA | E14: =COUNTIF($D$4:D14,D14:D14) -> 1 | F14: Catálogo Municipal de Trámites y Servicios | G14: Requerimientos para la actualización del Catálogo Municipal de Trámites y Servicios | H14: Porcentaje de Requerimientos realizados a las dependencias. | I14: 0 | J14: 57 | K14: Leticia Cuellar Mena | M14: mejoraregulatoriatlaquepaque@gmail.com
A15: OFICINA_DE_PRESIDENCIAUNIDAD DE TRANSPARENCIA2Programa de Transparencia y Atención de solicitudes de acceso a la información y protección de datos personales | B15: OFICINA_DE_PRESIDENCIAUNIDAD DE TRANSPARENCIA2 | C15: OFICINA_DE_PRESIDENCIA | D15: UNIDAD DE TRANSPARENCIA | E15: =COUNTIF($D$4:D15,D15:D15) -> 2 | F15: Programa de Transparencia y Atención de solicitudes de acceso a la información y protección de datos personales | G15: Porcentaje de etapas de gestión realizadas para el fortalecimiento del equipamiento de la Unidad de Transparencia | H15: Número de etapas de gestión | I15: 0 | J15: 5 | K15: Cesar Ignacio Bocanegra Alvarado | L15: 3310576030 | M15: tlaquepaque.transparencia@gmail.com
A16: SINDICATURADEPARTAMENTO DE CONTRATOS Y CONVENIOS1Servicio de Revisión Contratos | B16: SINDICATURADEPARTAMENTO DE CONTRATOS Y CONVENIOS1 | C16: SINDICATURA | D16: DEPARTAMENTO DE CONTRATOS Y CONVENIOS | E16: =COUNTIF($D$4:D16,D16:D16) -> 1 | F16: Servicio de Revisión Contratos | G16: Porcentaje de solicitudes de revisión de contratos para firma de la Sindicatura requerido por las áreas para la continuación y eficacia de la actividad municipal, realizadas | H16: Número de solicitudes de revisión de contratos realizadas | I16: 300 | J16: 350 | K16: IRMA ROCIO VALDEZ GONZÁLEZ
A17: SECRETARIA_DE_LA_CONSEJERIA_JURIDICASECRETARIA DE LA CONSEJERIA JURIDICA1Revisión Documentos Para Firma Presidenta | B17: SECRETARIA_DE_LA_CONSEJERIA_JURIDICASECRETARIA DE LA CONSEJERIA JURIDICA1 | C17: SECRETARIA_DE_LA_CONSEJERIA_JURIDICA | D17: SECRETARIA DE LA CONSEJERIA JURIDICA | E17: =COUNTIF($D$4:D17,D17:D17) -> 1 | F17: Revisión Documentos Para Firma Presidenta | G17: Porcentaje de documentos revisados para firma Presidenta | H17: Número de documentos revisados | I17: 550 | J17: 600 | K17: Lic. Mario Arturo corona Guillén | M17: mario.corona@tlaquepaque,gob.mx
A18: SECRETARIA_DE_LA_CONSEJERIA_JURIDICASECRETARIA DE LA CONSEJERIA JURIDICA2Atención Y Orientación Jurídica A La Ciudadanía | B18: SECRETARIA_DE_LA_CONSEJERIA_JURIDICASECRETARIA DE LA CONSEJERIA JURIDICA2 | C18: SECRETARIA_DE_LA_CONSEJERIA_JURIDICA | D18: SECRETARIA DE LA CONSEJERIA JURIDICA | E18: =COUNTIF($D$4:D18,D18:D18) -> 2 | F18: Atención Y Orientación Jurídica A La Ciudadanía | G18: Porcentaje de solicitudes de atención y orientación a la ciudadanía | H18: Numero de atenciones y orientaciones | I18: 0 | J18: 18 | K18: Lic. Mario Arturo corona Guillén | M18: mario.corona@tlaquepaque,gob.mx
A19: SECRETARIA_DE_LA_CONSEJERIA_JURIDICASECRETARIA DE LA CONSEJERIA JURIDICA3Capacitación Jurídica Al Gobierno Municipal | B19: SECRETARIA_DE_LA_CONSEJERIA_JURIDICASECRETARIA DE LA CONSEJERIA JURIDICA3 | C19: SECRETARIA_DE_LA_CONSEJERIA_JURIDICA | D19: SECRETARIA DE LA CONSEJERIA JURIDICA | E19: =COUNTIF($D$4:D19,D19:D19) -> 3 | F19: Capacitación Jurídica Al Gobierno Municipal | G19: Porcentaje de Capacitaciones solicitadas | H19: Número de Capacitaciones realizadas | I19: 0 | J19: 6 | K19: Lic. Mario Arturo corona Guillén | M19: mario.corona@tlaquepaque,gob.mx
A20: SECRETARIA_DE_LA_CONSEJERIA_JURIDICASECRETARIA DE LA CONSEJERIA JURIDICA4Participación Comisiones, Comités Y Grupos De Trabajo | B20: SECRETARIA_DE_LA_CONSEJERIA_JURIDICASECRETARIA DE LA CONSEJERIA JURIDICA4 | C20: SECRETARIA_DE_LA_CONSEJERIA_JURIDICA | D20: SECRETARIA DE LA CONSEJERIA JURIDICA | E20: =COUNTIF($D$4:D20,D20:D20) -> 4 | F20: Participación Comisiones, Comités Y Grupos De Trabajo | G20: Porcentaje de atención a comisiones, comités, grupos de trabajo y reuniones | H20: Número de asistencia a comisiones, comités, grupos de trabajo y reuniones | I20: 0 | J20: 10 | K20: Lic. Mario Arturo Corona Guillén | M20: gerardo.hernandez@tlaquepaque.gob.mx
A21: SECRETARIA_DE_LA_CONSEJERIA_JURIDICADIRECCION LEGAL-CONSULTIVA1Opiniones Jurídicas | B21: SECRETARIA_DE_LA_CONSEJERIA_JURIDICADIRECCION LEGAL-CONSULTIVA1 | C21: SECRETARIA_DE_LA_CONSEJERIA_JURIDICA | D21: DIRECCION LEGAL-CONSULTIVA | E21: =COUNTIF($D$4:D21,D21:D21) -> 1 | F21: Opiniones Jurídicas | G21: Porcentaje de opiniones jurídicas que se emiten | H21: Número de opiniones jurídicas que se emiten | I21: 0 | J21: 10 | K21: Mtro. Gerardo Natanael Hernández Ortiz
A22: SECRETARIA_DE_LA_CONSEJERIA_JURIDICADIRECCION LEGAL-CONSULTIVA2Consultas Y Asesoría Jurídica | B22: SECRETARIA_DE_LA_CONSEJERIA_JURIDICADIRECCION LEGAL-CONSULTIVA2 | C22: SECRETARIA_DE_LA_CONSEJERIA_JURIDICA | D22: DIRECCION LEGAL-CONSULTIVA | E22: =COUNTIF($D$4:D22,D22:D22) -> 2 | F22: Consultas Y Asesoría Jurídica | G22: Porcentaje de atención a consultas y asesoría jurídica | H22: Número de atenciones a consultas y asesorías jurídicas | I22: 0 | J22: 10 | K22: Mtro. Gerardo Natanael Hernández Ortiz | M22: gerardo.hernandez@tlaquepaque.gob.mx
A23: SECRETARIA_DE_LA_CONSEJERIA_JURIDICADEPARTAMENTO DE RECLUTAMIENTO MILITAR1Cartillas Militares | B23: SECRETARIA_DE_LA_CONSEJERIA_JURIDICADEPARTAMENTO DE RECLUTAMIENTO MILITAR1 | C23: SECRETARIA_DE_LA_CONSEJERIA_JURIDICA | D23: DEPARTAMENTO DE RECLUTAMIENTO MILITAR | E23: =COUNTIF($D$4:D23,D23:D23) -> 1 | F23: Cartillas Militares | G23: Agencias y Delegaciones Municipales y colonias que se encuentren en las orillas del municipio de San Pedro Tlaquepaque | H23: Cartillas Militares | I23: 1200 | J23: 1500 | K23: Arnulfo Piceno Rodríguez | L23: 3310571912 y 3338371379 | M23: juntamunicipaltlq@gmail.com
A24: SECRETARIA_DE_LA_CONSEJERIA_JURIDICADIRECCION DE REGISTRO CIVIL1Celebración de Matrimonios en Lugares emblemáticos | B24: SECRETARIA_DE_LA_CONSEJERIA_JURIDICADIRECCION DE REGISTRO CIVIL1 | C24: SECRETARIA_DE_LA_CONSEJERIA_JURIDICA | D24: DIRECCION DE REGISTRO CIVIL | E24: =COUNTIF($D$4:D24,D24:D24) -> 1 | F24: Celebración de Matrimonios en Lugares emblemáticos | G24: Cantidad de matrimonios a celebrar en lugares emblemáticos | H24: Número de actas realizadas | I24: 0 | J24: 100 | K24: Lic. Jorge Mendoza Ruíz/ Diana Belén Gutiérrez Muñoz | L24: 3338371378 | M24: registro.direccion98@gmail.com
A25: SECRETARIA_DE_LA_CONSEJERIA_JURIDICADIRECCION DE REGISTRO CIVIL2Celebración de Matrimonios en Lugares emblemáticos | B25: SECRETARIA_DE_LA_CONSEJERIA_JURIDICADIRECCION DE REGISTRO CIVIL2 | C25: SECRETARIA_DE_LA_CONSEJERIA_JURIDICA | D25: DIRECCION DE REGISTRO CIVIL | E25: =COUNTIF($D$4:D25,D25:D25) -> 2 | F25: Celebración de Matrimonios en Lugares emblemáticos | G25: Captación de recurso con la ejecución del proyecto | H25: Recaudación por concepto de derechos | I25: 0 | J25: 500000 | K25: Lic. Jorge Mendoza Ruíz/ Diana Belén Gutiérrez Muñoz | L25: 3338371378 | M25: registro.direccion98@gmail.com
A26: SECRETARIA_DE_LA_CONSEJERIA_JURIDICAOFICINA DEL REGISTRO CIVIL NO. 11Campaña de Integración Familiar 2025 | B26: SECRETARIA_DE_LA_CONSEJERIA_JURIDICAOFICINA DEL REGISTRO CIVIL NO. 11 | C26: SECRETARIA_DE_LA_CONSEJERIA_JURIDICA | D26: OFICINA DEL REGISTRO CIVIL NO. 1 | E26: =COUNTIF($D$4:D26,D26:D26) -> 1 | F26: Campaña de Integración Familiar 2025 | G26: Porcentaje de actas de matrimonio realizadas en la Campaña de Integración Familiar 2025 | H26: Número de actas realizadas | I26: 0 | J26: 100 | K26: Licenciado Jorge Mendoza Ruiz / Diana Belén Gutiérrez Muñoz | L26: 3837 1378 | M26: registro.direccion98@gmail.com
A27: SECRETARIA_DE_LA_CONSEJERIA_JURIDICAOFICINA DEL REGISTRO CIVIL NO. 12Campaña de Integración Familiar 2025 | B27: SECRETARIA_DE_LA_CONSEJERIA_JURIDICAOFICINA DEL REGISTRO CIVIL NO. 12 | C27: SECRETARIA_DE_LA_CONSEJERIA_JURIDICA | D27: OFICINA DEL REGISTRO CIVIL NO. 1 | E27: =COUNTIF($D$4:D27,D27:D27) -> 2 | F27: Campaña de Integración Familiar 2025 | G27: Reducción en la generación de actas de nacimiento extemporáneas de las niñas, niños, adolescentes, adultos y adultos mayores en la Campaña de Integración Familiar 2025 | H27: Número de actas realizadas | I27: 222 | J27: 200 | K27: Licenciado Jorge Mendoza Ruiz / Diana Belén Gutiérrez Muñoz | L27: 3837 1378 | M27: registro.direccion98@gmail.com
A28: SECRETARIA_DE_LA_CONSEJERIA_JURIDICAOFICINA DEL REGISTRO CIVIL NO. 13Campaña de Integración Familiar 2025 | B28: SECRETARIA_DE_LA_CONSEJERIA_JURIDICAOFICINA DEL REGISTRO CIVIL NO. 13 | C28: SECRETARIA_DE_LA_CONSEJERIA_JURIDICA | D28: OFICINA DEL REGISTRO CIVIL NO. 1 | E28: =COUNTIF($D$4:D28,D28:D28) -> 3 | F28: Campaña de Integración Familiar 2025 | G28: Porcentaje de actas de reconocimiento de hijos en la Campaña de Integración Familiar 2025 | H28: Número de actas realizadas | I28: 65 | J28: 70 | K28: Licenciado Jorge Mendoza Ruiz / Diana Belén Gutiérrez Muñoz | L28: 3837 1378 | M28: registro.direccion98@gmail.com
A29: SECRETARIA_DE_LA_CONSEJERIA_JURIDICADIRECCION DE MEDIACION Y JUZGADOS CIVICOS MUNICIPALES1Calificación de Actas de Infracción | B29: SECRETARIA_DE_LA_CONSEJERIA_JURIDICADIRECCION DE MEDIACION Y JUZGADOS CIVICOS MUNICIPALES1 | C29: SECRETARIA_DE_LA_CONSEJERIA_JURIDICA | D29: DIRECCION DE MEDIACION Y JUZGADOS CIVICOS MUNICIPALES | E29: =COUNTIF($D$4:D29,D29:D29) -> 1 | F29: Calificación de Actas de Infracción | G29: Calificación de las actas de Infracción | H29: calificaciones | I29: 1770 | J29: No podemos dar meta ya que dependemos de las oficinas de inspección y vigilancia | K29: Lic. Juan Manuel Martínez Orozco | L29: 33-35-98-21-11 | M29: jmabogadosjuris@gmail.com
A30: SECRETARIA_DE_LA_CONSEJERIA_JURIDICADIRECCION DE MEDIACION Y JUZGADOS CIVICOS MUNICIPALES2Difusión de la Cultura de Paz en conflictos comunitarios | B30: SECRETARIA_DE_LA_CONSEJERIA_JURIDICADIRECCION DE MEDIACION Y JUZGADOS CIVICOS MUNICIPALES2 | C30: SECRETARIA_DE_LA_CONSEJERIA_JURIDICA | D30: DIRECCION DE MEDIACION Y JUZGADOS CIVICOS MUNICIPALES | E30: =COUNTIF($D$4:D30,D30:D30) -> 2 | F30: Difusión de la Cultura de Paz en conflictos comunitarios | G30: Número de colonias visitadas | H30: Colonias | I30: 0 | J30: 20 | K30: CLAUDIA LARA GARZA | L30: 3310576279 | M30: municipaljuez@gmail.com
A31: SECRETARIA_DE_LA_CONSEJERIA_JURIDICADIRECCION DE MEDIACION Y JUZGADOS CIVICOS MUNICIPALES3Orientación y Asesoría Jurídica | B31: SECRETARIA_DE_LA_CONSEJERIA_JURIDICADIRECCION DE MEDIACION Y JUZGADOS CIVICOS MUNICIPALES3 | C31: SECRETARIA_DE_LA_CONSEJERIA_JURIDICA | D31: DIRECCION DE MEDIACION Y JUZGADOS CIVICOS MUNICIPALES | E31: =COUNTIF($D$4:D31,D31:D31) -> 3 | F31: Orientación y Asesoría Jurídica | G31: Desarrollo de Orientación y Asesoría Jurídica | H31: Asesoría Jurídica. | I31: 1000 | J31: 1000 | K31: Lic. Luis Eduardo López Ramírez | L31: 3338423000 | M31: lic_eduardo19@hotmail.com
A32: SECRETARIA_DE_LA_CONSEJERIA_JURIDICADIRECCION DE MEDIACION Y JUZGADOS CIVICOS MUNICIPALES4La Mediación Con Rumbo A Tu Colonia | B32: SECRETARIA_DE_LA_CONSEJERIA_JURIDICADIRECCION DE MEDIACION Y JUZGADOS CIVICOS MUNICIPALES4 | C32: SECRETARIA_DE_LA_CONSEJERIA_JURIDICA | D32: DIRECCION DE MEDIACION Y JUZGADOS CIVICOS MUNICIPALES | E32: =COUNTIF($D$4:D32,D32:D32) -> 4 | F32: La Mediación Con Rumbo A Tu Colonia | G32: LA MEDIACIÓN Y CONCILIACION CON RUMBO A TU COLONIA” | H32: Capacitaciones | I32: 0 | J32: 12 | K32: Lic. Luis Eduardo López Ramírez | L32: 3338423000 | M32: lic_eduardo19@hotmail.com
A33: SECRETARIA_DE_LA_CONSEJERIA_JURIDICADIRECCION DE MEDIACION Y JUZGADOS CIVICOS MUNICIPALES5Atención y desahogo de los MASC | B33: SECRETARIA_DE_LA_CONSEJERIA_JURIDICADIRECCION DE MEDIACION Y JUZGADOS CIVICOS MUNICIPALES5 | C33: SECRETARIA_DE_LA_CONSEJERIA_JURIDICA | D33: DIRECCION DE MEDIACION Y JUZGADOS CIVICOS MUNICIPALES | E33: =COUNTIF($D$4:D33,D33:D33) -> 5 | F33: Atención y desahogo de los MASC | G33: Desarrollo de expedientes de mediación | H33: Expedientes | I33: 700 | J33: 700 | K33: Lic. Luis Eduardo López Ramírez | L33: 3338423000 | M33: lic_eduardo19@hotmail.com
A34: SECRETARIA_DE_LA_CONSEJERIA_JURIDICADIRECCION DE MEDIACION Y JUZGADOS CIVICOS MUNICIPALES6Atención y desahogo de los MASC | B34: SECRETARIA_DE_LA_CONSEJERIA_JURIDICADIRECCION DE MEDIACION Y JUZGADOS CIVICOS MUNICIPALES6 | C34: SECRETARIA_DE_LA_CONSEJERIA_JURIDICA | D34: DIRECCION DE MEDIACION Y JUZGADOS CIVICOS MUNICIPALES | E34: =COUNTIF($D$4:D34,D34:D34) -> 6 | F34: Atención y desahogo de los MASC | G34: Conclusión de procedimientos en Convenio final | H34: Convenios | I34: 350 | J34: 350 | K34: Lic. Luis Eduardo López Ramírez | L34: 3338423000 | M34: lic_eduardo19@hotmail.com
A35: SECRETARIA_DE_LA_CONSEJERIA_JURIDICADIRECCION DE MEDIACION Y JUZGADOS CIVICOS MUNICIPALES7Servicio de trabajo social y psicología a Juzgados Cívicos Municipales | B35: SECRETARIA_DE_LA_CONSEJERIA_JURIDICADIRECCION DE MEDIACION Y JUZGADOS CIVICOS MUNICIPALES7 | C35: SECRETARIA_DE_LA_CONSEJERIA_JURIDICA | D35: DIRECCION DE MEDIACION Y JUZGADOS CIVICOS MUNICIPALES | E35: =COUNTIF($D$4:D35,D35:D35) -> 7 | F35: Servicio de trabajo social y psicología a Juzgados Cívicos Municipales | G35: Porcentaje de etapas de gestión para incorporar personal de Trabajo Social y/o Psicología a los Juzgados Cívicos | H35: Eficacia | I35: 0 | J35: 3 | K35: Lic. Claudia Lara Garza | M35: municipaljuez@gmail.com
A36: SECRETARIA_DE_LA_CONSEJERIA_JURIDICADIRECCION DE APOYO A CABILDO1Sitio Web de Actas y Acuerdos | B36: SECRETARIA_DE_LA_CONSEJERIA_JURIDICADIRECCION DE APOYO A CABILDO1 | C36: SECRETARIA_DE_LA_CONSEJERIA_JURIDICA | D36: DIRECCION DE APOYO A CABILDO | E36: =COUNTIF($D$4:D36,D36:D36) -> 1 | F36: Sitio Web de Actas y Acuerdos | G36: Porcentaje de avance en las etapas de actualización del Sitio Web de Actas y Acuerdos | H36: Número de etapas realizadas | I36: 4 | J36: 5 | K36: Marisol Martínez Quiroz | L36: 3310576035 | M36: apoyoacomisiones@gmail.com
A37: SECRETARIA_DE_LA_CONSEJERIA_JURIDICADIRECCION DE APOYO A CABILDO2Participación En Sesiones Del Ayuntamiento | B37: SECRETARIA_DE_LA_CONSEJERIA_JURIDICADIRECCION DE APOYO A CABILDO2 | C37: SECRETARIA_DE_LA_CONSEJERIA_JURIDICA | D37: DIRECCION DE APOYO A CABILDO | E37: =COUNTIF($D$4:D37,D37:D37) -> 2 | F37: Participación En Sesiones Del Ayuntamiento | G37: Porcentaje de Sesiones del Pleno realizadas | H37: Sesiones realizadas | I37: 0 | J37: 12 | K37: Marisol Martínez Quiroz | L37: 3310576035 | M37: apoyoacomisiones@gmail.com
A38: SECRETARIA_DE_LA_CONSEJERIA_JURIDICADIRECCION DE APOYO A CABILDO3Integración, Dictaminación de Iniciativas | B38: SECRETARIA_DE_LA_CONSEJERIA_JURIDICADIRECCION DE APOYO A CABILDO3 | C38: SECRETARIA_DE_LA_CONSEJERIA_JURIDICA | D38: DIRECCION DE APOYO A CABILDO | E38: =COUNTIF($D$4:D38,D38:D38) -> 3 | F38: Integración, Dictaminación de Iniciativas | G38: Porcentaje de Iniciativas elaboradas | H38: Número de iniciativas elaboradas | I38: 0 | J38: 40 | K38: Marisol Martínez Quiroz | L38: 3310576035 | M38: apoyoacomisiones@gmail.com
A39: SECRETARIA_DE_LA_CONSEJERIA_JURIDICADIRECCION DE APOYO A CABILDO4Consolidar El Sistema De Información De Acuerdos Del Pleno | B39: SECRETARIA_DE_LA_CONSEJERIA_JURIDICADIRECCION DE APOYO A CABILDO4 | C39: SECRETARIA_DE_LA_CONSEJERIA_JURIDICA | D39: DIRECCION DE APOYO A CABILDO | E39: =COUNTIF($D$4:D39,D39:D39) -> 4 | F39: Consolidar El Sistema De Información De Acuerdos Del Pleno | G39: Porcentaje de avance en la identificación del estatus que guardan los puntos de acuerdo aprobados por el pleno del ayuntamiento | H39: Número de puntos de acuerdo identificados en estatus de seguimiento | I39: 0 | J39: 40 | K39: Marisol Martínez Quiroz | L39: 3310576035 | M39: apoyoacomisiones@gmail.com
A40: SECRETARIA_DE_LA_CONSEJERIA_JURIDICADIRECCION DE APOYO A CABILDO5Apoyo Asuntos derivados por Secretaría | B40: SECRETARIA_DE_LA_CONSEJERIA_JURIDICADIRECCION DE APOYO A CABILDO5 | C40: SECRETARIA_DE_LA_CONSEJERIA_JURIDICA | D40: DIRECCION DE APOYO A CABILDO | E40: =COUNTIF($D$4:D40,D40:D40) -> 5 | F40: Apoyo Asuntos derivados por Secretaría | G40: Porcentaje de avance en la identificación del estatus que guardan los puntos de acuerdo aprobados por el pleno del ayuntamiento | H40: Número de puntos de acuerdo identificados en estatus de seguimiento | I40: 0 | J40: 40 | K40: Marisol Martínez Quiroz | L40: 3310576035 | M40: apoyoacomisiones@gmail.com
A41: SECRETARIA_DE_LA_CONSEJERIA_JURIDICADIRECCION DE DERECHOS HUMANOS1Atención a los grupos vulnerables. | B41: SECRETARIA_DE_LA_CONSEJERIA_JURIDICADIRECCION DE DERECHOS HUMANOS1 | C41: SECRETARIA_DE_LA_CONSEJERIA_JURIDICA | D41: DIRECCION DE DERECHOS HUMANOS | E41: =COUNTIF($D$4:D41,D41:D41) -> 1 | F41: Atención a los grupos vulnerables. | G41: Porcentaje de Secretarías con personal capacitado en materia de Derechos Humanos | H41: Número de Secretarías capacitadas | I41: 0 | J41: 10 | K41: Bertha Castellanos | M41: bertha.castellanos@tlaquepaque.gob.mx
A42: SECRETARIA_DE_LA_CONSEJERIA_JURIDICADIRECCION DE DERECHOS HUMANOS2Atención a los grupos vulnerables. | B42: SECRETARIA_DE_LA_CONSEJERIA_JURIDICADIRECCION DE DERECHOS HUMANOS2 | C42: SECRETARIA_DE_LA_CONSEJERIA_JURIDICA | D42: DIRECCION DE DERECHOS HUMANOS | E42: =COUNTIF($D$4:D42,D42:D42) -> 2 | F42: Atención a los grupos vulnerables. | G42: Porcentaje de colonias intervenidas en atención a servicios generales, protección de sus derechos y administración eficiente de los recursos. | H42: No. de colonias intervenidas | I42: 40 | J42: 60 | K42: Bertha Castellanos | M42: bertha.castellanos@tlaquepaque.gob.mx
A43: SECRETARIA_DE_GOBERNANZA_Y_TERRITORIODIRECCION DE DELEGACIONES Y AGENCIAS1Atención a Solicitudes Ciudadanas | B43: SECRETARIA_DE_GOBERNANZA_Y_TERRITORIODIRECCION DE DELEGACIONES Y AGENCIAS1 | C43: SECRETARIA_DE_GOBERNANZA_Y_TERRITORIO | D43: DIRECCION DE DELEGACIONES Y AGENCIAS | E43: =COUNTIF($D$4:D43,D43:D43) -> 1 | F43: Atención a Solicitudes Ciudadanas | G43: PORCENTAJE DE SOLICITUDES CANALIZADAS PARA SU ATENCION | H43: PORCENTAJE DE SOLICITUDES CALALIZADAS | I43: 1740 | J43: 2000 | K43: JOSE ALFREDO ZAPATA SILVA | L43: 3336572403 | M43: direccion.delegaciones@tlaquepaque.gob.mx
A44: SECRETARIA_DE_GOBERNANZA_Y_TERRITORIODIRECCION DE DELEGACIONES Y AGENCIAS2Brigadas de Mantenimiento y Recuperación de Espacios Públicos | B44: SECRETARIA_DE_GOBERNANZA_Y_TERRITORIODIRECCION DE DELEGACIONES Y AGENCIAS2 | C44: SECRETARIA_DE_GOBERNANZA_Y_TERRITORIO | D44: DIRECCION DE DELEGACIONES Y AGENCIAS | E44: =COUNTIF($D$4:D44,D44:D44) -> 2 | F44: Brigadas de Mantenimiento y Recuperación de Espacios Públicos | G44: PORCENTAJE DE BRIGADAS Y RECUPERACION DE ESPACIOS | H44: NUMERO DE BRIGADAS Y RECUERACION DE ESPACIOS | I44: 77 | J44: 85 | K44: JOSE ALFREDO ZAPATA SILVA | L44: 3336572403 | M44: direccion.delegaciones@tlaquepaque.gob.mx
A45: SECRETARIA_DE_GOBERNANZA_Y_TERRITORIODIRECCION DE DELEGACIONES Y AGENCIAS3Festividades Tradicionales Cívicas | B45: SECRETARIA_DE_GOBERNANZA_Y_TERRITORIODIRECCION DE DELEGACIONES Y AGENCIAS3 | C45: SECRETARIA_DE_GOBERNANZA_Y_TERRITORIO | D45: DIRECCION DE DELEGACIONES Y AGENCIAS | E45: =COUNTIF($D$4:D45,D45:D45) -> 3 | F45: Festividades Tradicionales Cívicas | G45: PORCENTAJE DE ASISTENTES A LAS FESTIVIDADES REALIZADAS | H45: NUMERO DE ASISTENTES | I45: 3550 | J45: 4200 | K45: JOSE ALFREDO ZAPATA SILVA | L45: 3336572403 | M45: direccion.delegaciones@tlaquepaque.gob.mx
A46: SECRETARIA_DE_GOBERNANZA_Y_TERRITORIODIRECCION DE DELEGACIONES Y AGENCIAS4Actividades Administrativas | B46: SECRETARIA_DE_GOBERNANZA_Y_TERRITORIODIRECCION DE DELEGACIONES Y AGENCIAS4 | C46: SECRETARIA_DE_GOBERNANZA_Y_TERRITORIO | D46: DIRECCION DE DELEGACIONES Y AGENCIAS | E46: =COUNTIF($D$4:D46,D46:D46) -> 4 | F46: Actividades Administrativas | G46: PORCENTAJE DE SOLICITUDES DE COMPROBANTES DE DOMICILIO | H46: NUMERO DE SOLICITUDES DE COMPROBANTES DE DOMICILIO | I46: 4300 | J46: 4650 | K46: JOSE ALFREDO ZAPATA SILVA | L46: 3336572403 | M46: direccion.delegaciones@tlaquepaque.gob.mx
A47: SECRETARIA_DE_GOBERNANZA_Y_TERRITORIODELEGACION SAN SEBASTIANITO1VISITAS A COLONIAS | B47: SECRETARIA_DE_GOBERNANZA_Y_TERRITORIODELEGACION SAN SEBASTIANITO1 | C47: SECRETARIA_DE_GOBERNANZA_Y_TERRITORIO | D47: DELEGACION SAN SEBASTIANITO | E47: =COUNTIF($D$4:D47,D47:D47) -> 1 | F47: VISITAS A COLONIAS | G47: PORCENTAJE DE RECORRIDOS PARA LA DETECCION DE LA PROBLEMATICA | H47: NUMERO DE RECORRIDOS | I47: 955 | J47: 1200 | K47: JOSE ALFREDO ZAPATA SILVA | L47: 3336572403 | M47: direccion.delegaciones@tlaquepaque.gob.mx
A48: SECRETARIA_DE_GOBERNANZA_Y_TERRITORIODIRECCION DE PADRON Y LICENCIAS1Servicio eficaz de trámite de licencias municipal presencial y en línea | B48: SECRETARIA_DE_GOBERNANZA_Y_TERRITORIODIRECCION DE PADRON Y LICENCIAS1 | C48: SECRETARIA_DE_GOBERNANZA_Y_TERRITORIO | D48: DIRECCION DE PADRON Y LICENCIAS | E48: =COUNTIF($D$4:D48,D48:D48) -> 1 | F48: Servicio eficaz de trámite de licencias municipal presencial y en línea | G48: Porcentaje de licencias municipales de giro y/o anuncio entregadas de forma presencial. | H48: Numero de licencias entregadas | I48: 2200 | J48: 2300 | K48: Kevin Daniel Vázquez Rodríguez | L48: 3317443315 | M48: vkevindaniel@gmail.com
A49: SECRETARIA_DE_GOBERNANZA_Y_TERRITORIODIRECCION DE PADRON Y LICENCIAS 11Regularización de licencias en base a la ley de hacienda | B49: SECRETARIA_DE_GOBERNANZA_Y_TERRITORIODIRECCION DE PADRON Y LICENCIAS 11 | C49: SECRETARIA_DE_GOBERNANZA_Y_TERRITORIO | D49: DIRECCION DE PADRON Y LICENCIAS 1 | E49: =COUNTIF($D$4:D49,D49:D49) -> 1 | F49: Regularización de licencias en base a la ley de hacienda | G49: porcentajes de licencias emitidas como giro anexo a licencia principal. | H49: Numero de licencias de giro anexo emitidas | I49: 0 | J49: 500 | K49: Kevin Daniel Vázquez Rodríguez | L49: 3317443315 | M49: vkevindaniel@gmail.com
A50: SECRETARIA_DE_GOBERNANZA_Y_TERRITORIODIRECCION DE INSPECCION Y VIGILANCIA1Verificación De Giros Comerciales Rezagados En El Municipio De San Pedro Tlaquepaque | B50: SECRETARIA_DE_GOBERNANZA_Y_TERRITORIODIRECCION DE INSPECCION Y VIGILANCIA1 | C50: SECRETARIA_DE_GOBERNANZA_Y_TERRITORIO | D50: DIRECCION DE INSPECCION Y VIGILANCIA | E50: =COUNTIF($D$4:D50,D50:D50) -> 1 | F50: Verificación De Giros Comerciales Rezagados En El Municipio De San Pedro Tlaquepaque | G50: Porcentaje de avance en la regularización de talleres de laminado y pintura que se encuentren fuera de Norma. | H50: Número de giros regularizados | I50: 136 | J50: 136 | K50: ING. BENITO ROJAS GUERRERO (ELABORA FORMATO GPE. MAGALY VELAZQUEZ FIGUEROA) | L50: 33-38-37-03-42 | M50: magalyvelazquez3008@gmail.com
A51: SECRETARIA_DE_GOBERNANZA_Y_TERRITORIOSUBDIRECCION DE INSPECCION AMBIENTAL1Verificación y regularización de residuos peligrosos y emisiones en talleres de laminado y pintura | B51: SECRETARIA_DE_GOBERNANZA_Y_TERRITORIOSUBDIRECCION DE INSPECCION AMBIENTAL1 | C51: SECRETARIA_DE_GOBERNANZA_Y_TERRITORIO | D51: SUBDIRECCION DE INSPECCION AMBIENTAL | E51: =COUNTIF($D$4:D51,D51:D51) -> 1 | F51: Verificación y regularización de residuos peligrosos y emisiones en talleres de laminado y pintura | G51: Porcentaje de avance en la realización de acciones para el fortalecimiento de inspección ambiental para regularizar la disposición final de los residuos peligrosos en giros de talleres que se encuentren fuera de Norma. | H51: Número de giros (talleres de laminado y pintura) programadas pendientes a regularizar la disposición final de residuos peligrosos en talleres | I51: 136 | J51: 136 | K51: ING. BENITO ROJAS GUERRERO (ELABORA FORMATO GPE. MAGALY VELAZQUEZ FIGUEROA) | L51: 33-38-37-03-42 | M51: magalyvelazquez3008@gmail.com
A52: SECRETARIA_DE_GOBERNANZA_Y_TERRITORIOSUBDIRECCION DE ATENCION E INSPECCION A TIANGUIS Y ESPACIOS ABIERTOS1Actualizar los padrones de los comerciantes de tianguis | B52: SECRETARIA_DE_GOBERNANZA_Y_TERRITORIOSUBDIRECCION DE ATENCION E INSPECCION A TIANGUIS Y ESPACIOS ABIERTOS1 | C52: SECRETARIA_DE_GOBERNANZA_Y_TERRITORIO | D52: SUBDIRECCION DE ATENCION E INSPECCION A TIANGUIS Y ESPACIOS ABIERTOS | E52: =COUNTIF($D$4:D52,D52:D52) -> 1 | F52: Actualizar los padrones de los comerciantes de tianguis | G52: PORCENTAJE DE TIANGUIS PARA LA REGULARIZAR A LOS COMERCIANTES | H52: NUMERO DE COMERCIANTES REGULARIZADOS | I52: 200 | K52: LORENA PEREZ CARDENAS | L52: 333837-0346 | M52: mercados@tlaquepaque.gob.mx
A53: SECRETARIA_DE_GOBERNANZA_Y_TERRITORIOSUBDIRECCION DE ATENCION E INSPECCION A TIANGUIS Y ESPACIOS ABIERTOS2Regularizar comercio en espacio abierto en la colonia San Martín de las Flores | B53: SECRETARIA_DE_GOBERNANZA_Y_TERRITORIOSUBDIRECCION DE ATENCION E INSPECCION A TIANGUIS Y ESPACIOS ABIERTOS2 | C53: SECRETARIA_DE_GOBERNANZA_Y_TERRITORIO | D53: SUBDIRECCION DE ATENCION E INSPECCION A TIANGUIS Y ESPACIOS ABIERTOS | E53: =COUNTIF($D$4:D53,D53:D53) -> 2 | F53: Regularizar comercio en espacio abierto en la colonia San Martín de las Flores | G53: PORCENTAJE DE OPERATIVOS PARA LA REGULARIZACIÓN DE COMERCIANTES | H53: NUMERO DE COMERCIANTES REGULARIZADOS | I53: 150 | J53: 0 | K53: LORENA PEREZ CARDENAS | L53: 333837-0346 | M53: mercados@tlaquepaque.gob.mx
A54: SECRETARIA_DE_GOBERNANZA_Y_TERRITORIOSUBDIRECCION DE ATENCION E INSPECCION DE MERCADOS1Recuperación de locales abandonados en merados municipales | B54: SECRETARIA_DE_GOBERNANZA_Y_TERRITORIOSUBDIRECCION DE ATENCION E INSPECCION DE MERCADOS1 | C54: SECRETARIA_DE_GOBERNANZA_Y_TERRITORIO | D54: SUBDIRECCION DE ATENCION E INSPECCION DE MERCADOS | E54: =COUNTIF($D$4:D54,D54:D54) -> 1 | F54: Recuperación de locales abandonados en merados municipales | G54: PORCENTAJE EN LA REALIZACION DE ACCIONES TENDIENTES A LA RECUPERACION DE LOCALES COMERCIALES EN ESTADO DE ABANDONO | H54: Número de visitas realizadas | I54: 108 | J54: 108 | K54: LIC. JORGE ALBERTO DURAN CRUZ | L54: 33 25 37 92 13 | M54: jorgeduran1@hotmail.com
A55: SECRETARIA_DE_GOBERNANZA_Y_TERRITORIODIRECCION DE ARCHIVO MUNICIPAL1Programa de capacitación para la clasificación, organización, transferencia, resguardo y consulta de información oficial | B55: SECRETARIA_DE_GOBERNANZA_Y_TERRITORIODIRECCION DE ARCHIVO MUNICIPAL1 | C55: SECRETARIA_DE_GOBERNANZA_Y_TERRITORIO | D55: DIRECCION DE ARCHIVO MUNICIPAL | E55: =COUNTIF($D$4:D55,D55:D55) -> 1 | F55: Programa de capacitación para la clasificación, organización, transferencia, resguardo y consulta de información oficial | G55: Porcentaje de Personas que acuden a la capacitación archivística respecto al total de personas citadas. | H55: Porcentaje | I55: 0.7 | J55: 0.9 | K55: Omar Agustín Gutiérrez Arana | L55: 3317662514 | M55: omar.gtza@gmail.com
A56: SECRETARIA_DE_GOBERNANZA_Y_TERRITORIODIRECCION DE ARCHIVO MUNICIPAL2Proyecto de digitalización para el Archivo Municipal | B56: SECRETARIA_DE_GOBERNANZA_Y_TERRITORIODIRECCION DE ARCHIVO MUNICIPAL2 | C56: SECRETARIA_DE_GOBERNANZA_Y_TERRITORIO | D56: DIRECCION DE ARCHIVO MUNICIPAL | E56: =COUNTIF($D$4:D56,D56:D56) -> 2 | F56: Proyecto de digitalización para el Archivo Municipal | G56: Porcentaje de documentos digitalizados respecto al total de documentos seleccionados para el proyecto | H56: Porcentaje | I56: 0 | J56: 0.4 | K56: Omar Agustín Gutiérrez Arana | L56: 3317662514 | M56: omar.gtza@gmail.com
A57: SECRETARIA_DE_GOBERNANZA_Y_TERRITORIODIRECCION DE ARCHIVO MUNICIPAL3Campaña de divulgación cultural histórica del Archivo Municipal a escuelas de educación básica en Tlaquepaque | B57: SECRETARIA_DE_GOBERNANZA_Y_TERRITORIODIRECCION DE ARCHIVO MUNICIPAL3 | C57: SECRETARIA_DE_GOBERNANZA_Y_TERRITORIO | D57: DIRECCION DE ARCHIVO MUNICIPAL | E57: =COUNTIF($D$4:D57,D57:D57) -> 3 | F57: Campaña de divulgación cultural histórica del Archivo Municipal a escuelas de educación básica en Tlaquepaque | G57: Número de escuelas de educación básica en el municipio de San Pedro Tlaquepaque que han participado en las actividades de divulgación cultural e histórica del Archivo Municipal | H57: Número de escuelas | I57: 0 | J57: 6 | K57: Omar Agustín Gutiérrez Arana | L57: 3317662514 | M57: omar.gtza@gmail.com
A58: SECRETARIA_DE_GOBERNANZA_Y_TERRITORIODEPARTAMENTO DE ASUNTOS RELIGIOSOS1Servicio de atención a las necesidades de las distintas asociaciones religiosas del municipio | B58: SECRETARIA_DE_GOBERNANZA_Y_TERRITORIODEPARTAMENTO DE ASUNTOS RELIGIOSOS1 | C58: SECRETARIA_DE_GOBERNANZA_Y_TERRITORIO | D58: DEPARTAMENTO DE ASUNTOS RELIGIOSOS | E58: =COUNTIF($D$4:D58,D58:D58) -> 1 | F58: Servicio de atención a las necesidades de las distintas asociaciones religiosas del municipio | G58: Número de asociaciones religiosas atendidas | H58: Cifra | I58: 0 | J58: 8 | K58: Omar Agustín Gutiérrez Arana | L58: 3317662514 | M58: omar.gtza@gmail.com
A59: SECRETARIA_DE_GOBERNANZA_Y_TERRITORIODEPARTAMENTO DE OFICINA DE PASAPORTES1Trámite de Pasaporte Mexicano en Oficinas de Enlace de Tlaquepaque | B59: SECRETARIA_DE_GOBERNANZA_Y_TERRITORIODEPARTAMENTO DE OFICINA DE PASAPORTES1 | C59: SECRETARIA_DE_GOBERNANZA_Y_TERRITORIO | D59: DEPARTAMENTO DE OFICINA DE PASAPORTES | E59: =COUNTIF($D$4:D59,D59:D59) -> 1 | F59: Trámite de Pasaporte Mexicano en Oficinas de Enlace de Tlaquepaque | G59: Porcentaje de trámites de expedición de pasaportes realizados. | H59: Número de pasaportes expedidos. | I59: 0 | J59: 20000 | K59: Francisco Isaac Jiménez | L59: 3335627014 ext. 2217 | M59: ometlaquepaque@hotmail.com
A60: SECRETARIA_DE_ADMINISTRACION_Y_FINANZASDIRECCION DE EGRESOS1Porcentaje De Presupuesto Ejercido De Acuerdo Con Criterios De Eficiencia, Austeridad Y Ahorro | B60: SECRETARIA_DE_ADMINISTRACION_Y_FINANZASDIRECCION DE EGRESOS1 | C60: SECRETARIA_DE_ADMINISTRACION_Y_FINANZAS | D60: DIRECCION DE EGRESOS | E60: =COUNTIF($D$4:D60,D60:D60) -> 1 | F60: Porcentaje De Presupuesto Ejercido De Acuerdo Con Criterios De Eficiencia, Austeridad Y Ahorro | G60: Porcentaje de presupuesto ejercido de acuerdo con criterios de eficiencia, austeridad y ahorro | H60: Porcentaje de presupuesto ejercido de acuerdo con criterios de eficiencia, austeridad y ahorro | I60: 2624511115 | J60: 2624511116 | K60: Dr. Carlos Raúl Magaña Ramírez | L60: 33-14-52-65-88 | M60: carlos.magana@univa.mx y carlosgdl_vd@hotmail.com
A61: SECRETARIA_DE_ADMINISTRACION_Y_FINANZASSUBDIRECCION DE CONTROL DE PAGOS1Optimizar el proceso de pagos | B61: SECRETARIA_DE_ADMINISTRACION_Y_FINANZASSUBDIRECCION DE CONTROL DE PAGOS1 | C61: SECRETARIA_DE_ADMINISTRACION_Y_FINANZAS | D61: SUBDIRECCION DE CONTROL DE PAGOS | E61: =COUNTIF($D$4:D61,D61:D61) -> 1 | F61: Optimizar el proceso de pagos | G61: Optimizar el proceso de pago a proveedores y de prestaciones a Servidores Públicos. | H61: Número de transacciones (suma de cheques y transferencias realizadas en el trimestre de Julio a Septiembre) | I61: Transferencias 1061 Cheques 713 | J61: Incrementar en un 5% el número de transacciones. | K61: JORGE ARMANDO MAGALLÓN LOMELÍ | L61: 3338520471 EXT. 107 | M61: jorge.magallon@tlaquepaque.gob.mx
A62: SECRETARIA_DE_ADMINISTRACION_Y_FINANZASDIRECCION DE INGRESOS1Programa De Apoyo A Adultos Mayores | B62: SECRETARIA_DE_ADMINISTRACION_Y_FINANZASDIRECCION DE INGRESOS1 | C62: SECRETARIA_DE_ADMINISTRACION_Y_FINANZAS | D62: DIRECCION DE INGRESOS | E62: =COUNTIF($D$4:D62,D62:D62) -> 1 | F62: Programa De Apoyo A Adultos Mayores | G62: Incremento en el número de descuentos y exenciones realizadas al adulto mayor. | H62: Número de descuentos aplicados. | I62: 20000 | J62: 22000 | K62: Julio Gutiérrez Martínez | L62: 33-31-24-42-22 | M62: julio_gutierrez18@hotmail.com
A63: SECRETARIA_DE_ADMINISTRACION_Y_FINANZASDIRECCION DE INGRESOS2Programa de Convenios | B63: SECRETARIA_DE_ADMINISTRACION_Y_FINANZASDIRECCION DE INGRESOS2 | C63: SECRETARIA_DE_ADMINISTRACION_Y_FINANZAS | D63: DIRECCION DE INGRESOS | E63: =COUNTIF($D$4:D63,D63:D63) -> 2 | F63: Programa de Convenios | G63: Incremento en el número de convenios realizados. | H63: Número de convenios realizados. | I63: 300 | J63: 320 | K63: Julio Gutiérrez Martínez | L63: 33-31-24-42-22 | M63: julio_gutierrez18@hotmail.com
A64: SECRETARIA_DE_ADMINISTRACION_Y_FINANZASDIRECCION DE INGRESOS3Programa Integral de Recaudación | B64: SECRETARIA_DE_ADMINISTRACION_Y_FINANZASDIRECCION DE INGRESOS3 | C64: SECRETARIA_DE_ADMINISTRACION_Y_FINANZAS | D64: DIRECCION DE INGRESOS | E64: =COUNTIF($D$4:D64,D64:D64) -> 3 | F64: Programa Integral de Recaudación | G64: Porcentaje | I64: 32400000000 | J64: 33600000000 | K64: Julio Gutiérrez Martínez | L64: 33-31-24-42-22 | M64: julio_gutierrez18@hotmail.com
A65: SECRETARIA_DE_ADMINISTRACION_Y_FINANZASDIRECCION DE RECURSOS MATERIALES1Administración y control de los Recursos Materiales | B65: SECRETARIA_DE_ADMINISTRACION_Y_FINANZASDIRECCION DE RECURSOS MATERIALES1 | C65: SECRETARIA_DE_ADMINISTRACION_Y_FINANZAS | D65: DIRECCION DE RECURSOS MATERIALES | E65: =COUNTIF($D$4:D65,D65:D65) -> 1 | F65: Administración y control de los Recursos Materiales | G65: PORCENTAJE DE SOLICITUDES ATENDIDAS PARA LA ADQUISICIÓN DE BIENES E INSUMOS | H65: NÚMERO DE SOLICITUDES ATENDIDAS | I65: 4000 | J65: 5000 | K65: BLANCA ISELA EVANGELISTA AGUILAR | L65: 3336665995 | M65: di.recursosmateriales@gmail.com
A66: SECRETARIA_DE_ADMINISTRACION_Y_FINANZASSUBDIRECCION DE PATRIMONIO1Administración de Bienes Inmuebles | B66: SECRETARIA_DE_ADMINISTRACION_Y_FINANZASSUBDIRECCION DE PATRIMONIO1 | C66: SECRETARIA_DE_ADMINISTRACION_Y_FINANZAS | D66: SUBDIRECCION DE PATRIMONIO | E66: =COUNTIF($D$4:D66,D66:D66) -> 1 | F66: Administración de Bienes Inmuebles | G66: 1-Porcentaje de avance y seguimiento de la administración y control de bienes inmuebles | H66: 1) Bienes Inmuebles revisados | I66: 1030 | J66: 1100 | K66: Martha Olivia Venegas Chavarín | L66: 33 3562 7000 ext. 2307 | M66: martha.venegas@tlaquepaque.gob.mx
A67: SECRETARIA_DE_ADMINISTRACION_Y_FINANZASSUBDIRECCION DE PATRIMONIO2Administración de Bienes Inmuebles | B67: SECRETARIA_DE_ADMINISTRACION_Y_FINANZASSUBDIRECCION DE PATRIMONIO2 | C67: SECRETARIA_DE_ADMINISTRACION_Y_FINANZAS | D67: SUBDIRECCION DE PATRIMONIO | E67: =COUNTIF($D$4:D67,D67:D67) -> 2 | F67: Administración de Bienes Inmuebles | G67: 2- Numero de predios municipales con delimitación (enmallado) | H67: 2) Numero de predios delimitados | I67: 15 | J67: 11 | K67: Martha Olivia Venegas Chavarín | L67: 33 3562 7000 ext. 2307 | M67: martha.venegas@tlaquepaque.gob.mx
A68: SECRETARIA_DE_ADMINISTRACION_Y_FINANZASSUBDIRECCION DE PATRIMONIO3Administración de Bienes Inmuebles | B68: SECRETARIA_DE_ADMINISTRACION_Y_FINANZASSUBDIRECCION DE PATRIMONIO3 | C68: SECRETARIA_DE_ADMINISTRACION_Y_FINANZAS | D68: SUBDIRECCION DE PATRIMONIO | E68: =COUNTIF($D$4:D68,D68:D68) -> 3 | F68: Administración de Bienes Inmuebles | G68: 3-Porcentaje de letreros instalados en predios municipales | H68: 3) Numero de letreros instalados | I68: 65 | J68: 20 | K68: Martha Olivia Venegas Chavarín | L68: 33 3562 7000 ext. 2307 | M68: martha.venegas@tlaquepaque.gob.mx
A69: =B69&F69 -> SECRETARIA_DE_ADMINISTRACION_Y_FINANZASDEPARTAMENTO DE BIENES MUEBLES1Actualización y control de los inventarios de los bienes muebles. | B69: SECRETARIA_DE_ADMINISTRACION_Y_FINANZASDEPARTAMENTO DE BIENES MUEBLES1 | C69: SECRETARIA_DE_ADMINISTRACION_Y_FINANZAS | D69: DEPARTAMENTO DE BIENES MUEBLES | E69: =COUNTIF($D$4:D69,D69:D69) -> 1 | F69: Actualización y control de los inventarios de los bienes muebles. | G69: Porcentaje de avance en la administración y control de los bienes muebles | H69: Porcentaje del número de bienes revisados | I69: 29800 | J69: 12500 | K69: Fernando Villa Martínez | L69: 3314619220 | M69: fernando.villa@tlaquepaque.gob.mx
A70: SECRETARIA_DE_ADMINISTRACION_Y_FINANZASDEPARTAMENTO DE SERVICIOS GENERALES1Recursos Humanos eficiente | B70: SECRETARIA_DE_ADMINISTRACION_Y_FINANZASDEPARTAMENTO DE SERVICIOS GENERALES1 | C70: SECRETARIA_DE_ADMINISTRACION_Y_FINANZAS | D70: DEPARTAMENTO DE SERVICIOS GENERALES | E70: =COUNTIF($D$4:D70,D70:D70) -> 1 | F70: Recursos Humanos eficiente | G70: Porcentaje de contratación de personal operativo para fortalecer el Departamento de Servicios Generales | H70: Personal | I70: 0 | J70: 30 | K70: LIC. JOSE CARLOS MORENO ARELLANO | L70: 3338091176 | M70: lcp.charliemoreno@gmail.com
A71: SECRETARIA_DE_ADMINISTRACION_Y_FINANZASDEPARTAMENTO DE TALLER MUNICIPAL1Mantenimiento preventivo y correctivo del parque vehicular | B71: SECRETARIA_DE_ADMINISTRACION_Y_FINANZASDEPARTAMENTO DE TALLER MUNICIPAL1 | C71: SECRETARIA_DE_ADMINISTRACION_Y_FINANZAS | D71: DEPARTAMENTO DE TALLER MUNICIPAL | E71: =COUNTIF($D$4:D71,D71:D71) -> 1 | F71: Mantenimiento preventivo y correctivo del parque vehicular | G71: PORCENTAJE DE UNIDADES ATENDIDAS Y REPARADAS | H71: NÚMERO DE UNIDADES | I71: 0 | J71: 800 | K71: JOSE LUIS APARICIO GARCÍA | L71: 3320663142 | M71: jl.aparicio.g73@gmail.com
A72: SECRETARIA_DE_ADMINISTRACION_Y_FINANZASSUBDIRECCION DE COMPRAS Y ADQUISICIONES1Licitaciones Ejecutadas | B72: SECRETARIA_DE_ADMINISTRACION_Y_FINANZASSUBDIRECCION DE COMPRAS Y ADQUISICIONES1 | C72: SECRETARIA_DE_ADMINISTRACION_Y_FINANZAS | D72: SUBDIRECCION DE COMPRAS Y ADQUISICIONES | E72: =COUNTIF($D$4:D72,D72:D72) -> 1 | F72: Licitaciones Ejecutadas | G72: PORCENTAJE DE LICITACIONES EJECUTADAS PARA LA ADQUISICIÓN DE BIENES Y SERVICIOS | H72: NÚMERO DE LICITICIONES EJECUTADAS | I72: 35 | J72: 50 | K72: EDGAR JASIEL ESTRADA CASIMIRO | L72: 3336665995 | M72: sub.cya@gmail.com
A73: SECRETARIA_DE_ADMINISTRACION_Y_FINANZASSUBDIRECCION DE COMPRAS Y ADQUISICIONES2Capacitación para Adquisiciones | B73: SECRETARIA_DE_ADMINISTRACION_Y_FINANZASSUBDIRECCION DE COMPRAS Y ADQUISICIONES2 | C73: SECRETARIA_DE_ADMINISTRACION_Y_FINANZAS | D73: SUBDIRECCION DE COMPRAS Y ADQUISICIONES | E73: =COUNTIF($D$4:D73,D73:D73) -> 2 | F73: Capacitación para Adquisiciones | G73: PORCENTAJE DE CAPACITACIONES REALIZADAS | H73: NÚMERO DE CAPACITACIONES | I73: 0 | J73: 4 | K73: EDGAR JASIEL ESTRADA CASIMIRO | L73: 3336665995 | M73: sub.cya@gmail.com
A74: SECRETARIA_DE_ADMINISTRACION_Y_FINANZASDIRECCION DE CATASTRO1Tramites y Servicios | B74: SECRETARIA_DE_ADMINISTRACION_Y_FINANZASDIRECCION DE CATASTRO1 | C74: SECRETARIA_DE_ADMINISTRACION_Y_FINANZAS | D74: DIRECCION DE CATASTRO | E74: =COUNTIF($D$4:D74,D74:D74) -> 1 | F74: Tramites y Servicios | G74: PORCENTAJE DE TRAMITES Y SERVICIOS EN LA DIRECCION DE CATASTRO ATENDIDOS Y SOLUCIONADOS. | H74: NUMERO DE TRAMITES Y SERVCIOS ATENDIDOS | I74: 21000 | J74: 21500 | K74: JOSE GUADALUPE CUZ BRISEÑO | L74: 3338379393 | M74: catastro@tlaquepaque.gob.mx
A75: SECRETARIA_DE_ADMINISTRACION_Y_FINANZASDEPARTAMENTO DE SOPORTE Y MANTENIMIENTO1Sistema de control de servicios | B75: SECRETARIA_DE_ADMINISTRACION_Y_FINANZASDEPARTAMENTO DE SOPORTE Y MANTENIMIENTO1 | C75: SECRETARIA_DE_ADMINISTRACION_Y_FINANZAS | D75: DEPARTAMENTO DE SOPORTE Y MANTENIMIENTO | E75: =COUNTIF($D$4:D75,D75:D75) -> 1 | F75: Sistema de control de servicios | G75: Porcentaje de avance de etapas realizadas | H75: Etapas | I75: 0 | J75: 5 | K75: Marcela Escobedo | L75: 3338379008 | M75: marcela.escobedo@tlaquepaque.gob.mx
A76: SECRETARIA_DE_ADMINISTRACION_Y_FINANZASDEPARTAMENTO DE REDES Y TELECOMUNICACIONES1Instalación de Cámaras de Seguridad | B76: SECRETARIA_DE_ADMINISTRACION_Y_FINANZASDEPARTAMENTO DE REDES Y TELECOMUNICACIONES1 | C76: SECRETARIA_DE_ADMINISTRACION_Y_FINANZAS | D76: DEPARTAMENTO DE REDES Y TELECOMUNICACIONES | E76: =COUNTIF($D$4:D76,D76:D76) -> 1 | F76: Instalación de Cámaras de Seguridad | G76: Porcentaje de avance de etapas realizadas | H76: Etapas | I76: 0 | J76: 6 | K76: Marcela Escobedo | L76: 3338379008 | M76: marcela.escobedo@tlaquepaque.gob.mx
A77: SECRETARIA_DE_ADMINISTRACION_Y_FINANZASDIRECCION DE CONTABILIDAD Y GLOSA1Programa de elaboración y presentación de Cuentas Públicas | B77: SECRETARIA_DE_ADMINISTRACION_Y_FINANZASDIRECCION DE CONTABILIDAD Y GLOSA1 | C77: SECRETARIA_DE_ADMINISTRACION_Y_FINANZAS | D77: DIRECCION DE CONTABILIDAD Y GLOSA | E77: =COUNTIF($D$4:D77,D77:D77) -> 1 | F77: Programa de elaboración y presentación de Cuentas Públicas | G77: Porcentaje de avance en la elaboración y presentación puntual de las Cuentas Públicas. | H77: Número de Cuentas Públicas Elaboradas y Presentadas | I77: 0 | J77: 14
A78: SECRETARIA_DE_CONTRALORIA_MUNICIPAL_Y_COMBATE_A_LA_CORRUPCIONDIRECCION DE AUDITORIA A OBRA PUBLICA Y SERVICIOS1Control documental de expedientes de obras | B78: =C78&D78&E78 -> SECRETARIA_DE_CONTRALORIA_MUNICIPAL_Y_COMBATE_A_LA_CORRUPCIONDIRECCION DE AUDITORIA A OBRA PUBLICA Y SERVICIOS1 | C78: SECRETARIA_DE_CONTRALORIA_MUNICIPAL_Y_COMBATE_A_LA_CORRUPCION | D78: DIRECCION DE AUDITORIA A OBRA PUBLICA Y SERVICIOS | E78: =COUNTIF($D$4:D78,D78:D78) -> 1 | F78: Control documental de expedientes de obras | G78: RECEPCIÓN DE EXPEDIENTES | H78: PZA | I78: 150 | J78: 150 | K78: HÉCTOR NICODEMO TREJO ROMERO | L78: 33.3662.0575
A79: SECRETARIA_DE_CONTRALORIA_MUNICIPAL_Y_COMBATE_A_LA_CORRUPCIONDIRECCION DE AUDITORIA A OBRA PUBLICA Y SERVICIOS2Análisis documental de expedientes de obras | B79: SECRETARIA_DE_CONTRALORIA_MUNICIPAL_Y_COMBATE_A_LA_CORRUPCIONDIRECCION DE AUDITORIA A OBRA PUBLICA Y SERVICIOS2 | C79: SECRETARIA_DE_CONTRALORIA_MUNICIPAL_Y_COMBATE_A_LA_CORRUPCION | D79: DIRECCION DE AUDITORIA A OBRA PUBLICA Y SERVICIOS | E79: =COUNTIF($D$4:D79,D79:D79) -> 2 | F79: Análisis documental de expedientes de obras | G79: RECEPCIÓN DE EXPEDIENTES | H79: PZA | I79: 150 | J79: 150 | K79: HÉCTOR NICODEMO TREJO ROMERO | L79: 33.3662.0575
A80: SECRETARIA_DE_CONTRALORIA_MUNICIPAL_Y_COMBATE_A_LA_CORRUPCIONDIRECCION DE AUDITORIA GUBERNAMENTAL Y COMBATE A LA CORRUPCION1Auditorías | B80: SECRETARIA_DE_CONTRALORIA_MUNICIPAL_Y_COMBATE_A_LA_CORRUPCIONDIRECCION DE AUDITORIA GUBERNAMENTAL Y COMBATE A LA CORRUPCION1 | C80: SECRETARIA_DE_CONTRALORIA_MUNICIPAL_Y_COMBATE_A_LA_CORRUPCION | D80: DIRECCION DE AUDITORIA GUBERNAMENTAL Y COMBATE A LA CORRUPCION | E80: =COUNTIF($D$4:D80,D80:D80) -> 1 | F80: Auditorías | G80: Auditorias Realizadas | H80: Número de auditorías | I80: 10 | J80: 8 | K80: Ana Rosa Guzmán Peña | L80: 3314176115 | M80: anarosa.guzman@tlaquepaque.gob.mx
A81: SECRETARIA_DE_CONTRALORIA_MUNICIPAL_Y_COMBATE_A_LA_CORRUPCIONDIRECCION DE AUDITORIA GUBERNAMENTAL Y COMBATE A LA CORRUPCION2Visitas de Inspección | B81: SECRETARIA_DE_CONTRALORIA_MUNICIPAL_Y_COMBATE_A_LA_CORRUPCIONDIRECCION DE AUDITORIA GUBERNAMENTAL Y COMBATE A LA CORRUPCION2 | C81: SECRETARIA_DE_CONTRALORIA_MUNICIPAL_Y_COMBATE_A_LA_CORRUPCION | D81: DIRECCION DE AUDITORIA GUBERNAMENTAL Y COMBATE A LA CORRUPCION | E81: =COUNTIF($D$4:D81,D81:D81) -> 2 | F81: Visitas de Inspección | G81: Visitas de inspección realizadas | H81: Número de visitas de inspección | I81: 3 | J81: 10 | K81: Itzel Adriana Trejo Corona | L81: 3310723898 | M81: itzel.trejo@tlaquepaque.gob.mx
A82: SECRETARIA_DE_CONTRALORIA_MUNICIPAL_Y_COMBATE_A_LA_CORRUPCIONSUBDIRECCION DE AUDITORIA FINANCIERA Y DE DESEMPEÑO1Auditorías | B82: SECRETARIA_DE_CONTRALORIA_MUNICIPAL_Y_COMBATE_A_LA_CORRUPCIONSUBDIRECCION DE AUDITORIA FINANCIERA Y DE DESEMPEÑO1 | C82: SECRETARIA_DE_CONTRALORIA_MUNICIPAL_Y_COMBATE_A_LA_CORRUPCION | D82: SUBDIRECCION DE AUDITORIA FINANCIERA Y DE DESEMPEÑO | E82: =COUNTIF($D$4:D82,D82:D82) -> 1 | F82: Auditorías | G82: Auditorias financieras y de desempeño realizadas | H82: Número de auditorias | I82: 10 | J82: 9 | K82: Itzel Adriana Trejo Corona | L82: 3310723898 | M82: itzel.trejo@tlaquepaque.gob.mx
A83: SECRETARIA_DE_CONTRALORIA_MUNICIPAL_Y_COMBATE_A_LA_CORRUPCIONSUBDIRECCION DE AUDITORIA FINANCIERA Y DE DESEMPEÑO2Procedimientos de aclaración derivados de entrega recepción | B83: SECRETARIA_DE_CONTRALORIA_MUNICIPAL_Y_COMBATE_A_LA_CORRUPCIONSUBDIRECCION DE AUDITORIA FINANCIERA Y DE DESEMPEÑO2 | C83: SECRETARIA_DE_CONTRALORIA_MUNICIPAL_Y_COMBATE_A_LA_CORRUPCION | D83: SUBDIRECCION DE AUDITORIA FINANCIERA Y DE DESEMPEÑO | E83: =COUNTIF($D$4:D83,D83:D83) -> 2 | F83: Procedimientos de aclaración derivados de entrega recepción | G83: Procedimientos de aclaración derivados de entrega recepción | H83: Número de procedimientos de aclaración | I83: 66 | J83: 30 | K83: Itzel Adriana Trejo Corona | L83: 3310723898 | M83: itzel,trejo@tlaquepaque.gob.mx
A84: SECRETARIA_DE_CONTRALORIA_MUNICIPAL_Y_COMBATE_A_LA_CORRUPCIONSUBDIRECCION DE AUDITORIA FINANCIERA Y DE DESEMPEÑO3Visitas de Inspección | B84: SECRETARIA_DE_CONTRALORIA_MUNICIPAL_Y_COMBATE_A_LA_CORRUPCIONSUBDIRECCION DE AUDITORIA FINANCIERA Y DE DESEMPEÑO3 | C84: SECRETARIA_DE_CONTRALORIA_MUNICIPAL_Y_COMBATE_A_LA_CORRUPCION | D84: SUBDIRECCION DE AUDITORIA FINANCIERA Y DE DESEMPEÑO | E84: =COUNTIF($D$4:D84,D84:D84) -> 3 | F84: Visitas de Inspección | G84: Visitas de Inspección realizadas | H84: Número de visitas de inspección | I84: 3 | J84: 10 | K84: Itzel Adriana Trejo Corona | L84: 3310723898 | M84: itzel,trejo@tlaquepaque.gob.mx
A85: SECRETARIA_DE_CONTRALORIA_MUNICIPAL_Y_COMBATE_A_LA_CORRUPCIONDIRECCION DE RESPONSABILIDADES Y EVOLUCION PATRIMONIAL1Educación e Innovación Tecnológica | B85: SECRETARIA_DE_CONTRALORIA_MUNICIPAL_Y_COMBATE_A_LA_CORRUPCIONDIRECCION DE RESPONSABILIDADES Y EVOLUCION PATRIMONIAL1 | C85: SECRETARIA_DE_CONTRALORIA_MUNICIPAL_Y_COMBATE_A_LA_CORRUPCION | D85: DIRECCION DE RESPONSABILIDADES Y EVOLUCION PATRIMONIAL | E85: =COUNTIF($D$4:D85,D85:D85) -> 1 | F85: Educación e Innovación Tecnológica | G85: Porcentaje de personas que hayan cumplido con su declaración patrimonial y de disminución de incumplimientos | H85: Numero de personas que hayan cumplido con su declaración patrimonial y de disminución de incumplimientos | I85: 0 | J85: 1 | K85: Felipe Rivas Rivera | L85: 3314179257 | M85: felipe.rivas@tlaquepaque.gob.mx
A86: OFICIALIA_MAYORDIRECCION DE DESARROLLO ORGANIZACIONAL1Elaboración de Manuales Administrativos | B86: OFICIALIA_MAYORDIRECCION DE DESARROLLO ORGANIZACIONAL1 | C86: OFICIALIA_MAYOR | D86: DIRECCION DE DESARROLLO ORGANIZACIONAL | E86: =COUNTIF($D$4:D86,D86:D86) -> 1 | F86: Elaboración de Manuales Administrativos | G86: Porcentaje de la elaboración de manuales que representen la actualidad de la estructura de las Dependencias | H86: Numero de manuales elaborados | I86: 45 | J86: 45 | K86: Lic. José Luis Barba Reynoso | L86: '3338078864 | M86: Sdelatorrev.Stgo@gmail.com
A87: OFICIALIA_MAYORDIRECCION DE DESARROLLO ORGANIZACIONAL2Armonización Organizativa | B87: OFICIALIA_MAYORDIRECCION DE DESARROLLO ORGANIZACIONAL2 | C87: OFICIALIA_MAYOR | D87: DIRECCION DE DESARROLLO ORGANIZACIONAL | E87: =COUNTIF($D$4:D87,D87:D87) -> 2 | F87: Armonización Organizativa | G87: Porcentaje de la elaboración de manuales que representen la actualidad de la estructura de las Dependencias | H87: Numero de manuales elaborados | I87: 15 | J87: 15 | K87: Lic. José Luis Barba Reynoso | L87: '3338078864 | M87: Sdelatorrev.Stgo@gmail.com
A88: OFICIALIA_MAYORDEPARTAMENTO DE CAPACITACION Y SERVICIO SOCIAL1Certificación en el ECO385 | B88: OFICIALIA_MAYORDEPARTAMENTO DE CAPACITACION Y SERVICIO SOCIAL1 | C88: OFICIALIA_MAYOR | D88: DEPARTAMENTO DE CAPACITACION Y SERVICIO SOCIAL | E88: =COUNTIF($D$4:D88,D88:D88) -> 1 | F88: Certificación en el ECO385 | G88: Porcentaje de servidoras y servidores públicos certificados | H88: Número de personas certificadas | I88: 0 | J88: 51 | K88: Lic. José Antonio Aceves Reynoso | L88: 33 12 00 39 80 al 83 | M88: capacitaciónyserviciosocial@gmail.com
A89: OFICIALIA_MAYORDEPARTAMENTO DE CAPACITACION Y SERVICIO SOCIAL2Capacitación en materia de Derechos Humanos | B89: OFICIALIA_MAYORDEPARTAMENTO DE CAPACITACION Y SERVICIO SOCIAL2 | C89: OFICIALIA_MAYOR | D89: DEPARTAMENTO DE CAPACITACION Y SERVICIO SOCIAL | E89: =COUNTIF($D$4:D89,D89:D89) -> 2 | F89: Capacitación en materia de Derechos Humanos | G89: Porcentaje de avance en la capacitación a servidoras y servidores públicos en materia de DDHH | H89: Número de personas capacitadas | I89: 0 | J89: 800 | K89: Lic. José Antonio Aceves Reynoso | L89: 33 12 00 39 80 al 83 | M89: capacitaciónyserviciosocial@gmail.com
A90: OFICIALIA_MAYORDEPARTAMENTO DE CAPACITACION Y SERVICIO SOCIAL3Desarrollo Académico Básico de las y los servidores públicos de la Secretaría de Servicios Públicos y Medio Ambiente | B90: OFICIALIA_MAYORDEPARTAMENTO DE CAPACITACION Y SERVICIO SOCIAL3 | C90: OFICIALIA_MAYOR | D90: DEPARTAMENTO DE CAPACITACION Y SERVICIO SOCIAL | E90: =COUNTIF($D$4:D90,D90:D90) -> 3 | F90: Desarrollo Académico Básico de las y los servidores públicos de la Secretaría de Servicios Públicos y Medio Ambiente | G90: Porcentaje de servidoras y servidores públicos certificados | H90: Número de personas certificadas | I90: 0 | J90: 80 | K90: Lic. José Antonio Aceves Reynoso | L90: 33 12 00 39 80 al 83 | M90: capacitaciónyserviciosocial@gmail.com
A91: OFICIALIA_MAYORDEPARTAMENTO DE CAPACITACION Y SERVICIO SOCIAL4Difusión de Protocolos | B91: OFICIALIA_MAYORDEPARTAMENTO DE CAPACITACION Y SERVICIO SOCIAL4 | C91: OFICIALIA_MAYOR | D91: DEPARTAMENTO DE CAPACITACION Y SERVICIO SOCIAL | E91: =COUNTIF($D$4:D91,D91:D91) -> 4 | F91: Difusión de Protocolos | G91: Porcentaje de personas capacitadas | H91: Número de personas capacitadas | I91: 0 | J91: 1200 | K91: Lic. José Antonio Aceves Reynoso | L91: 33 12 00 39 80 al 83 | M91: capacitaciónyserviciosocial@gmail.com
A92: OFICIALIA_MAYORDEPARTAMENTO DE CAPACITACION Y SERVICIO SOCIAL5Fortalecimiento y Desarrollo de Habilidades Blandas y Desarrollo Humano | B92: OFICIALIA_MAYORDEPARTAMENTO DE CAPACITACION Y SERVICIO SOCIAL5 | C92: OFICIALIA_MAYOR | D92: DEPARTAMENTO DE CAPACITACION Y SERVICIO SOCIAL | E92: =COUNTIF($D$4:D92,D92:D92) -> 5 | F92: Fortalecimiento y Desarrollo de Habilidades Blandas y Desarrollo Humano | G92: Porcentaje de personas capacitadas | H92: Número de personas capacitadas | I92: 0 | J92: 1200 | K92: Lic. José Antonio Aceves Reynoso | L92: 33 12 00 39 80 al 83 | M92: capacitaciónyserviciosocial@gmail.com
A93: OFICIALIA_MAYORDEPARTAMENTO DE CAPACITACION Y SERVICIO SOCIAL6Fortalecimiento y Desarrollo de Habilidades Técnicas | B93: OFICIALIA_MAYORDEPARTAMENTO DE CAPACITACION Y SERVICIO SOCIAL6 | C93: OFICIALIA_MAYOR | D93: DEPARTAMENTO DE CAPACITACION Y SERVICIO SOCIAL | E93: =COUNTIF($D$4:D93,D93:D93) -> 6 | F93: Fortalecimiento y Desarrollo de Habilidades Técnicas | G93: Porcentaje de servidoras y servidores públicos capacitados | H93: Número de personas capacitadas | I93: 0 | J93: 1400 | K93: Lic. José Antonio Aceves Reynoso | L93: 33 12 00 39 80 al 83 | M93: capacitaciónyserviciosocial@gmail.com
A94: OFICIALIA_MAYORDEPARTAMENTO DE CAPACITACION Y SERVICIO SOCIAL7Promoción de estilos de vida y entornos laboral, alimentaria y físicamente saludable para el personal | B94: OFICIALIA_MAYORDEPARTAMENTO DE CAPACITACION Y SERVICIO SOCIAL7 | C94: OFICIALIA_MAYOR | D94: DEPARTAMENTO DE CAPACITACION Y SERVICIO SOCIAL | E94: =COUNTIF($D$4:D94,D94:D94) -> 7 | F94: Promoción de estilos de vida y entornos laboral, alimentaria y físicamente saludable para el personal | G94: Porcentaje de edificios certificados | H94: Número de edificios certificados | I94: 0 | J94: 16 | K94: Lic. José Antonio Aceves Reynoso | L94: 33 12 00 39 80 al 83 | M94: capacitaciónyserviciosocial@gmail.com
A95: OFICIALIA_MAYORDEPARTAMENTO DE CAPACITACION Y SERVICIO SOCIAL8Tlaquepaque Universitario | B95: OFICIALIA_MAYORDEPARTAMENTO DE CAPACITACION Y SERVICIO SOCIAL8 | C95: OFICIALIA_MAYOR | D95: DEPARTAMENTO DE CAPACITACION Y SERVICIO SOCIAL | E95: =COUNTIF($D$4:D95,D95:D95) -> 8 | F95: Tlaquepaque Universitario | G95: Porcentaje de apoyos brindados a practicantes profesionales y pasantes. | H95: Número de apoyos económicos brindados a los practicantes y pasantes. | I95: 533 | J95: 2000 | K95: Lic. José Antonio Aceves Reynoso | L95: 33 12 00 39 80 al 83 | M95: capacitaciónyserviciosocial@gmail.com
A96: OFICIALIA_MAYORDEPARTAMENTO DE INCIDENCIAS Y CALCULO DE NOMINA1Pago de Nóminas | B96: OFICIALIA_MAYORDEPARTAMENTO DE INCIDENCIAS Y CALCULO DE NOMINA1 | C96: OFICIALIA_MAYOR | D96: DEPARTAMENTO DE INCIDENCIAS Y CALCULO DE NOMINA | E96: =COUNTIF($D$4:D96,D96:D96) -> 1 | F96: Pago de Nóminas | G96: Porcentaje en la generación y expedición eficiente y puntual de la nómina municipal, apoyada en procesos de actualización y digitalización de sistemas para la gestión de Recursos Humanos. | H96: Número de nóminas generadas | I96: 0 | J96: 24 | K96: Sergio Lara Gutiérrez | M96: sergio.lara@tlaquepaque.gob.mx
A97: SECRETARIA_DE_PLANIFICACION_ANALISIS_Y_GESTION_URBANASECRETARIA DE PLANIFICACION, ANALISIS Y GESTION URBANA1Coordinación de actividades de las direcciones que integran la Secretaría de Planificación, Análisis y Gestión Urbana | B97: SECRETARIA_DE_PLANIFICACION_ANALISIS_Y_GESTION_URBANASECRETARIA DE PLANIFICACION, ANALISIS Y GESTION URBANA1 | C97: SECRETARIA_DE_PLANIFICACION_ANALISIS_Y_GESTION_URBANA | D97: SECRETARIA DE PLANIFICACION, ANALISIS Y GESTION URBANA | E97: =COUNTIF($D$4:D97,D97:D97) -> 1 | F97: Coordinación de actividades de las direcciones que integran la Secretaría de Planificación, Análisis y Gestión Urbana | G97: Porcentaje de avance en la supervisión y seguimiento de las actividades de la dirección de Desempeño, Resultados y Tablero de control realizadas | H97: Numero de Actividades supervisadas | I97: 0 | J97: 3
A98: SECRETARIA_DE_PLANIFICACION_ANALISIS_Y_GESTION_URBANADIRECCION DE GESTION TERRITORIAL Y PLANEACION URBANA1Regularización de predios efectiva | B98: SECRETARIA_DE_PLANIFICACION_ANALISIS_Y_GESTION_URBANADIRECCION DE GESTION TERRITORIAL Y PLANEACION URBANA1 | C98: SECRETARIA_DE_PLANIFICACION_ANALISIS_Y_GESTION_URBANA | D98: DIRECCION DE GESTION TERRITORIAL Y PLANEACION URBANA | E98: =COUNTIF($D$4:D98,D98:D98) -> 1 | F98: Regularización de predios efectiva | G98: Porcentaje de títulos entregados a personas que viven en predios irregulares de San Pedro Tlaquepaque | H98: Títulos entregados | I98: 500 | J98: 800 | K98: DALIA RAMIREZ RAMOS | L98: 3335 62 7054 al 60 extensión 2428 y 2413 | M98: DALIA.RAMIREZ@TLAQUEPAQUE.GOB.MX
A99: SECRETARIA_DE_PLANIFICACION_ANALISIS_Y_GESTION_URBANADEPARTAMENTO DE GESTION TERRITORIAL SUELO Y VIVIENDA1Mejoramiento de la atención al publico así como fiscalización de la Auditoria Superior del Estado | B99: SECRETARIA_DE_PLANIFICACION_ANALISIS_Y_GESTION_URBANADEPARTAMENTO DE GESTION TERRITORIAL SUELO Y VIVIENDA1 | C99: SECRETARIA_DE_PLANIFICACION_ANALISIS_Y_GESTION_URBANA | D99: DEPARTAMENTO DE GESTION TERRITORIAL SUELO Y VIVIENDA | E99: =COUNTIF($D$4:D99,D99:D99) -> 1 | F99: Mejoramiento de la atención al publico así como fiscalización de la Auditoria Superior del Estado | G99: Porcentaje de Etapas de Trámites y servicios emitidos | H99: personas atendidas | I99: 9500 | J99: 10500 | K99: DALIA RAMIREZ RAMOS | L99: 3335 62 7054 al 60 extensión 2428 y 2413 | M99: DALIA.RAMIREZ@TLAQUEPAQUE.GOB.MX
A100: SECRETARIA_DE_PLANIFICACION_ANALISIS_Y_GESTION_URBANADEPARTAMENTO DE PLANEACION URBANA1Planes parciales y reglamentos municipales actualizados | B100: SECRETARIA_DE_PLANIFICACION_ANALISIS_Y_GESTION_URBANADEPARTAMENTO DE PLANEACION URBANA1 | C100: SECRETARIA_DE_PLANIFICACION_ANALISIS_Y_GESTION_URBANA | D100: DEPARTAMENTO DE PLANEACION URBANA | E100: =COUNTIF($D$4:D100,D100:D100) -> 1 | F100: Planes parciales y reglamentos municipales actualizados | G100: ACTUALIZACION A PLANES PARCIALES Y REGLAMENTOS | H100: PROYECTO TERMINADO | I100: 0 | J100: 0 | K100: DALIA RAMIREZ RAMOS | L100: 3335 62 7054 al 60 extensión 2428 y 2413 | M100: DALIA.RAMIREZ@TLAQUEPAQUE.GOB.MX
A101: SECRETARIA_DE_PLANIFICACION_ANALISIS_Y_GESTION_URBANADIRECCION DE GESTION DEL DESEMPEÑO, EVALUACION DE RESULTADOS Y TABLERO DE CONTROL1Coordinación de actividades de los departamentos de la Dirección de Desempeño, Resultados y Tablero de Control | B101: SECRETARIA_DE_PLANIFICACION_ANALISIS_Y_GESTION_URBANADIRECCION DE GESTION DEL DESEMPEÑO, EVALUACION DE RESULTADOS Y TABLERO DE CONTROL1 | C101: SECRETARIA_DE_PLANIFICACION_ANALISIS_Y_GESTION_URBANA | D101: DIRECCION DE GESTION DEL DESEMPEÑO, EVALUACION DE RESULTADOS Y TABLERO DE CONTROL | E101: =COUNTIF($D$4:D101,D101:D101) -> 1 | F101: Coordinación de actividades de los departamentos de la Dirección de Desempeño, Resultados y Tablero de Control | G101: Porcentaje de avance en la supervisión y seguimiento de las actividades de la dirección de Desempeño, Resultados y Tablero de control realizadas | H101: Numero de Actividades supervisadas | I101: 0 | J101: 3 | K101: Ing. Raúl Pérez y Pérez | L101: 3316921707 | M101: Raul.perez@tlaquepaque.gob.mx
A102: SECRETARIA_DE_PLANIFICACION_ANALISIS_Y_GESTION_URBANADIRECCION DE GESTION DEL DESEMPEÑO, EVALUACION DE RESULTADOS Y TABLERO DE CONTROL2Gestión para el sistema integral para la planeación y evaluación de la auditoria publica municipal | B102: SECRETARIA_DE_PLANIFICACION_ANALISIS_Y_GESTION_URBANADIRECCION DE GESTION DEL DESEMPEÑO, EVALUACION DE RESULTADOS Y TABLERO DE CONTROL2 | C102: SECRETARIA_DE_PLANIFICACION_ANALISIS_Y_GESTION_URBANA | D102: DIRECCION DE GESTION DEL DESEMPEÑO, EVALUACION DE RESULTADOS Y TABLERO DE CONTROL | E102: =COUNTIF($D$4:D102,D102:D102) -> 2 | F102: Gestión para el sistema integral para la planeación y evaluación de la auditoria publica municipal | G102: Porcentaje de avance en la gestión para la implementación del sistema que permita monitorear y evaluar la planeación operativa 2024-2025 | H102: Número de etapas realizadas | I102: 0 | J102: 8 | K102: Ing. Raúl Pérez y Pérez | L102: 3316921707 | M102: Raul.perez@tlaquepaque.gob.mx
A103: SECRETARIA_DE_PLANIFICACION_ANALISIS_Y_GESTION_URBANADIRECCION DE GESTION DEL DESEMPEÑO, EVALUACION DE RESULTADOS Y TABLERO DE CONTROL3Seguimiento y Evaluación a los Fondos de Origen Federal | B103: SECRETARIA_DE_PLANIFICACION_ANALISIS_Y_GESTION_URBANADIRECCION DE GESTION DEL DESEMPEÑO, EVALUACION DE RESULTADOS Y TABLERO DE CONTROL3 | C103: SECRETARIA_DE_PLANIFICACION_ANALISIS_Y_GESTION_URBANA | D103: DIRECCION DE GESTION DEL DESEMPEÑO, EVALUACION DE RESULTADOS Y TABLERO DE CONTROL | E103: =COUNTIF($D$4:D103,D103:D103) -> 3 | F103: Seguimiento y Evaluación a los Fondos de Origen Federal | G103: Porcentaje de avance en la supervisión y seguimiento las actividades realizadas de la dirección de Desempeño, Resultados y Tablero de control 2024-2025 | H103: Número de actividades supervisadas | I103: 0 | J103: 3 | K103: Ing. Raúl Pérez y Pérez | L103: 3316921707 | M103: raul.perez@tlaquepaque.gob.mx
A104: SECRETARIA_DE_PLANIFICACION_ANALISIS_Y_GESTION_URBANADEPARTAMENTO DEL SISTEMA DE EVALUACION DEL DESEMPEÑO1Seguimiento y Evaluación a la Administración Pública Municipal | B104: SECRETARIA_DE_PLANIFICACION_ANALISIS_Y_GESTION_URBANADEPARTAMENTO DEL SISTEMA DE EVALUACION DEL DESEMPEÑO1 | C104: SECRETARIA_DE_PLANIFICACION_ANALISIS_Y_GESTION_URBANA | D104: DEPARTAMENTO DEL SISTEMA DE EVALUACION DEL DESEMPEÑO | E104: =COUNTIF($D$4:D104,D104:D104) -> 1 | F104: Seguimiento y Evaluación a la Administración Pública Municipal | G104: Porcentaje de PBR.s de la Planeación Operativa con seguimiento | H104: PBR.s con seguimiento | I104: 398 | J104: 347 | K104: Ing. Juan Enrique Acevedo Acevedo | L104: 3325745322 | M104: juan.aceves@tlaquepaque.gob.mx
A105: SECRETARIA_DE_PLANIFICACION_ANALISIS_Y_GESTION_URBANADEPARTAMENTO DEL SISTEMA DE EVALUACION DEL DESEMPEÑO2Seguimiento y Evaluación a los Programas Sociales | B105: SECRETARIA_DE_PLANIFICACION_ANALISIS_Y_GESTION_URBANADEPARTAMENTO DEL SISTEMA DE EVALUACION DEL DESEMPEÑO2 | C105: SECRETARIA_DE_PLANIFICACION_ANALISIS_Y_GESTION_URBANA | D105: DEPARTAMENTO DEL SISTEMA DE EVALUACION DEL DESEMPEÑO | E105: =COUNTIF($D$4:D105,D105:D105) -> 2 | F105: Seguimiento y Evaluación a los Programas Sociales | G105: Porcentaje de diagnóstico de dictámenes de evaluación de solicitud de obras | H105: Número de dictámenes de evaluación de solicitud de obras | I105: 0 | J105: 80 | K105: María Guadalupe Saldaña Duarte | L105: 33-13-49-10-90 | M105: mgsd2909@gmail.com
A106: SECRETARIA_DE_PLANIFICACION_ANALISIS_Y_GESTION_URBANADEPARTAMENTO DE INDICADORES Y METAS PARA RESULTADOS1Servicio de Acompañamiento para la gestión del sistema de Planeación Municipal | B106: SECRETARIA_DE_PLANIFICACION_ANALISIS_Y_GESTION_URBANADEPARTAMENTO DE INDICADORES Y METAS PARA RESULTADOS1 | C106: SECRETARIA_DE_PLANIFICACION_ANALISIS_Y_GESTION_URBANA | D106: DEPARTAMENTO DE INDICADORES Y METAS PARA RESULTADOS | E106: =COUNTIF($D$4:D106,D106:D106) -> 1 | F106: Servicio de Acompañamiento para la gestión del sistema de Planeación Municipal | G106: Porcentaje de avance en las etapas de acompañamiento/asesorías para generar la planeación operativa 2024-2025 e integración del Sistema de Indicadores del Desempeño 2024 de las áreas y direcciones municipales | H106: Etapas realizadas | I106: 13 | J106: 13 | K106: Liliana Delfín Jiménez | L106: 9981604015 | M106: liliana.delfin@tlaquepaque.gob.mx
A107: SECRETARIA_DE_PLANIFICACION_ANALISIS_Y_GESTION_URBANADIRECCION DEL BANCO INTEGRADO DE PROYECTOS Y PROGRAMAS1Seguimiento de Mesas de gestión Metropolitana ante el IMEPLAN | B107: SECRETARIA_DE_PLANIFICACION_ANALISIS_Y_GESTION_URBANADIRECCION DEL BANCO INTEGRADO DE PROYECTOS Y PROGRAMAS1 | C107: SECRETARIA_DE_PLANIFICACION_ANALISIS_Y_GESTION_URBANA | D107: DIRECCION DEL BANCO INTEGRADO DE PROYECTOS Y PROGRAMAS | E107: =COUNTIF($D$4:D107,D107:D107) -> 1 | F107: Seguimiento de Mesas de gestión Metropolitana ante el IMEPLAN | G107: Vistas de mapa por proyecto y/o programas que postulan financiamiento municipal | H107: Vista de mapa | I107: 0 | J107: 10 | K107: Jonathan Octavio García Martínez | L107: 3310622577 | M107: jonathan.garcia@tlaquepaque.gob.mx
A108: SECRETARIA_DE_PLANIFICACION_ANALISIS_Y_GESTION_URBANADIRECCION DEL BANCO INTEGRADO DE PROYECTOS Y PROGRAMAS2Banco integrado de proyectos y programas | B108: SECRETARIA_DE_PLANIFICACION_ANALISIS_Y_GESTION_URBANADIRECCION DEL BANCO INTEGRADO DE PROYECTOS Y PROGRAMAS2 | C108: SECRETARIA_DE_PLANIFICACION_ANALISIS_Y_GESTION_URBANA | D108: DIRECCION DEL BANCO INTEGRADO DE PROYECTOS Y PROGRAMAS | E108: =COUNTIF($D$4:D108,D108:D108) -> 2 | F108: Banco integrado de proyectos y programas | G108: Porcentaje de avance en las etapas de gestión para la implementación del sistema de información geográfica | H108: número de etapas de gestión realizadas | I108: 0 | J108: 7 | K108: Jonathan Octavio García Martínez | L108: 3310622577 | M108: jonathan.garcia@tlaquepaque.gob.mx
A109: SECRETARIA_DE_PLANIFICACION_ANALISIS_Y_GESTION_URBANADEPARTAMENTO DE EVALUACION DE PROYECTOS Y PROGRAMAS1Dictamen de evaluación de solicitud de obras | B109: SECRETARIA_DE_PLANIFICACION_ANALISIS_Y_GESTION_URBANADEPARTAMENTO DE EVALUACION DE PROYECTOS Y PROGRAMAS1 | C109: SECRETARIA_DE_PLANIFICACION_ANALISIS_Y_GESTION_URBANA | D109: DEPARTAMENTO DE EVALUACION DE PROYECTOS Y PROGRAMAS | E109: =COUNTIF($D$4:D109,D109:D109) -> 1 | F109: Dictamen de evaluación de solicitud de obras | G109: Porcentaje de diagnóstico de dictámenes de evaluación de solicitud de obras | H109: Número de dictámenes de evaluación de solicitud de obras | I109: 0 | J109: 80 | K109: María Guadalupe Saldaña Duarte | L109: 33-13-49-10-90 | M109: mgsd2909@gmail.com
A110: SECRETARIA_DE_BIENESTARDIRECCION DE PROGRAMAS SOCIALES PARA EL BIENESTAR1Bienestar Incluyente | B110: SECRETARIA_DE_BIENESTARDIRECCION DE PROGRAMAS SOCIALES PARA EL BIENESTAR1 | C110: SECRETARIA_DE_BIENESTAR | D110: DIRECCION DE PROGRAMAS SOCIALES PARA EL BIENESTAR | E110: =COUNTIF($D$4:D110,D110:D110) -> 1 | F110: Bienestar Incluyente | G110: Apoyo en especie para personas con diversidad funcional con aparatos auxiliares de movilidad y desarrollo | H110: 500 beneficiarios | I110: 0 | J110: 500 | K110: Yessica Lizeth Castellanos Carrillo | L110: 3318435959 | M110: carrilloyessica791@gmail.com
A111: SECRETARIA_DE_BIENESTARDIRECCION DE PROGRAMAS SOCIALES PARA EL BIENESTAR2Aprendiendo con Bienestar | B111: SECRETARIA_DE_BIENESTARDIRECCION DE PROGRAMAS SOCIALES PARA EL BIENESTAR2 | C111: SECRETARIA_DE_BIENESTAR | D111: DIRECCION DE PROGRAMAS SOCIALES PARA EL BIENESTAR | E111: =COUNTIF($D$4:D111,D111:D111) -> 2 | F111: Aprendiendo con Bienestar | G111: Útiles y uniformes | H111: Número de alumnos | I111: 0 | J111: 100 % de todos los estudiantes | K111: Yessica Lizeth Castellanos Carrillo | L111: 3318435959 | M111: carrilloyessica791@gmail.com
A112: SECRETARIA_DE_BIENESTARDIRECCION DE PROGRAMAS SOCIALES PARA EL BIENESTAR3Raíces de Esperanza | B112: SECRETARIA_DE_BIENESTARDIRECCION DE PROGRAMAS SOCIALES PARA EL BIENESTAR3 | C112: SECRETARIA_DE_BIENESTAR | D112: DIRECCION DE PROGRAMAS SOCIALES PARA EL BIENESTAR | E112: =COUNTIF($D$4:D112,D112:D112) -> 3 | F112: Raíces de Esperanza | G112: Artesanas y artesanos de San Pedro Tlaquepaque inscritos en el programa | H112: 428 | I112: 0 | J112: 428 | K112: Araceli Hernández | L112: 3312954027 | M112: tsaracelihernandez18@gmail.com
A113: SECRETARIA_DE_BIENESTARDIRECCION DE PROGRAMAS SOCIALES PARA EL BIENESTAR4Líderes de Esperanza | B113: SECRETARIA_DE_BIENESTARDIRECCION DE PROGRAMAS SOCIALES PARA EL BIENESTAR4 | C113: SECRETARIA_DE_BIENESTAR | D113: DIRECCION DE PROGRAMAS SOCIALES PARA EL BIENESTAR | E113: =COUNTIF($D$4:D113,D113:D113) -> 4 | F113: Líderes de Esperanza | G113: Apoyar a mujeres y hombres líderes del hogar de San Pedro Tlaquepaque | H113: Cantidad de personas beneficiarias en base a un padrón | I113: 0 | J113: 1500 | K113: Yessica Lizeth Castellanos Carrillo | L113: 3318435959 | M113: carrilloyessica791@gmail.com
A114: SECRETARIA_DE_BIENESTARDIRECCION DE EDUCACION1Feria de la oferta educativa media superior y superior | B114: SECRETARIA_DE_BIENESTARDIRECCION DE EDUCACION1 | C114: SECRETARIA_DE_BIENESTAR | D114: DIRECCION DE EDUCACION | E114: =COUNTIF($D$4:D114,D114:D114) -> 1 | F114: Feria de la oferta educativa media superior y superior | G114: Porcentaje de charlas sobre ofertas educativas a estudiantes de secundaria | H114: número de charlas impartidas | I114: 0 | J114: 5000 | K114: Julio Ornelas Camacho | L114: 3313049438 | M114: julio.ornelas@tlaquepaque.gob.mx
A115: SECRETARIA_DE_BIENESTARDIRECCION DE EDUCACION2Educación Y Capacitación Para El Medio Ambiente | B115: SECRETARIA_DE_BIENESTARDIRECCION DE EDUCACION2 | C115: SECRETARIA_DE_BIENESTAR | D115: DIRECCION DE EDUCACION | E115: =COUNTIF($D$4:D115,D115:D115) -> 2 | F115: Educación Y Capacitación Para El Medio Ambiente | G115: Porcentaje de planteles intervenidos mediante capacitaciones sobre cuidado al medio ambiente | H115: Número de planteles intervenidos | I115: 0 | J115: 80 | K115: Julio Ornelas Camacho | L115: 3313049438 | M115: julio.ornelas@tlaquepaque.gob.mx
A116: SECRETARIA_DE_BIENESTARDIRECCION DE EDUCACION3Cabildo Infantil Y Juvenil | B116: SECRETARIA_DE_BIENESTARDIRECCION DE EDUCACION3 | C116: SECRETARIA_DE_BIENESTAR | D116: DIRECCION DE EDUCACION | E116: =COUNTIF($D$4:D116,D116:D116) -> 3 | F116: Cabildo Infantil Y Juvenil | G116: Porcentaje de procesos de elección para el Cabildo Infantil y Juvenil | H116: número de procesos realizados | I116: 0 | J116: 60 | K116: Julio Ornelas Camacho | L116: 3336576890 | M116: julio.ornelas@tlaquepaque.gob.mx
A117: SECRETARIA_DE_BIENESTARDIRECCION DE EDUCACION4Abrigando Tu Bienestar | B117: SECRETARIA_DE_BIENESTARDIRECCION DE EDUCACION4 | C117: SECRETARIA_DE_BIENESTAR | D117: DIRECCION DE EDUCACION | E117: =COUNTIF($D$4:D117,D117:D117) -> 4 | F117: Abrigando Tu Bienestar | G117: Porcentaje de personas beneficiadas mediante la campaña abrigando tu bienestar | H117: Número de personas beneficiadas | I117: 0 | J117: 1000 | K117: Julio Ornelas Camacho | L117: 3313049438 | M117: julio.ornelas@tlaquepaque.gob.mx
A118: SECRETARIA_DE_BIENESTARDIRECCION DE EDUCACION5Actividades Extraescolares | B118: SECRETARIA_DE_BIENESTARDIRECCION DE EDUCACION5 | C118: SECRETARIA_DE_BIENESTAR | D118: DIRECCION DE EDUCACION | E118: =COUNTIF($D$4:D118,D118:D118) -> 5 | F118: Actividades Extraescolares | G118: Porcentaje de alumnos beneficiados, mediante cursos extraescolares | H118: número de alumnos beneficiados | I118: 0 | J118: 200 | K118: Julio Ornelas Camacho | L118: 3313049438 | M118: julio.ornelas@tlaquepaque.gob.mx
A119: SECRETARIA_DE_BIENESTARDIRECCION DE EDUCACION6Actividades Extraescolares | B119: SECRETARIA_DE_BIENESTARDIRECCION DE EDUCACION6 | C119: SECRETARIA_DE_BIENESTAR | D119: DIRECCION DE EDUCACION | E119: =COUNTIF($D$4:D119,D119:D119) -> 6 | F119: Actividades Extraescolares | G119: Porcentaje de cursos extraescolares impartidos | H119: números de cursos impartidos | I119: 0 | J119: 0 | K119: Julio Ornelas Camacho | L119: 3313049438 | M119: julio.ornelas@tlaquepaque.gob.mx
A120: SECRETARIA_DE_BIENESTARSUBDIRECCION DE DESARROLLO Y ATENCION AL SECTOR AGROPECUARIO1Rehabilitación Permanente De Caminos Rurales | B120: SECRETARIA_DE_BIENESTARSUBDIRECCION DE DESARROLLO Y ATENCION AL SECTOR AGROPECUARIO1 | C120: SECRETARIA_DE_BIENESTAR | D120: SUBDIRECCION DE DESARROLLO Y ATENCION AL SECTOR AGROPECUARIO | E120: =COUNTIF($D$4:D120,D120:D120) -> 1 | F120: Rehabilitación Permanente De Caminos Rurales | G120: Porcentaje de etapas de gestión para la adquisición de una moto conformadora | H120: número de etapas de gestión realizadas | I120: 0 | J120: 4 | K120: Jorge Eduardo Luján Gómez | L120: 33-36-01-14-05 | M120: agropecuariotlaquepaque@gmail.com
A121: SECRETARIA_DE_BIENESTARSUBDIRECCION DE DESARROLLO Y ATENCION AL SECTOR AGROPECUARIO2Procesadora de composta orgánica. | B121: SECRETARIA_DE_BIENESTARSUBDIRECCION DE DESARROLLO Y ATENCION AL SECTOR AGROPECUARIO2 | C121: SECRETARIA_DE_BIENESTAR | D121: SUBDIRECCION DE DESARROLLO Y ATENCION AL SECTOR AGROPECUARIO | E121: =COUNTIF($D$4:D121,D121:D121) -> 2 | F121: Procesadora de composta orgánica. | G121: Porcentaje de etapas de gestión para el equipamiento de la dirección | H121: número de etapas realizadas | I121: 0 | J121: 7 | K121: Jorge Eduardo Luján Gómez | L121: 33-36-01-14-05 | M121: agropecuariotlaquepaque@gmail.com
A122: SECRETARIA_DE_BIENESTARSUBDIRECCION DE DESARROLLO Y ATENCION AL SECTOR AGROPECUARIO3Pozos de absorción Tecnificados. | B122: SECRETARIA_DE_BIENESTARSUBDIRECCION DE DESARROLLO Y ATENCION AL SECTOR AGROPECUARIO3 | C122: SECRETARIA_DE_BIENESTAR | D122: SUBDIRECCION DE DESARROLLO Y ATENCION AL SECTOR AGROPECUARIO | E122: =COUNTIF($D$4:D122,D122:D122) -> 3 | F122: Pozos de absorción Tecnificados. | G122: Porcentaje de pozos de absorción tecnificados construidos. | H122: Pozos de absorción construidos. | I122: 10 | J122: 10 | K122: Jorge Eduardo Luján Gómez | L122: 33-36-01-14-05 | M122: agropecuariotlaquepaque@gmail.com
A123: SECRETARIA_DE_BIENESTARSUBDIRECCION DE DESARROLLO Y ATENCION AL SECTOR AGROPECUARIO4Conservación y mejoramiento de suelos agrícolas | B123: SECRETARIA_DE_BIENESTARSUBDIRECCION DE DESARROLLO Y ATENCION AL SECTOR AGROPECUARIO4 | C123: SECRETARIA_DE_BIENESTAR | D123: SUBDIRECCION DE DESARROLLO Y ATENCION AL SECTOR AGROPECUARIO | E123: =COUNTIF($D$4:D123,D123:D123) -> 4 | F123: Conservación y mejoramiento de suelos agrícolas | G123: Porcentaje de toneladas de cal y minerales incorporados mediante el Programa de conservación y mejora de los suelos agrícolas | H123: Número de Toneladas incorporadas al suelo (Cal) | I123: 300 | J123: 300 | K123: Jorge Eduardo Luján Gómez | L123: 33-36-01-14-05 | M123: agropecuariotlaquepaque@gmail.com
A124: SECRETARIA_DE_BIENESTARSUBDIRECCION DE DESARROLLO Y ATENCION AL SECTOR AGROPECUARIO5Conservación y mejoramiento de suelos agrícolas | B124: SECRETARIA_DE_BIENESTARSUBDIRECCION DE DESARROLLO Y ATENCION AL SECTOR AGROPECUARIO5 | C124: SECRETARIA_DE_BIENESTAR | D124: SUBDIRECCION DE DESARROLLO Y ATENCION AL SECTOR AGROPECUARIO | E124: =COUNTIF($D$4:D124,D124:D124) -> 5 | F124: Conservación y mejoramiento de suelos agrícolas | G124: Porcentaje de toneladas de cal y minerales incorporados mediante el Programa de conservación y mejora de los suelos agrícolas | H124: Número de Toneladas incorporadas al suelo (Minerales) | I124: 200 | J124: 200 | K124: Jorge Eduardo Luján Gómez | L124: 33-36-01-14-05 | M124: agropecuariotlaquepaque@gmail.com
A125: SECRETARIA_DE_BIENESTARSUBDIRECCION DE DESARROLLO Y ATENCION AL SECTOR AGROPECUARIO6Hidroponía | B125: SECRETARIA_DE_BIENESTARSUBDIRECCION DE DESARROLLO Y ATENCION AL SECTOR AGROPECUARIO6 | C125: SECRETARIA_DE_BIENESTAR | D125: SUBDIRECCION DE DESARROLLO Y ATENCION AL SECTOR AGROPECUARIO | E125: =COUNTIF($D$4:D125,D125:D125) -> 6 | F125: Hidroponía | G125: Porcentaje de capacitaciones en Hidroponía realizadas | H125: Número de capacitaciones realizadas | I125: 0 | J125: 150 | K125: Juan Pablo Santana Moya | L125: 33-36-01-14-05 | M125: agropecuariotlaquepaque@gmail.com
A126: SECRETARIA_DE_FOMENTO_ECONOMICO_Y_CULTURALDIRECCION DE CULTURA1Cultura en tu colonia | B126: SECRETARIA_DE_FOMENTO_ECONOMICO_Y_CULTURALDIRECCION DE CULTURA1 | C126: SECRETARIA_DE_FOMENTO_ECONOMICO_Y_CULTURAL | D126: DIRECCION DE CULTURA | E126: =COUNTIF($D$4:D126,D126:D126) -> 1 | F126: Cultura en tu colonia | G126: Porcentaje de artistas contratados para llevar actividades culturales a las colonias vulnerables | H126: Número de artistas contratados | I126: 53 | J126: 50 | K126: Vázquez Sandoval Arianna Janeth | L126: ´'3316018010 | M126: oscar.carrillo.cultura@gmail.com
A127: SECRETARIA_DE_FOMENTO_ECONOMICO_Y_CULTURALDIRECCION DE CULTURA2Cultura Por La Paz | B127: SECRETARIA_DE_FOMENTO_ECONOMICO_Y_CULTURALDIRECCION DE CULTURA2 | C127: SECRETARIA_DE_FOMENTO_ECONOMICO_Y_CULTURAL | D127: DIRECCION DE CULTURA | E127: =COUNTIF($D$4:D127,D127:D127) -> 2 | F127: Cultura Por La Paz | G127: Porcentaje de colonias beneficiadas con actividades culturales. | H127: Numero de colonias beneficiadas | I127: 186 | J127: 80 | K127: Vázquez Sandoval Arianna Janeth | L127: ´'3316018010 | M127: oscar.carrillo.cultura@gmail.com
A128: SECRETARIA_DE_FOMENTO_ECONOMICO_Y_CULTURALDIRECCION DE CULTURA3Ferias, Festivales Y Exposiciones | B128: SECRETARIA_DE_FOMENTO_ECONOMICO_Y_CULTURALDIRECCION DE CULTURA3 | C128: SECRETARIA_DE_FOMENTO_ECONOMICO_Y_CULTURAL | D128: DIRECCION DE CULTURA | E128: =COUNTIF($D$4:D128,D128:D128) -> 3 | F128: Ferias, Festivales Y Exposiciones | G128: Porcentaje de avances en Festivales o Ferias | H128: Festivales y/o Ferias realizados | I128: 4 | J128: 3 | K128: Vázquez Sandoval Arianna Janeth | L128: ´'3316018010 | M128: oscar.carrillo.cultura@gmail.com
A129: SECRETARIA_DE_FOMENTO_ECONOMICO_Y_CULTURALDIRECCION DE CULTURA4Formación Continua | B129: SECRETARIA_DE_FOMENTO_ECONOMICO_Y_CULTURALDIRECCION DE CULTURA4 | C129: SECRETARIA_DE_FOMENTO_ECONOMICO_Y_CULTURAL | D129: DIRECCION DE CULTURA | E129: =COUNTIF($D$4:D129,D129:D129) -> 4 | F129: Formación Continua | G129: Numero de talleres impartidos en colonias | H129: Talleres impartidos en colonias | I129: 0 | J129: 10 | K129: Vázquez Sandoval Arianna Janeth | L129: ´'3316018010 | M129: oscar.carrillo.cultura@gmail.com
A130: SECRETARIA_DE_FOMENTO_ECONOMICO_Y_CULTURALDIRECCION DE CULTURA5Amigos de Refugio | B130: SECRETARIA_DE_FOMENTO_ECONOMICO_Y_CULTURALDIRECCION DE CULTURA5 | C130: SECRETARIA_DE_FOMENTO_ECONOMICO_Y_CULTURAL | D130: DIRECCION DE CULTURA | E130: =COUNTIF($D$4:D130,D130:D130) -> 5 | F130: Amigos de Refugio | G130: Porcentaje de visitas al recinto cultural | H130: Numero de visitas al recinto cultural | I130: 43 | J130: 30 | K130: Vázquez Sandoval Arianna Janeth | L130: 3316018010 | M130: oscar.carrillo.cultura@gmail.com
A131: SECRETARIA_DE_FOMENTO_ECONOMICO_Y_CULTURALSUBDIRECCION DE BIBLIOTECAS1Talleres De Fomento A Cultura | B131: SECRETARIA_DE_FOMENTO_ECONOMICO_Y_CULTURALSUBDIRECCION DE BIBLIOTECAS1 | C131: SECRETARIA_DE_FOMENTO_ECONOMICO_Y_CULTURAL | D131: SUBDIRECCION DE BIBLIOTECAS | E131: =COUNTIF($D$4:D131,D131:D131) -> 1 | F131: Talleres De Fomento A Cultura | G131: Porcentaje de etapas de gestión para la adquisición de un vehículo para equipar la jefatura de bibliotecas | H131: Número de etapas realizadas | I131: 0 | J131: 2 | K131: Christian René García Gutiérrez | L131: 33-10-97-20-56 | M131: libroscoordinacion@gmail.com
A132: SECRETARIA_DE_FOMENTO_ECONOMICO_Y_CULTURALSUBDIRECCION DE MUSEOS1Exposiciones Temporales | B132: SECRETARIA_DE_FOMENTO_ECONOMICO_Y_CULTURALSUBDIRECCION DE MUSEOS1 | C132: SECRETARIA_DE_FOMENTO_ECONOMICO_Y_CULTURAL | D132: SUBDIRECCION DE MUSEOS | E132: =COUNTIF($D$4:D132,D132:D132) -> 1 | F132: Exposiciones Temporales | G132: Porcentaje de exposiciones temporales y adecuación de las salas | I132: 0 | J132: 4 | K132: DAVID GALLEGOS | L132: 33-36-39-56-46 | M132: pantaleonpanduromuseo@gmail.com
A133: =B133&F133 -> SECRETARIA_DE_FOMENTO_ECONOMICO_Y_CULTURALSUBDIRECCION DE MUSEOS2Museo Itinerante | B133: SECRETARIA_DE_FOMENTO_ECONOMICO_Y_CULTURALSUBDIRECCION DE MUSEOS2 | C133: SECRETARIA_DE_FOMENTO_ECONOMICO_Y_CULTURAL | D133: SUBDIRECCION DE MUSEOS | E133: =COUNTIF($D$4:D133,D133:D133) -> 2 | F133: Museo Itinerante | G133: MOSTRAR EL TALENTO ARTÍSTICO DE NUESTROS ARTESANOS DE TIDA LA REPÚBLICA | I133: 0 | J133: 2 | K133: DAVID GALLEGOS | L133: 33-36-39-56-46 | M133: pantaleonpanduromuseo@gmail.com
A134: SECRETARIA_DE_FOMENTO_ECONOMICO_Y_CULTURALSUBDIRECCION DE MUSEOS3Museos a la Calle | B134: SECRETARIA_DE_FOMENTO_ECONOMICO_Y_CULTURALSUBDIRECCION DE MUSEOS3 | C134: SECRETARIA_DE_FOMENTO_ECONOMICO_Y_CULTURAL | D134: SUBDIRECCION DE MUSEOS | E134: =COUNTIF($D$4:D134,D134:D134) -> 3 | F134: Museos a la Calle | G134: EXPOSICIONES ITINERANTES EN COLONIAS MARGINADAS DEL MUNICIPIO | H134: NÚMERO DE COLONIAS EN LAS QUE SE LLEVARÁN LAS EXPOSICIONES | I134: 0 | J134: 5 | K134: DAVID GALLEGOS | L134: 33-36-39-56-46 | M134: pantaleonpanduromuseo@gmail.com
A135: SECRETARIA_DE_FOMENTO_ECONOMICO_Y_CULTURALSUBDIRECCION DE MUSEOS4Xvlvii Premio Nacional De La Cerámica | B135: SECRETARIA_DE_FOMENTO_ECONOMICO_Y_CULTURALSUBDIRECCION DE MUSEOS4 | C135: SECRETARIA_DE_FOMENTO_ECONOMICO_Y_CULTURAL | D135: SUBDIRECCION DE MUSEOS | E135: =COUNTIF($D$4:D135,D135:D135) -> 4 | F135: Xvlvii Premio Nacional De La Cerámica | G135: CONVOCAR A LOS ARTESANOS DE TODA LA REPÙBLICA, PARA DAR A CONOCER SU TALENTO E INSPIRACIÒN AL PARTICIPAR CON SUS OBRAS EN EL CERTAMEN DEL PREMIO NACIONAL DE LA CERÀMICA | H135: 0 | J135: 1 | K135: DAVID GALLEGOS | L135: 33-36-39-56-46 | M135: pantaleonpanduromuseo@gmail.com
A136: SECRETARIA_DE_FOMENTO_ECONOMICO_Y_CULTURALDIRECCION DE DESARROLLO ARTESANAL Y TURISTICO1Capacitación | B136: SECRETARIA_DE_FOMENTO_ECONOMICO_Y_CULTURALDIRECCION DE DESARROLLO ARTESANAL Y TURISTICO1 | C136: SECRETARIA_DE_FOMENTO_ECONOMICO_Y_CULTURAL | D136: DIRECCION DE DESARROLLO ARTESANAL Y TURISTICO | E136: =COUNTIF($D$4:D136,D136:D136) -> 1 | F136: Capacitación | G136: Participación de artesanos beneficiados con talleres y capacitaciones | H136: Numero de personas beneficiadas | I136: 150 | J136: 150 | K136: Mtro. Arwin Armando Matanael Ramos Casas | L136: 3310576212 | M136: patricia.cano@tlaquepaque.gob.mx
A137: SECRETARIA_DE_FOMENTO_ECONOMICO_Y_CULTURALDIRECCION DE DESARROLLO ARTESANAL Y TURISTICO2Padrón Artesanal y Credencialización | B137: SECRETARIA_DE_FOMENTO_ECONOMICO_Y_CULTURALDIRECCION DE DESARROLLO ARTESANAL Y TURISTICO2 | C137: SECRETARIA_DE_FOMENTO_ECONOMICO_Y_CULTURAL | D137: DIRECCION DE DESARROLLO ARTESANAL Y TURISTICO | E137: =COUNTIF($D$4:D137,D137:D137) -> 2 | F137: Padrón Artesanal y Credencialización | G137: Artesanos Beneficiados | H137: Numero de artesanos registrados | I137: 426 | J137: 426 | K137: Mtro. Arwin Armando Matanael Ramos Casas | L137: 3310576212 | M137: patricia.cano@tlaquepaque.gob.mx
A138: SECRETARIA_DE_FOMENTO_ECONOMICO_Y_CULTURALDIRECCION DE DESARROLLO ARTESANAL Y TURISTICO3Rescatando nuestras Tradiciones | B138: SECRETARIA_DE_FOMENTO_ECONOMICO_Y_CULTURALDIRECCION DE DESARROLLO ARTESANAL Y TURISTICO3 | C138: SECRETARIA_DE_FOMENTO_ECONOMICO_Y_CULTURAL | D138: DIRECCION DE DESARROLLO ARTESANAL Y TURISTICO | E138: =COUNTIF($D$4:D138,D138:D138) -> 3 | F138: Rescatando nuestras Tradiciones | G138: Talleres impartidos | H138: Numero de Talleres realizados | I138: 95 | J138: 100 | K138: Mtro. Arwin Armando Matanael Ramos Casas | L138: 3310576212 | M138: patricia.cano@tlaquepaque.gob.mx
A139: SECRETARIA_DE_FOMENTO_ECONOMICO_Y_CULTURALDIRECCION DE DESARROLLO ARTESANAL Y TURISTICO4Festivales, Eventos, Ferias y Exposiciones | B139: SECRETARIA_DE_FOMENTO_ECONOMICO_Y_CULTURALDIRECCION DE DESARROLLO ARTESANAL Y TURISTICO4 | C139: SECRETARIA_DE_FOMENTO_ECONOMICO_Y_CULTURAL | D139: DIRECCION DE DESARROLLO ARTESANAL Y TURISTICO | E139: =COUNTIF($D$4:D139,D139:D139) -> 4 | F139: Festivales, Eventos, Ferias y Exposiciones | G139: Festivales, eventos y exposiciones. | H139: Número de festivales, eventos y exposiciones. | I139: 12 | J139: 17 | K139: Jessica Lizbeth Gallardo González / Arwin Armando Matanael Ramos Casas | L139: 33 1057 6212 / 33 1206960 | M139: desarrolloartesanalyturistico@tlaquepaque.gob.mx
A140: SECRETARIA_DE_FOMENTO_ECONOMICO_Y_CULTURALDIRECCION DE DESARROLLO ARTESANAL Y TURISTICO5Permanencia Pueblo Mágico | B140: SECRETARIA_DE_FOMENTO_ECONOMICO_Y_CULTURALDIRECCION DE DESARROLLO ARTESANAL Y TURISTICO5 | C140: SECRETARIA_DE_FOMENTO_ECONOMICO_Y_CULTURAL | D140: DIRECCION DE DESARROLLO ARTESANAL Y TURISTICO | E140: =COUNTIF($D$4:D140,D140:D140) -> 5 | F140: Permanencia Pueblo Mágico | G140: Afluencia turística | H140: Número de personas que visitan el municipio registrados en módulos de información, tour-operadores y hoteles. | I140: 319000 | J140: 400000 | K140: Jessica Lizbeth Gallardo González / Arwin Armando Matanael Ramos Casas | L140: 33 1057 6212 / 33 1206960 | M140: desarrolloartesanalyturistico@tlaquepaque.gob.mx
A141: SECRETARIA_DE_FOMENTO_ECONOMICO_Y_CULTURALDIRECCION DE GESTION EMPRESARIAL E INDUSTRIAL1Vinculación directa con empresas | B141: SECRETARIA_DE_FOMENTO_ECONOMICO_Y_CULTURALDIRECCION DE GESTION EMPRESARIAL E INDUSTRIAL1 | C141: SECRETARIA_DE_FOMENTO_ECONOMICO_Y_CULTURAL | D141: DIRECCION DE GESTION EMPRESARIAL E INDUSTRIAL | E141: =COUNTIF($D$4:D141,D141:D141) -> 1 | F141: Vinculación directa con empresas | G141: Vinculación con empresas | H141: empresarios atendidos | I141: 0 | J141: 30 | K141: Lcdo. José Antonio Álvarez Hernández | L141: 3336591599/3336590901 | M141: antonioempresarialindustrial@gmail.com
A142: SECRETARIA_DE_FOMENTO_ECONOMICO_Y_CULTURALDIRECCION DE GESTION EMPRESARIAL E INDUSTRIAL2Expo Emprende y Transforma 2025 | B142: =C142&D142&E142 -> SECRETARIA_DE_FOMENTO_ECONOMICO_Y_CULTURALDIRECCION DE GESTION EMPRESARIAL E INDUSTRIAL2 | C142: SECRETARIA_DE_FOMENTO_ECONOMICO_Y_CULTURAL | D142: DIRECCION DE GESTION EMPRESARIAL E INDUSTRIAL | E142: =COUNTIF($D$4:D142,D142:D142) -> 2 | F142: Expo Emprende y Transforma 2025 | G142: Personas atendas en general y vinculación empresarial | H142: Número de personas atendidas y vinculación empresarial | I142: 0 | J142: 1000 | K142: Lcdo. José Antonio Álvarez Hernández | L142: 3336591599/3336590901 | M142: antonioempresarialindustrial@gmail.com
A143: SECRETARIA_DE_FOMENTO_ECONOMICO_Y_CULTURALDIRECCION DE GESTION EMPRESARIAL E INDUSTRIAL3Empleo a Tu Alcance | B143: SECRETARIA_DE_FOMENTO_ECONOMICO_Y_CULTURALDIRECCION DE GESTION EMPRESARIAL E INDUSTRIAL3 | C143: SECRETARIA_DE_FOMENTO_ECONOMICO_Y_CULTURAL | D143: DIRECCION DE GESTION EMPRESARIAL E INDUSTRIAL | E143: =COUNTIF($D$4:D143,D143:D143) -> 3 | F143: Empleo a Tu Alcance | G143: Porcentaje de personas beneficiadas con alguna vacante, mediante el programa Empleo a tu Alcance | H143: Número de personas beneficiarias | I143: 0 | J143: 300 | K143: Lcdo. José Antonio Álvarez Hernández | L143: 3336591599/3336590901 | M143: antonioempresarialindustrial@gmail.com
A144: SECRETARIA_DE_FOMENTO_ECONOMICO_Y_CULTURALDIRECCION DE GESTION EMPRESARIAL E INDUSTRIAL4Capacitación Permanente Empresarial, Cooperativas bienes y/o Servicios y Talleres Autoempleo | B144: SECRETARIA_DE_FOMENTO_ECONOMICO_Y_CULTURALDIRECCION DE GESTION EMPRESARIAL E INDUSTRIAL4 | C144: SECRETARIA_DE_FOMENTO_ECONOMICO_Y_CULTURAL | D144: DIRECCION DE GESTION EMPRESARIAL E INDUSTRIAL | E144: =COUNTIF($D$4:D144,D144:D144) -> 4 | F144: Capacitación Permanente Empresarial, Cooperativas bienes y/o Servicios y Talleres Autoempleo | G144: Porcentaje de personas capacitadas en temas empresariales. | H144: Número de personas capacitadas en temas empresariales | I144: 0 | J144: 100 | K144: Lcdo. José Antonio Álvarez Hernández | L144: 3336591599/3336590901 | M144: antonioempresarialindustrial@gmail.com
A145: SECRETARIA_DE_FOMENTO_ECONOMICO_Y_CULTURALDIRECCION DE GESTION EMPRESARIAL E INDUSTRIAL5Capacitación Permanente Empresarial, Cooperativas bienes y/o Servicios y Talleres Autoempleo | B145: SECRETARIA_DE_FOMENTO_ECONOMICO_Y_CULTURALDIRECCION DE GESTION EMPRESARIAL E INDUSTRIAL5 | C145: SECRETARIA_DE_FOMENTO_ECONOMICO_Y_CULTURAL | D145: DIRECCION DE GESTION EMPRESARIAL E INDUSTRIAL | E145: =COUNTIF($D$4:D145,D145:D145) -> 5 | F145: Capacitación Permanente Empresarial, Cooperativas bienes y/o Servicios y Talleres Autoempleo | G145: Porcentaje de personas capacitadas en talleres de autoempleo. | H145: Número de personas capacitadas en talleres de autoempleo y autosuficiencia alimentaria | I145: 0 | J145: 100 | K145: Lcdo. José Antonio Álvarez Hernández | L145: 3336591599/3336590901 | M145: antonioempresarialindustrial@gmail.com
A146: SECRETARIA_DE_FOMENTO_ECONOMICO_Y_CULTURALDIRECCION DE GESTION EMPRESARIAL E INDUSTRIAL6Capacitación Permanente Empresarial, Cooperativas bienes y/o Servicios y Talleres Autoempleo | B146: SECRETARIA_DE_FOMENTO_ECONOMICO_Y_CULTURALDIRECCION DE GESTION EMPRESARIAL E INDUSTRIAL6 | C146: SECRETARIA_DE_FOMENTO_ECONOMICO_Y_CULTURAL | D146: DIRECCION DE GESTION EMPRESARIAL E INDUSTRIAL | E146: =COUNTIF($D$4:D146,D146:D146) -> 6 | F146: Capacitación Permanente Empresarial, Cooperativas bienes y/o Servicios y Talleres Autoempleo | G146: Porcentaje de personas capacitadas en talleres de tema de cooperativismo. | H146: Número de personas capacitadas en talleres de autoempleo y autosuficiencia alimentaria | I146: 0 | J146: 100 | K146: Lcdo. José Antonio Álvarez Hernández | L146: 3336591599/3336590901 | M146: antonioempresarialindustrial@gmail.com
A147: SECRETARIA_DE_FOMENTO_ECONOMICO_Y_CULTURALDIRECCION DE GESTION EMPRESARIAL E INDUSTRIAL7Mujeres Empresarias en Tlaquepaque | B147: SECRETARIA_DE_FOMENTO_ECONOMICO_Y_CULTURALDIRECCION DE GESTION EMPRESARIAL E INDUSTRIAL7 | C147: SECRETARIA_DE_FOMENTO_ECONOMICO_Y_CULTURAL | D147: DIRECCION DE GESTION EMPRESARIAL E INDUSTRIAL | E147: =COUNTIF($D$4:D147,D147:D147) -> 7 | F147: Mujeres Empresarias en Tlaquepaque | G147: Porcentaje de etapas realizadas para el evento MUJERES EMPRESARIAS | H147: Número de etapas realizadas | I147: 1 | J147: 1 | K147: Lcdo. José Antonio Álvarez Hernández | L147: 3336591599/3336590901 | M147: antonioempresarialindustrial@gmail.com
A148: SECRETARIA_DE_FOMENTO_ECONOMICO_Y_CULTURALDIRECCION DEL CENTRO HISTORICO1Mantenimiento y Conservación del Centro Histórico | B148: SECRETARIA_DE_FOMENTO_ECONOMICO_Y_CULTURALDIRECCION DEL CENTRO HISTORICO1 | C148: SECRETARIA_DE_FOMENTO_ECONOMICO_Y_CULTURAL | D148: DIRECCION DEL CENTRO HISTORICO | E148: =COUNTIF($D$4:D148,D148:D148) -> 1 | F148: Mantenimiento y Conservación del Centro Histórico | G148: Porcentaje de actividades de mantenimiento y conservación del Centro Histórico | H148: Número de actividades realizadas | I148: 0 | J148: 60 | K148: JOSÉ ALONSO FLORES RAMÍREZ | L148: 3322354310 | M148: floresalonso.lcop@gmail.com
A149: SECRETARIA_DE_FOMENTO_ECONOMICO_Y_CULTURALDIRECCION DEL CENTRO HISTORICO2Agenda del Espacio Público | B149: SECRETARIA_DE_FOMENTO_ECONOMICO_Y_CULTURALDIRECCION DEL CENTRO HISTORICO2 | C149: SECRETARIA_DE_FOMENTO_ECONOMICO_Y_CULTURAL | D149: DIRECCION DEL CENTRO HISTORICO | E149: =COUNTIF($D$4:D149,D149:D149) -> 2 | F149: Agenda del Espacio Público | G149: Porcentaje de autorizaciones para el uso del espacio público del Centro Histórico | H149: Número de autorizaciones emitidas | I149: 0 | J149: 60 | K149: JOSÉ ALONSO FLORES RAMÍREZ | L149: 3322354310 | M149: floresalonso.lcop@gmail.com
A150: SECRETARIA_DE_FOMENTO_ECONOMICO_Y_CULTURALDIRECCIÓN DE CEMENTERIOS1Digitalización Administrativa | B150: SECRETARIA_DE_FOMENTO_ECONOMICO_Y_CULTURALDIRECCIÓN DE CEMENTERIOS1 | C150: SECRETARIA_DE_FOMENTO_ECONOMICO_Y_CULTURAL | D150: DIRECCIÓN DE CEMENTERIOS | E150: =COUNTIF($D$4:D150,D150:D150) -> 1 | F150: Digitalización Administrativa | G150: porcentaje de personas atendidas | H150: numero de personas atendidas | I150: 0 | J150: 100 | K150: Alma Griselda Mercado Espinoza | L150: 3319186129 | M150: spinozamercad@gmail.com
A151: SECRETARIA_DE_SERVICIOS_PUBLICOS_Y_MEDIO_AMBIENTEDEPARTAMENTO DE REGULACION AMBIENTAL1Creadores De Esperanza Para El Medio Ambiente | B151: SECRETARIA_DE_SERVICIOS_PUBLICOS_Y_MEDIO_AMBIENTEDEPARTAMENTO DE REGULACION AMBIENTAL1 | C151: SECRETARIA_DE_SERVICIOS_PUBLICOS_Y_MEDIO_AMBIENTE | D151: DEPARTAMENTO DE REGULACION AMBIENTAL | E151: =COUNTIF($D$4:D151,D151:D151) -> 1 | F151: Creadores De Esperanza Para El Medio Ambiente | G151: contenedores instalados | H151: kilos obtenidos de PET | I151: 0 | J151: 0 | K151: Carlos Iván Vázquez Muñoz | L151: 3334577356 | M151: carlosambiental2024@gmail.com
A152: SECRETARIA_DE_SERVICIOS_PUBLICOS_Y_MEDIO_AMBIENTEDEPARTAMENTO DE REGULACION AMBIENTAL2Gobierno Con Buen Papel | B152: SECRETARIA_DE_SERVICIOS_PUBLICOS_Y_MEDIO_AMBIENTEDEPARTAMENTO DE REGULACION AMBIENTAL2 | C152: SECRETARIA_DE_SERVICIOS_PUBLICOS_Y_MEDIO_AMBIENTE | D152: DEPARTAMENTO DE REGULACION AMBIENTAL | E152: =COUNTIF($D$4:D152,D152:D152) -> 2 | F152: Gobierno Con Buen Papel | G152: PORCENTAJE DE PAPEL RECOLECTADO | H152: KILOGRAMOS DE PAPEL | I152: 3500 | J152: 4000 | K152: Carlos Iván Vázquez Muñoz | L152: 3334577356 | M152: carlosambiental2024@gmail.com
A153: SECRETARIA_DE_SERVICIOS_PUBLICOS_Y_MEDIO_AMBIENTEDEPARTAMENTO DE REGULACION AMBIENTAL3Sembrando Esperanza | B153: SECRETARIA_DE_SERVICIOS_PUBLICOS_Y_MEDIO_AMBIENTEDEPARTAMENTO DE REGULACION AMBIENTAL3 | C153: SECRETARIA_DE_SERVICIOS_PUBLICOS_Y_MEDIO_AMBIENTE | D153: DEPARTAMENTO DE REGULACION AMBIENTAL | E153: =COUNTIF($D$4:D153,D153:D153) -> 3 | F153: Sembrando Esperanza | G153: Huertos o espacios reforestados | H153: Arboles o espacios verdes plantados | I153: 100 | J153: 200 | K153: Carlos Iván Vázquez Muñoz | L153: 3334577356 | M153: carlosambiental2024@gmail.com
A154: SECRETARIA_DE_SERVICIOS_PUBLICOS_Y_MEDIO_AMBIENTEDIRECCION DE AGUA POTABLE, DRENAJE Y ALCANTARILLADO1Padrón Único de Usuarios | B154: SECRETARIA_DE_SERVICIOS_PUBLICOS_Y_MEDIO_AMBIENTEDIRECCION DE AGUA POTABLE, DRENAJE Y ALCANTARILLADO1 | C154: SECRETARIA_DE_SERVICIOS_PUBLICOS_Y_MEDIO_AMBIENTE | D154: DIRECCION DE AGUA POTABLE, DRENAJE Y ALCANTARILLADO | E154: =COUNTIF($D$4:D154,D154:D154) -> 1 | F154: Padrón Único de Usuarios | G154: Porcentaje de viviendas agregadas al padrón único de usuarios. | H154: Número de Viviendas | I154: 522 | J154: 1200 | K154: ANTONIO GUADALUPE HURTADO NUÑEZ | L154: 3338370430 | M154: aghn1980@gmail.com
A155: SECRETARIA_DE_SERVICIOS_PUBLICOS_Y_MEDIO_AMBIENTEDIRECCION DE AGUA POTABLE, DRENAJE Y ALCANTARILLADO2Servicio Medido | B155: SECRETARIA_DE_SERVICIOS_PUBLICOS_Y_MEDIO_AMBIENTEDIRECCION DE AGUA POTABLE, DRENAJE Y ALCANTARILLADO2 | C155: SECRETARIA_DE_SERVICIOS_PUBLICOS_Y_MEDIO_AMBIENTE | D155: DIRECCION DE AGUA POTABLE, DRENAJE Y ALCANTARILLADO | E155: =COUNTIF($D$4:D155,D155:D155) -> 2 | F155: Servicio Medido | G155: Porcentaje de gestiones realizadas para la adquisición e Instalación de medidor de agua y piezas especiales | H155: Número de Gestiones Realizadas | I155: 0 | J155: 3 | K155: ANTONIO GUADALUPE HURTADO NUÑEZ | L155: 3338370430 | M155: aghn1980@gmail.com
A156: SECRETARIA_DE_SERVICIOS_PUBLICOS_Y_MEDIO_AMBIENTEDIRECCION DE AGUA POTABLE, DRENAJE Y ALCANTARILLADO3Servicio Medido | B156: SECRETARIA_DE_SERVICIOS_PUBLICOS_Y_MEDIO_AMBIENTEDIRECCION DE AGUA POTABLE, DRENAJE Y ALCANTARILLADO3 | C156: SECRETARIA_DE_SERVICIOS_PUBLICOS_Y_MEDIO_AMBIENTE | D156: DIRECCION DE AGUA POTABLE, DRENAJE Y ALCANTARILLADO | E156: =COUNTIF($D$4:D156,D156:D156) -> 3 | F156: Servicio Medido | G156: Porcentaje de adquisición e Instalación de medidor de agua y piezas especiales | H156: Número de Medidores Instalados | I156: 0 | J156: 1200 | K156: ANTONIO GUADALUPE HURTADO NUÑEZ | L156: 3338370430 | M156: aghn1980@gmail.com
A157: SECRETARIA_DE_SERVICIOS_PUBLICOS_Y_MEDIO_AMBIENTEDIRECCION DE AGUA POTABLE, DRENAJE Y ALCANTARILLADO4Trabajos emergentes de redes hidrosanitarias | B157: SECRETARIA_DE_SERVICIOS_PUBLICOS_Y_MEDIO_AMBIENTEDIRECCION DE AGUA POTABLE, DRENAJE Y ALCANTARILLADO4 | C157: SECRETARIA_DE_SERVICIOS_PUBLICOS_Y_MEDIO_AMBIENTE | D157: DIRECCION DE AGUA POTABLE, DRENAJE Y ALCANTARILLADO | E157: =COUNTIF($D$4:D157,D157:D157) -> 4 | F157: Trabajos emergentes de redes hidrosanitarias | G157: Porcentaje de Reportes Atendidos para el Mantenimiento de Redes Hidrosanitarias | H157: Número de Reportes Ciudadanos Atendidos | I157: 1750 | J157: 1800 | K157: ANTONIO GUADALUPE HURTADO NUÑEZ | L157: 3338370430 | M157: aghn1980@gmail.com
A158: SECRETARIA_DE_SERVICIOS_PUBLICOS_Y_MEDIO_AMBIENTEDIRECCION DE AGUA POTABLE, DRENAJE Y ALCANTARILLADO5Entrega del Vital Líquido | B158: SECRETARIA_DE_SERVICIOS_PUBLICOS_Y_MEDIO_AMBIENTEDIRECCION DE AGUA POTABLE, DRENAJE Y ALCANTARILLADO5 | C158: SECRETARIA_DE_SERVICIOS_PUBLICOS_Y_MEDIO_AMBIENTE | D158: DIRECCION DE AGUA POTABLE, DRENAJE Y ALCANTARILLADO | E158: =COUNTIF($D$4:D158,D158:D158) -> 5 | F158: Entrega del Vital Líquido | G158: PORCENTAJE DE VIAJES PARA EL SUMINISTRO DE AGUA REALIZADOS | H158: NUMERO DE VIAJES REALIZADOS | I158: 12000 | J158: 14000 | K158: ANTONIO GUADALUPE HURTADO NUÑEZ | L158: 3338370430 | M158: aghn1980@gmail.com
A159: SECRETARIA_DE_SERVICIOS_PUBLICOS_Y_MEDIO_AMBIENTEDIRECCION DE AGUA POTABLE, DRENAJE Y ALCANTARILLADO6Gestión Y Puesta En Marcha Del Laboratorio De Análisis De Agua Potable | B159: SECRETARIA_DE_SERVICIOS_PUBLICOS_Y_MEDIO_AMBIENTEDIRECCION DE AGUA POTABLE, DRENAJE Y ALCANTARILLADO6 | C159: SECRETARIA_DE_SERVICIOS_PUBLICOS_Y_MEDIO_AMBIENTE | D159: DIRECCION DE AGUA POTABLE, DRENAJE Y ALCANTARILLADO | E159: =COUNTIF($D$4:D159,D159:D159) -> 6 | F159: Gestión Y Puesta En Marcha Del Laboratorio De Análisis De Agua Potable | G159: Porcentaje de etapas de gestión para la conclusión y puesta en marcha del laboratorio de análisis del Agua Potable | H159: Número de etapas realizadas | I159: 0 | J159: 10 | K159: ANTONIO GUADALUPE HURTADO NUÑEZ | L159: 3338370430 | M159: aghn1980@gmail.com
A160: SECRETARIA_DE_SERVICIOS_PUBLICOS_Y_MEDIO_AMBIENTEDIRECCION DE AGUA POTABLE, DRENAJE Y ALCANTARILLADO7Estudio de Factibilidades de Redes Hidrosanitarias | B160: SECRETARIA_DE_SERVICIOS_PUBLICOS_Y_MEDIO_AMBIENTEDIRECCION DE AGUA POTABLE, DRENAJE Y ALCANTARILLADO7 | C160: SECRETARIA_DE_SERVICIOS_PUBLICOS_Y_MEDIO_AMBIENTE | D160: DIRECCION DE AGUA POTABLE, DRENAJE Y ALCANTARILLADO | E160: =COUNTIF($D$4:D160,D160:D160) -> 7 | F160: Estudio de Factibilidades de Redes Hidrosanitarias | G160: Porcentaje de etapas de gestión para obtención de factibilidades | H160: Número de etapas de gestión realizadas | I160: 0 | J160: 3 | K160: ANTONIO GUADALUPE HURTADO NUÑEZ | L160: 3338370430 | M160: aghn1980@gmail.com
A161: SECRETARIA_DE_SERVICIOS_PUBLICOS_Y_MEDIO_AMBIENTEDIRECCION DE AGUA POTABLE, DRENAJE Y ALCANTARILLADO8Estudio de Factibilidades de Redes Hidrosanitarias | B161: SECRETARIA_DE_SERVICIOS_PUBLICOS_Y_MEDIO_AMBIENTEDIRECCION DE AGUA POTABLE, DRENAJE Y ALCANTARILLADO8 | C161: SECRETARIA_DE_SERVICIOS_PUBLICOS_Y_MEDIO_AMBIENTE | D161: DIRECCION DE AGUA POTABLE, DRENAJE Y ALCANTARILLADO | E161: =COUNTIF($D$4:D161,D161:D161) -> 8 | F161: Estudio de Factibilidades de Redes Hidrosanitarias | G161: Porcentaje de Expedientes y Supervisiones de redes hidrosanitarias para factibilidades | H161: Número de Supervisiones y Expedientes | I161: 0 | J161: 80 | K161: ANTONIO GUADALUPE HURTADO NUÑEZ | L161: 3338370430 | M161: aghn1980@gmail.com
A162: SECRETARIA_DE_SERVICIOS_PUBLICOS_Y_MEDIO_AMBIENTEDIRECCION DE AGUA POTABLE, DRENAJE Y ALCANTARILLADO9Actualización de Datos de Redes Hidrosanitarias | B162: SECRETARIA_DE_SERVICIOS_PUBLICOS_Y_MEDIO_AMBIENTEDIRECCION DE AGUA POTABLE, DRENAJE Y ALCANTARILLADO9 | C162: SECRETARIA_DE_SERVICIOS_PUBLICOS_Y_MEDIO_AMBIENTE | D162: DIRECCION DE AGUA POTABLE, DRENAJE Y ALCANTARILLADO | E162: =COUNTIF($D$4:D162,D162:D162) -> 9 | F162: Actualización de Datos de Redes Hidrosanitarias | G162: Porcentaje de etapas de gestión para el proyecto de Actualización de datos de redes hidrosanitarias/Porcentaje en la Actualización de datos de kilómetros de redes hidrosanitarias | H162: Número de etapas de gestión realizadas / | I162: 0 | J162: 3 | K162: ANTONIO GUADALUPE HURTADO NUÑEZ | L162: 3338370430 | M162: aghn1980@gmail.com
A163: SECRETARIA_DE_SERVICIOS_PUBLICOS_Y_MEDIO_AMBIENTEDIRECCION DE AGUA POTABLE, DRENAJE Y ALCANTARILLADO10Actualización de Datos de Redes Hidrosanitarias | B163: SECRETARIA_DE_SERVICIOS_PUBLICOS_Y_MEDIO_AMBIENTEDIRECCION DE AGUA POTABLE, DRENAJE Y ALCANTARILLADO10 | C163: SECRETARIA_DE_SERVICIOS_PUBLICOS_Y_MEDIO_AMBIENTE | D163: DIRECCION DE AGUA POTABLE, DRENAJE Y ALCANTARILLADO | E163: =COUNTIF($D$4:D163,D163:D163) -> 10 | F163: Actualización de Datos de Redes Hidrosanitarias | G163: Porcentaje en la Actualización de datos de kilómetros de redes hidrosanitarias | H163: Número de Kilómetros actualizados | I163: 0 | J163: 121 | K163: ANTONIO GUADALUPE HURTADO NUÑEZ | L163: 3338370430 | M163: aghn1980@gmail.com
A164: SECRETARIA_DE_SERVICIOS_PUBLICOS_Y_MEDIO_AMBIENTEDIRECCION DE AGUA POTABLE, DRENAJE Y ALCANTARILLADO11Recepción, Distribución, Dosificación, Monitoreo de cloro residual de Agua Potable | B164: SECRETARIA_DE_SERVICIOS_PUBLICOS_Y_MEDIO_AMBIENTEDIRECCION DE AGUA POTABLE, DRENAJE Y ALCANTARILLADO11 | C164: SECRETARIA_DE_SERVICIOS_PUBLICOS_Y_MEDIO_AMBIENTE | D164: DIRECCION DE AGUA POTABLE, DRENAJE Y ALCANTARILLADO | E164: =COUNTIF($D$4:D164,D164:D164) -> 11 | F164: Recepción, Distribución, Dosificación, Monitoreo de cloro residual de Agua Potable | G164: Porcentaje de distribución, dosificación y monitoreo de cloro residual en el agua potable. | H164: Número de monitoreos de cloro residual | I164: 23000 | J164: 24000 | K164: ANTONIO GUADALUPE HURTADO NUÑEZ | L164: 3338370430 | M164: aghn1980@gmail.com
A165: SECRETARIA_DE_SERVICIOS_PUBLICOS_Y_MEDIO_AMBIENTEDIRECCION DE ALUMBRADO PUBLICO1Sustitución de luminarias a la red de alumbrado publico. | B165: SECRETARIA_DE_SERVICIOS_PUBLICOS_Y_MEDIO_AMBIENTEDIRECCION DE ALUMBRADO PUBLICO1 | C165: SECRETARIA_DE_SERVICIOS_PUBLICOS_Y_MEDIO_AMBIENTE | D165: DIRECCION DE ALUMBRADO PUBLICO | E165: =COUNTIF($D$4:D165,D165:D165) -> 1 | F165: Sustitución de luminarias a la red de alumbrado publico. | G165: Porcentaje de seguimiento y aporte a la prestación del servicio de Alumbrado Público mediante el mantenimiento y sustitución de luminarias con tecnología LED, para otorgar seguridad a los habitantes del municipio | H165: Número de luminarias sustituidas y/o reparadas en el municipio | I165: 2000 | J165: 5000 | K165: Luz Adriana Arellano Lomelí | L165: 33 38388392 | M165: alumbrado.tlq@gmail.co
A166: SECRETARIA_DE_SERVICIOS_PUBLICOS_Y_MEDIO_AMBIENTEDIRECCION DE ALUMBRADO PUBLICO2Mantenimiento y reparación de luminarias a la red de alumbrado publico. | B166: SECRETARIA_DE_SERVICIOS_PUBLICOS_Y_MEDIO_AMBIENTEDIRECCION DE ALUMBRADO PUBLICO2 | C166: SECRETARIA_DE_SERVICIOS_PUBLICOS_Y_MEDIO_AMBIENTE | D166: DIRECCION DE ALUMBRADO PUBLICO | E166: =COUNTIF($D$4:D166,D166:D166) -> 2 | F166: Mantenimiento y reparación de luminarias a la red de alumbrado publico. | G166: Porcentaje de seguimiento y aporte a la prestación del servicio de Alumbrado Público mediante el mantenimiento de las luminarias para otorgar seguridad a los habitantes del municipio | H166: Número de reportes atendidos en el municipio | I166: 9000 | J166: 9000 | K166: Luz Adriana Arellano Lomelí | L166: 33 38388392 | M166: alumbrado.tlq@gmail.co
A167: SECRETARIA_DE_SERVICIOS_PUBLICOS_Y_MEDIO_AMBIENTEDIRECCION DE ASEO PUBLICO1Programa De Operativos De Limpieza | B167: SECRETARIA_DE_SERVICIOS_PUBLICOS_Y_MEDIO_AMBIENTEDIRECCION DE ASEO PUBLICO1 | C167: SECRETARIA_DE_SERVICIOS_PUBLICOS_Y_MEDIO_AMBIENTE | D167: DIRECCION DE ASEO PUBLICO | E167: =COUNTIF($D$4:D167,D167:D167) -> 1 | F167: Programa De Operativos De Limpieza | G167: PORCENTAJE DE AVANCE DEL PROGRAMA OPERATIVOS DE LIMPIEZA | H167: NÚMERO DE OPERATIVOS REALIZADOS | I167: 1270 | J167: 1270 | K167: Claudia Ivón Hernández Arriaga | L167: 33 36 90 04 08 | M167: cieloaseopublico@gmail.com claudiaaseopublico@gmail.com
A168: SECRETARIA_DE_SERVICIOS_PUBLICOS_Y_MEDIO_AMBIENTEDIRECCION DE ASEO PUBLICO2Servicio de recolección de residuos urbanos | B168: SECRETARIA_DE_SERVICIOS_PUBLICOS_Y_MEDIO_AMBIENTEDIRECCION DE ASEO PUBLICO2 | C168: SECRETARIA_DE_SERVICIOS_PUBLICOS_Y_MEDIO_AMBIENTE | D168: DIRECCION DE ASEO PUBLICO | E168: =COUNTIF($D$4:D168,D168:D168) -> 2 | F168: Servicio de recolección de residuos urbanos | G168: PORCENTAJE DE AVANCE EN LA COBERTURA DEL SERVICIO DE RECOLECCIÓN DE RESIDUOS SÓLIDOS URBANOS | H168: NÚMERO DE COLONIAS ATENDIDAS | I168: 319 | J168: 319 | K168: Claudia Ivón Hernández Arriaga | L168: 33 36 90 04 08 | M168: cieloaseopublico@gmail.com claudiaaseopublico@gmail.com
A169: SECRETARIA_DE_SERVICIOS_PUBLICOS_Y_MEDIO_AMBIENTEDIRECCION DE ASEO PUBLICO3Fortalecimiento y adiestramiento al personal operativo | B169: SECRETARIA_DE_SERVICIOS_PUBLICOS_Y_MEDIO_AMBIENTEDIRECCION DE ASEO PUBLICO3 | C169: SECRETARIA_DE_SERVICIOS_PUBLICOS_Y_MEDIO_AMBIENTE | D169: DIRECCION DE ASEO PUBLICO | E169: =COUNTIF($D$4:D169,D169:D169) -> 3 | F169: Fortalecimiento y adiestramiento al personal operativo | G169: PORCENTAJE DE ACCIONES DE CAPACITACIÓN DEL PERSONAL | H169: NÚMERO DE ACCIONES DE CAPACITACIÓN REALIZADAS | I169: 0 | J169: 4 | K169: Claudia Ivón Hernández Arriaga | L169: 33 36 90 04 08 | M169: cieloaseopublico@gmail.com claudiaaseopublico@gmail.com
A170: SECRETARIA_DE_SERVICIOS_PUBLICOS_Y_MEDIO_AMBIENTEDIRECCION DE ASEO PUBLICO4Plataforma de Atención Ciudadana (Reportes) | B170: SECRETARIA_DE_SERVICIOS_PUBLICOS_Y_MEDIO_AMBIENTEDIRECCION DE ASEO PUBLICO4 | C170: SECRETARIA_DE_SERVICIOS_PUBLICOS_Y_MEDIO_AMBIENTE | D170: DIRECCION DE ASEO PUBLICO | E170: =COUNTIF($D$4:D170,D170:D170) -> 4 | F170: Plataforma de Atención Ciudadana (Reportes) | G170: PORCENTAJE DE REPORTES ATENDIDOS DENTRO DE LAS 24 HORAS | H170: NÚMERO DE REPORTES ATENDIDOS | I170: 0 | J170: 1550 | K170: Claudia Ivón Hernández Arriaga | L170: 33 36 90 04 08 | M170: cieloaseopublico@gmail.com claudiaaseopublico@gmail.com
A171: SECRETARIA_DE_SERVICIOS_PUBLICOS_Y_MEDIO_AMBIENTEDIRECCION DE ASEO PUBLICO5Servicio de fumigación para prevención del dengue y otras plagas | B171: SECRETARIA_DE_SERVICIOS_PUBLICOS_Y_MEDIO_AMBIENTEDIRECCION DE ASEO PUBLICO5 | C171: SECRETARIA_DE_SERVICIOS_PUBLICOS_Y_MEDIO_AMBIENTE | D171: DIRECCION DE ASEO PUBLICO | E171: =COUNTIF($D$4:D171,D171:D171) -> 5 | F171: Servicio de fumigación para prevención del dengue y otras plagas | G171: PORCENTAJE DE AVANCE DE LAS CAMPAÑAS DE FUMIGACIÓN PARA LA PREVENCIÓN DEL DENGUE Y OTRAS PLAGAS | H171: NÚMERO DE DESCACHARRIZACIONES REALIZADAS | I171: 0 | J171: 400 | K171: Claudia Ivón Hernández Arriaga | L171: 33 36 90 04 08 | M171: cieloaseopublico@gmail.com claudiaaseopublico@gmail.com
A172: SECRETARIA_DE_SERVICIOS_PUBLICOS_Y_MEDIO_AMBIENTEDIRECCION DE RASTRO1Capacitación Continua | B172: SECRETARIA_DE_SERVICIOS_PUBLICOS_Y_MEDIO_AMBIENTEDIRECCION DE RASTRO1 | C172: SECRETARIA_DE_SERVICIOS_PUBLICOS_Y_MEDIO_AMBIENTE | D172: DIRECCION DE RASTRO | E172: =COUNTIF($D$4:D172,D172:D172) -> 1 | F172: Capacitación Continua | G172: Porcentaje de capacitaciones impartidas al personal | H172: Número de capacitaciones | I172: 4 | J172: 2 | K172: Montserrat Carolina Corona Pérez | L172: 3335627069 | M172: administracion.rastro@tlaquepaque.gob.mx
A173: SECRETARIA_DE_SERVICIOS_PUBLICOS_Y_MEDIO_AMBIENTEDIRECCION DE RASTRO2Inspección Cárnica | B173: SECRETARIA_DE_SERVICIOS_PUBLICOS_Y_MEDIO_AMBIENTEDIRECCION DE RASTRO2 | C173: SECRETARIA_DE_SERVICIOS_PUBLICOS_Y_MEDIO_AMBIENTE | D173: DIRECCION DE RASTRO | E173: =COUNTIF($D$4:D173,D173:D173) -> 2 | F173: Inspección Cárnica | G173: Porcentaje de inspección a giros y tianguis realizadas | H173: Número de inspecciones | I173: 4500 | J173: 13000 | K173: Montserrat Carolina Corona Pérez | L173: 3335627069 | M173: administracion.rastro@tlaquepaque.gob.mx
A174: SECRETARIA_DE_SERVICIOS_PUBLICOS_Y_MEDIO_AMBIENTEDIRECCION DE RASTRO3Participación en campañas | B174: SECRETARIA_DE_SERVICIOS_PUBLICOS_Y_MEDIO_AMBIENTEDIRECCION DE RASTRO3 | C174: SECRETARIA_DE_SERVICIOS_PUBLICOS_Y_MEDIO_AMBIENTE | D174: DIRECCION DE RASTRO | E174: =COUNTIF($D$4:D174,D174:D174) -> 3 | F174: Participación en campañas | G174: Porcentaje de Campanas realizadas para detección de enfermedades en Ganado | H174: Numero de Campanas realizadas | I174: 3 | J174: 12 | K174: Montserrat Carolina Corona Pérez | L174: 3335627069 | M174: administracion.rastro@tlaquepaque.gob.mx
A175: SECRETARIA_DE_SERVICIOS_PUBLICOS_Y_MEDIO_AMBIENTEDIRECCION DE SALUD AMBIENTAL Y CAMBIO CLIMATICO1Registro de ladrilleros | B175: SECRETARIA_DE_SERVICIOS_PUBLICOS_Y_MEDIO_AMBIENTEDIRECCION DE SALUD AMBIENTAL Y CAMBIO CLIMATICO1 | C175: SECRETARIA_DE_SERVICIOS_PUBLICOS_Y_MEDIO_AMBIENTE | D175: DIRECCION DE SALUD AMBIENTAL Y CAMBIO CLIMATICO | E175: =COUNTIF($D$4:D175,D175:D175) -> 1 | F175: Registro de ladrilleros | G175: Porcentaje de ladrilleras registradas. | H175: Número de ladrilleras registradas. | I175: 185 | J175: 200 | K175: Lenin Torres Mondragón | L175: 3314697407 | M175: Ltmondragon@hotmail.com
A176: SECRETARIA_DE_SERVICIOS_PUBLICOS_Y_MEDIO_AMBIENTEDIRECCION DE SALUD AMBIENTAL Y CAMBIO CLIMATICO2Registro de ladrilleros | B176: SECRETARIA_DE_SERVICIOS_PUBLICOS_Y_MEDIO_AMBIENTEDIRECCION DE SALUD AMBIENTAL Y CAMBIO CLIMATICO2 | C176: SECRETARIA_DE_SERVICIOS_PUBLICOS_Y_MEDIO_AMBIENTE | D176: DIRECCION DE SALUD AMBIENTAL Y CAMBIO CLIMATICO | E176: =COUNTIF($D$4:D176,D176:D176) -> 2 | F176: Registro de ladrilleros | G176: Porcentaje de ladrilleras que renuevan convenio. | H176: Número de ladrilleras con renovación | I176: 426 | J176: 450 | K176: Lenin Torres Mondragón | L176: 3314697407 | M176: Ltmondragon@hotmail.com
A177: SECRETARIA_DE_SERVICIOS_PUBLICOS_Y_MEDIO_AMBIENTEDIRECCION DE SALUD AMBIENTAL Y CAMBIO CLIMATICO3Registro De Fuentes Fijas Municipales | B177: SECRETARIA_DE_SERVICIOS_PUBLICOS_Y_MEDIO_AMBIENTEDIRECCION DE SALUD AMBIENTAL Y CAMBIO CLIMATICO3 | C177: SECRETARIA_DE_SERVICIOS_PUBLICOS_Y_MEDIO_AMBIENTE | D177: DIRECCION DE SALUD AMBIENTAL Y CAMBIO CLIMATICO | E177: =COUNTIF($D$4:D177,D177:D177) -> 3 | F177: Registro De Fuentes Fijas Municipales | G177: Porcentaje de avance en el registro de fuentes fijas | H177: Número de fuentes fijas registradas | I177: 14 | J177: 20 | K177: Lenin Torres Mondragón | L177: 3314697407 | M177: Ltmondragon@hotmail.com
A178: SECRETARIA_DE_SERVICIOS_PUBLICOS_Y_MEDIO_AMBIENTEDIRECCION DE SALUD AMBIENTAL Y CAMBIO CLIMATICO4Servicio de dictaminación ambiental | B178: SECRETARIA_DE_SERVICIOS_PUBLICOS_Y_MEDIO_AMBIENTEDIRECCION DE SALUD AMBIENTAL Y CAMBIO CLIMATICO4 | C178: SECRETARIA_DE_SERVICIOS_PUBLICOS_Y_MEDIO_AMBIENTE | D178: DIRECCION DE SALUD AMBIENTAL Y CAMBIO CLIMATICO | E178: =COUNTIF($D$4:D178,D178:D178) -> 4 | F178: Servicio de dictaminación ambiental | G178: Porcentaje de dictaminaciones ambientales ingresadas | H178: Número de dictaminaciones evaluadas | I178: 115 | J178: 130 | K178: Lenin Torres Mondragón | L178: 3314697407 | M178: Ltmondragon@hotmail.com
A179: SECRETARIA_DE_SERVICIOS_PUBLICOS_Y_MEDIO_AMBIENTEDIRECCION DE SALUD AMBIENTAL Y CAMBIO CLIMATICO5Denuncia Ambiental Ciudadana | B179: SECRETARIA_DE_SERVICIOS_PUBLICOS_Y_MEDIO_AMBIENTEDIRECCION DE SALUD AMBIENTAL Y CAMBIO CLIMATICO5 | C179: SECRETARIA_DE_SERVICIOS_PUBLICOS_Y_MEDIO_AMBIENTE | D179: DIRECCION DE SALUD AMBIENTAL Y CAMBIO CLIMATICO | E179: =COUNTIF($D$4:D179,D179:D179) -> 5 | F179: Denuncia Ambiental Ciudadana | G179: Porcentaje de denuncias recibidas y atendidas | H179: Número de denuncias atendidas | I179: 24 | J179: 20 | K179: Lenin Torres Mondragón | L179: 3314697407 | M179: Ltmondragon@hotmail.com
A180: SECRETARIA_DE_SERVICIOS_PUBLICOS_Y_MEDIO_AMBIENTEDIRECCION DE SALUD AMBIENTAL Y CAMBIO CLIMATICO6Retiro de bienes en estado de abandono en la vía pública | B180: SECRETARIA_DE_SERVICIOS_PUBLICOS_Y_MEDIO_AMBIENTEDIRECCION DE SALUD AMBIENTAL Y CAMBIO CLIMATICO6 | C180: SECRETARIA_DE_SERVICIOS_PUBLICOS_Y_MEDIO_AMBIENTE | D180: DIRECCION DE SALUD AMBIENTAL Y CAMBIO CLIMATICO | E180: =COUNTIF($D$4:D180,D180:D180) -> 6 | F180: Retiro de bienes en estado de abandono en la vía pública | G180: Número de reportes recibidos | H180: Número de vehículos retirados | I180: 45 | J180: 50 | K180: Lenin Torres Mondragón | L180: 3314697407 | M180: Ltmondragon@hotmail.com
A181: SECRETARIA_DE_SERVICIOS_PUBLICOS_Y_MEDIO_AMBIENTESUBDIRECCION DE PARQUES, JARDINES Y GESTIÓN DEL CAMBIO CLIMÁTICO DE SERVICIOS ECOSISTEMICOS Y GESTION DEL CAMBIO CLIMATICO1Operativo Mantenimiento De Áreas Verdes | B181: SECRETARIA_DE_SERVICIOS_PUBLICOS_Y_MEDIO_AMBIENTESUBDIRECCION DE PARQUES, JARDINES Y GESTIÓN DEL CAMBIO CLIMÁTICO DE SERVICIOS ECOSISTEMICOS Y GESTION DEL CAMBIO CLIMATICO1 | C181: SECRETARIA_DE_SERVICIOS_PUBLICOS_Y_MEDIO_AMBIENTE | D181: SUBDIRECCION DE PARQUES, JARDINES Y GESTIÓN DEL CAMBIO CLIMÁTICO DE SERVICIOS ECOSISTEMICOS Y GESTION DEL CAMBIO CLIMATICO | E181: =COUNTIF($D$4:D181,D181:D181) -> 1 | F181: Operativo Mantenimiento De Áreas Verdes | G181: Porcentaje de áreas verdes pertenecientes al Municipio de San Pedro Tlaquepaque. | H181: Número de áreas verdes intervenidas en m2 | I181: 900000000 | J181: 950000000 | K181: Maricruz Martínez Macias | L181: 3314446874 | M181: maricruzm057@gmail.com
A182: SECRETARIA_DE_SERVICIOS_PUBLICOS_Y_MEDIO_AMBIENTESUBDIRECCION DE SERVICIOS ECOSISTEMICOS Y GESTION DEL CAMBIO CLIMATICO DE PARQUES, JARDINES Y GESTIÓN DEL CAMBIO CLIMÁTICO1Operativo De Podas Preventivas | B182: SECRETARIA_DE_SERVICIOS_PUBLICOS_Y_MEDIO_AMBIENTESUBDIRECCION DE SERVICIOS ECOSISTEMICOS Y GESTION DEL CAMBIO CLIMATICO DE PARQUES, JARDINES Y GESTIÓN DEL CAMBIO CLIMÁTICO1 | C182: SECRETARIA_DE_SERVICIOS_PUBLICOS_Y_MEDIO_AMBIENTE | D182: SUBDIRECCION DE SERVICIOS ECOSISTEMICOS Y GESTION DEL CAMBIO CLIMATICO DE PARQUES, JARDINES Y GESTIÓN DEL CAMBIO CLIMÁTICO | E182: =COUNTIF($D$4:D182,D182:D182) -> 1 | F182: Operativo De Podas Preventivas | G182: Con el operativo de podas preventivas serán beneficiadas los habitantes de esta Municipio de San Pedro Tlaquepaque así como toda aquella persona que visite nuestro municipio | H182: Numeró total de podas realizadas | I182: 6000 | J182: 6000 | K182: Maricruz Martínez Macias | L182: 3314446874 | M182: maricruzm057@gmail.com
A183: SECRETARIA_DE_SERVICIOS_PUBLICOS_Y_MEDIO_AMBIENTESUBDIRECCION DE SERVICIOS ECOSISTEMICOS Y GESTION DEL CAMBIO CLIMATICO DE PARQUES, JARDINES Y GESTIÓN DEL CAMBIO CLIMÁTICO2Operativo de Reforestación | B183: SECRETARIA_DE_SERVICIOS_PUBLICOS_Y_MEDIO_AMBIENTESUBDIRECCION DE SERVICIOS ECOSISTEMICOS Y GESTION DEL CAMBIO CLIMATICO DE PARQUES, JARDINES Y GESTIÓN DEL CAMBIO CLIMÁTICO2 | C183: SECRETARIA_DE_SERVICIOS_PUBLICOS_Y_MEDIO_AMBIENTE | D183: SUBDIRECCION DE SERVICIOS ECOSISTEMICOS Y GESTION DEL CAMBIO CLIMATICO DE PARQUES, JARDINES Y GESTIÓN DEL CAMBIO CLIMÁTICO | E183: =COUNTIF($D$4:D183,D183:D183) -> 2 | F183: Operativo de Reforestación | G183: Porcentaje de árboles reforestados en áreas verdes, camellones, parques y jardines. | H183: Número de árboles reforestados | I183: 2000 | J183: 2000 | K183: Maricruz Martínez Macias | L183: 3314446874 | M183: maricruzm057@gmail.com
A184: SECRETARIA_DE_SERVICIOS_PUBLICOS_Y_MEDIO_AMBIENTESUBDIRECCION DE SERVICIOS ECOSISTEMICOS Y GESTION DEL CAMBIO CLIMATICO DE PARQUES, JARDINES Y GESTIÓN DEL CAMBIO CLIMÁTICO3Trituración de material orgánico para la elaboración de composta | B184: SECRETARIA_DE_SERVICIOS_PUBLICOS_Y_MEDIO_AMBIENTESUBDIRECCION DE SERVICIOS ECOSISTEMICOS Y GESTION DEL CAMBIO CLIMATICO DE PARQUES, JARDINES Y GESTIÓN DEL CAMBIO CLIMÁTICO3 | C184: SECRETARIA_DE_SERVICIOS_PUBLICOS_Y_MEDIO_AMBIENTE | D184: SUBDIRECCION DE SERVICIOS ECOSISTEMICOS Y GESTION DEL CAMBIO CLIMATICO DE PARQUES, JARDINES Y GESTIÓN DEL CAMBIO CLIMÁTICO | E184: =COUNTIF($D$4:D184,D184:D184) -> 3 | F184: Trituración de material orgánico para la elaboración de composta | G184: Porcentaje de viajes de ramas resultantes de podas y derribos. | H184: Número de viajes realizados y triturados | I184: 900 | J184: 900 | K184: Maricruz Martínez Macias | L184: 3314446874 | M184: maricruzm057@gmail.com
A185: SECRETARIA_DE_SERVICIOS_PUBLICOS_Y_MEDIO_AMBIENTESUBDIRECCION DE SERVICIOS ECOSISTEMICOS Y GESTION DEL CAMBIO CLIMATICO DE PARQUES, JARDINES Y GESTIÓN DEL CAMBIO CLIMÁTICO4Adopta un árbol y dale vida al planeta | B185: SECRETARIA_DE_SERVICIOS_PUBLICOS_Y_MEDIO_AMBIENTESUBDIRECCION DE SERVICIOS ECOSISTEMICOS Y GESTION DEL CAMBIO CLIMATICO DE PARQUES, JARDINES Y GESTIÓN DEL CAMBIO CLIMÁTICO4 | C185: SECRETARIA_DE_SERVICIOS_PUBLICOS_Y_MEDIO_AMBIENTE | D185: SUBDIRECCION DE SERVICIOS ECOSISTEMICOS Y GESTION DEL CAMBIO CLIMATICO DE PARQUES, JARDINES Y GESTIÓN DEL CAMBIO CLIMÁTICO | E185: =COUNTIF($D$4:D185,D185:D185) -> 4 | F185: Adopta un árbol y dale vida al planeta | G185: Porcentaje de árboles donados | H185: Número de árboles donados | I185: 7000 | J185: 7000 | K185: Maricruz Martínez Macias | L185: 3314446874 | M185: maricruzm057@gmail.com
A186: SECRETARIA_DE_SERVICIOS_PUBLICOS_Y_MEDIO_AMBIENTESUBDIRECCION DE SERVICIOS ECOSISTEMICOS Y GESTION DEL CAMBIO CLIMATICO DE PARQUES, JARDINES Y GESTIÓN DEL CAMBIO CLIMÁTICO5Adopta un árbol y dale vida al planeta | B186: SECRETARIA_DE_SERVICIOS_PUBLICOS_Y_MEDIO_AMBIENTESUBDIRECCION DE SERVICIOS ECOSISTEMICOS Y GESTION DEL CAMBIO CLIMATICO DE PARQUES, JARDINES Y GESTIÓN DEL CAMBIO CLIMÁTICO5 | C186: SECRETARIA_DE_SERVICIOS_PUBLICOS_Y_MEDIO_AMBIENTE | D186: SUBDIRECCION DE SERVICIOS ECOSISTEMICOS Y GESTION DEL CAMBIO CLIMATICO DE PARQUES, JARDINES Y GESTIÓN DEL CAMBIO CLIMÁTICO | E186: =COUNTIF($D$4:D186,D186:D186) -> 5 | F186: Adopta un árbol y dale vida al planeta | G186: Porcentaje de escuelas visitadas | H186: Número de escuelas visitadas | I186: 30 | J186: 30 | K186: Maricruz Martínez Macias | L186: 3314446874 | M186: maricruzm057@gmail.com
A187: SECRETARIA_DE_SERVICIOS_PUBLICOS_Y_MEDIO_AMBIENTESUBDIRECCION DE SERVICIOS ECOSISTEMICOS Y GESTION DEL CAMBIO CLIMATICO DE PARQUES, JARDINES Y GESTIÓN DEL CAMBIO CLIMÁTICO6Operativos de derribos secos | B187: SECRETARIA_DE_SERVICIOS_PUBLICOS_Y_MEDIO_AMBIENTESUBDIRECCION DE SERVICIOS ECOSISTEMICOS Y GESTION DEL CAMBIO CLIMATICO DE PARQUES, JARDINES Y GESTIÓN DEL CAMBIO CLIMÁTICO6 | C187: SECRETARIA_DE_SERVICIOS_PUBLICOS_Y_MEDIO_AMBIENTE | D187: SUBDIRECCION DE SERVICIOS ECOSISTEMICOS Y GESTION DEL CAMBIO CLIMATICO DE PARQUES, JARDINES Y GESTIÓN DEL CAMBIO CLIMÁTICO | E187: =COUNTIF($D$4:D187,D187:D187) -> 6 | F187: Operativos de derribos secos | G187: Porcentaje de arboles secos con riesgo latente | H187: Número de árboles seccionados y retirados. | I187: 300 | J187: 300 | K187: Maricruz Martínez Macias | L187: 3314446874 | M187: maricruzm057@gmail.com
A188: SECRETARIA_DE_SALUDDIRECCION DE URGENCIAS MEDICAS1Atención Urgente En Sala De Choque | B188: SECRETARIA_DE_SALUDDIRECCION DE URGENCIAS MEDICAS1 | C188: SECRETARIA_DE_SALUD | D188: DIRECCION DE URGENCIAS MEDICAS | E188: =COUNTIF($D$4:D188,D188:D188) -> 1 | F188: Atención Urgente En Sala De Choque | G188: Porcentaje de etapas de gestión para el equipamiento de sala de choques | H188: número de etapas de gestión realizadas | I188: 0 | J188: 6 | K188: FRANCISCO SANCHEZ IBARRA | L188: 3310620656 | M188: lic.fcosanchezi@gmail.com
A189: SECRETARIA_DE_SALUDSUBDIRECCION DE ENSEÑANZA1Enseñanza Continua | B189: SECRETARIA_DE_SALUDSUBDIRECCION DE ENSEÑANZA1 | C189: SECRETARIA_DE_SALUD | D189: SUBDIRECCION DE ENSEÑANZA | E189: =COUNTIF($D$4:D189,D189:D189) -> 1 | F189: Enseñanza Continua | G189: NUMERO DE SECIONES PROGRAMADAS | H189: NUMERO DE SECIONES REALIZADAS. | I189: 1 | J189: 5 | K189: MARIA YOLANDA GUIZAR TORRES | L189: 3311108422 | M189: drayolanda2@gmail.com
A190: SECRETARIA_DE_SALUDDIRECCION DE SALUD PUBLICA1Ferias de la Salud Tlaquepaque | B190: SECRETARIA_DE_SALUDDIRECCION DE SALUD PUBLICA1 | C190: SECRETARIA_DE_SALUD | D190: DIRECCION DE SALUD PUBLICA | E190: =COUNTIF($D$4:D190,D190:D190) -> 1 | F190: Ferias de la Salud Tlaquepaque | G190: Porcentaje de Ferias de la Salud para llegar a la población sin acceso a la seguridad social, realizadas | H190: número de ferias realizadas | I190: 0 | J190: 43 | K190: MARIO ARTURO SALINAS HERNANDEZ | L190: 3321233710 | M190: saludpublicatlaq@gmail.com
A191: SECRETARIA_DE_SALUDDEPARTAMENTO DE TRABAJO SOCIAL1Vinculación De Asistencia Social | B191: SECRETARIA_DE_SALUDDEPARTAMENTO DE TRABAJO SOCIAL1 | C191: SECRETARIA_DE_SALUD | D191: DEPARTAMENTO DE TRABAJO SOCIAL | E191: =COUNTIF($D$4:D191,D191:D191) -> 1 | F191: Vinculación De Asistencia Social | G191: Personas de escasos recursos | H191: personas canalizadas | I191: 75% personas de bajo recursos | J191: canalización y seguimiento a cada una | K191: YENICA ODALIS MARTINEZ DELGADILLO | L191: 3326674946 | M191: yenikaodalys0808@icloud.com
A192: SECRETARIA_DE_SALUDSUBDIRECCION DE SALUD ANIMAL1Campañas de esterilización y vacunación antirrábica gratuitas | B192: SECRETARIA_DE_SALUDSUBDIRECCION DE SALUD ANIMAL1 | C192: SECRETARIA_DE_SALUD | D192: SUBDIRECCION DE SALUD ANIMAL | E192: =COUNTIF($D$4:D192,D192:D192) -> 1 | F192: Campañas de esterilización y vacunación antirrábica gratuitas | G192: Esterilización Gratuita 1 vez al mes en cada Delegación | H192: Bienestar animal | I192: 12 | J192: 30 | K192: M.V.Z. Sandra Guadalupe León Becerra | L192: 3336007145- 3333679060 | M192: saludanimaltlq@gmail.com
A193: SECRETARIA_DE_OBRAS_PUBLICASDIRECCION DE CONSTRUCCION Y MANTENIMIENTO1Programa De Urbanización | B193: SECRETARIA_DE_OBRAS_PUBLICASDIRECCION DE CONSTRUCCION Y MANTENIMIENTO1 | C193: SECRETARIA_DE_OBRAS_PUBLICAS | D193: DIRECCION DE CONSTRUCCION Y MANTENIMIENTO | E193: =COUNTIF($D$4:D193,D193:D193) -> 1 | F193: Programa De Urbanización | G193: Realización y Ejecución de obra pública, para mejoras del Municipio, | H193: obras | I193: 240 | J193: 45000000000 | K193: Lic. Gabriel Sánchez Niño | L193: 3311346549 | M193: gabsan0202@gmail.com
A194: SECRETARIA_DE_OBRAS_PUBLICASSUBDIRECCION DE MANTENIMIENTO1Intervenciones Al Entorno Urbano | B194: SECRETARIA_DE_OBRAS_PUBLICASSUBDIRECCION DE MANTENIMIENTO1 | C194: SECRETARIA_DE_OBRAS_PUBLICAS | D194: SUBDIRECCION DE MANTENIMIENTO | E194: =COUNTIF($D$4:D194,D194:D194) -> 1 | F194: Intervenciones Al Entorno Urbano | G194: Porcentaje de colonias intervenidas en atención a servicios generales al entorno urbano | H194: N° colonias intervenidas | I194: 60 | J194: 40 | K194: ING. ABEL CASILLAS BENITES | L194: 33 38 38 82 60 | M194: mejoramiento.urbano.tlaquepaque@gmail.com
A195: SECRETARIA_DE_OBRAS_PUBLICASSUBDIRECCION DE MANTENIMIENTO2Señalización Horizontal y Vertical | B195: SECRETARIA_DE_OBRAS_PUBLICASSUBDIRECCION DE MANTENIMIENTO2 | C195: SECRETARIA_DE_OBRAS_PUBLICAS | D195: SUBDIRECCION DE MANTENIMIENTO | E195: =COUNTIF($D$4:D195,D195:D195) -> 2 | F195: Señalización Horizontal y Vertical | G195: Porcentaje de colonias intervenidas con señalización horizontal y vertical | H195: N° colonias intervenidas | I195: 380 | J195: 200 | K195: ING. ABEL CASILLAS BENITES | L195: 33 38 38 82 60 | M195: mejoramiento.urbano.tlaquepaque@gmail.com
A196: SECRETARIA_DE_OBRAS_PUBLICASSUBDIRECCION DE MANTENIMIENTO3Programa Permanente De Mantenimiento De Vialidades | B196: SECRETARIA_DE_OBRAS_PUBLICASSUBDIRECCION DE MANTENIMIENTO3 | C196: SECRETARIA_DE_OBRAS_PUBLICAS | D196: SUBDIRECCION DE MANTENIMIENTO | E196: =COUNTIF($D$4:D196,D196:D196) -> 3 | F196: Programa Permanente De Mantenimiento De Vialidades | G196: Programa de mantenimiento permanente de mantenimiento | H196: metros cuadrados reparados en vialidades | I196: 90000 | J196: 90000 | K196: Julio Geovanni Pamplona Nuño | L196: 3322856233 | M196: mantenimientovialidadestlaq@gmail.com
A197: =B197&F197 -> SECRETARIA_DE_OBRAS_PUBLICASSUBDIRECCION DE MANTENIMIENTO4Mantenimiento A Escuelas | B197: SECRETARIA_DE_OBRAS_PUBLICASSUBDIRECCION DE MANTENIMIENTO4 | C197: SECRETARIA_DE_OBRAS_PUBLICAS | D197: SUBDIRECCION DE MANTENIMIENTO | E197: =COUNTIF($D$4:D197,D197:D197) -> 4 | F197: Mantenimiento A Escuelas | G197: Programa de mantenimiento a planteles educativos | H197: solicitudes atendidas | I197: 0.25 | J197: 0.25 | K197: Lucio Roberto Terrones Padilla | L197: 3320201117 | M197: lucio.terronespadilla@gmail.com
A198: SECRETARIA_DE_OBRAS_PUBLICASSUBDIRECCION DE MANTENIMIENTO5Mantenimiento a Edificios y Espacios Públicos | B198: SECRETARIA_DE_OBRAS_PUBLICASSUBDIRECCION DE MANTENIMIENTO5 | C198: SECRETARIA_DE_OBRAS_PUBLICAS | D198: SUBDIRECCION DE MANTENIMIENTO | E198: =COUNTIF($D$4:D198,D198:D198) -> 5 | F198: Mantenimiento a Edificios y Espacios Públicos | G198: porcentaje de solicitudes atendidas al Mantenimiento de Edificios y espacios públicos . | H198: Solicitudes Atendidas | I198: 900 | J198: 1000 | K198: Francisco Velázquez Hernández | L198: 3316021128 | M198: pakovel78@hotmail.com
A199: SECRETARIA_DE_OBRAS_PUBLICASDIRECCION DE PRESUPUESTOS Y CONTRATACION DE OBRA PUBLICA1Programa para la gestión sustentable de la infraestructura y movilidad segura. | B199: SECRETARIA_DE_OBRAS_PUBLICASDIRECCION DE PRESUPUESTOS Y CONTRATACION DE OBRA PUBLICA1 | C199: SECRETARIA_DE_OBRAS_PUBLICAS | D199: DIRECCION DE PRESUPUESTOS Y CONTRATACION DE OBRA PUBLICA | E199: =COUNTIF($D$4:D199,D199:D199) -> 1 | F199: Programa para la gestión sustentable de la infraestructura y movilidad segura. | G199: Número de estudios preliminares para la elaboración de anteproyectos para la gestión sustentable de la infraestructura básica y movilidad en colonias prioritarias | H199: Espacios analizados | I199: 0 | J199: 140 | K199: ING. EDMUNDO CANCINO PEREZ | L199: 3311514285 | M199: edmundo.cancino@tlaquepaque.gob.mx / edcancino1010@gmail.com
A200: SECRETARIA_DE_OBRAS_PUBLICASDIRECCION DE PRESUPUESTOS Y CONTRATACION DE OBRA PUBLICA2Programa para la gestión sustentable de la infraestructura básica. | B200: SECRETARIA_DE_OBRAS_PUBLICASDIRECCION DE PRESUPUESTOS Y CONTRATACION DE OBRA PUBLICA2 | C200: SECRETARIA_DE_OBRAS_PUBLICAS | D200: DIRECCION DE PRESUPUESTOS Y CONTRATACION DE OBRA PUBLICA | E200: =COUNTIF($D$4:D200,D200:D200) -> 2 | F200: Programa para la gestión sustentable de la infraestructura básica. | G200: Número de estudios preliminares para la elaboración de proyectos para la gestión sustentable de la infraestructura básica en colonias prioritarias | H200: Espacios analizados | I200: 0 | J200: 170 | K200: ING. EDMUNDO CANCINO PEREZ | L200: 3311514285 | M200: edmundo.cancino@tlaquepaque.gob.mx / edcancino1010@gmail.com
... 133 more rows

Sheet Hoja1 (hidden)
C3: OFICIALIA_MAYOR | D3: DEPARTAMENTO DE CAPACITACION Y SERVICIO SOCIAL | E3: Capacitación en materia de Derechos Humanos | P3: OFICIALIA_MAYOR | Q3: DEPARTAMENTO DE CAPACITACION Y SERVICIO SOCIAL
C4: OFICIALIA_MAYOR | D4: DEPARTAMENTO DE CAPACITACION Y SERVICIO SOCIAL | E4: Certificación en el ECO385 | P4: OFICIALIA_MAYOR | Q4: DEPARTAMENTO DE INCIDENCIAS Y CALCULO DE NOMINA
C5: OFICIALIA_MAYOR | D5: DEPARTAMENTO DE CAPACITACION Y SERVICIO SOCIAL | E5: Desarrollo Académico Básico de las y los servidores públicos de la Secretaría de Servicios Públicos y Medio Ambiente | P5: OFICIALIA_MAYOR | Q5: DIRECCION DE DESARROLLO ORGANIZACIONAL
C6: OFICIALIA_MAYOR | D6: DEPARTAMENTO DE CAPACITACION Y SERVICIO SOCIAL | E6: Difusión de Protocolos | P6: OFICINA_DE_PRESIDENCIA | Q6: DIRECCION DE ATENCION Y VINCULACION CIUDADANA
C7: OFICIALIA_MAYOR | D7: DEPARTAMENTO DE CAPACITACION Y SERVICIO SOCIAL | E7: Fortalecimiento y Desarrollo de Habilidades Blandas y Desarrollo Humano | P7: OFICINA_DE_PRESIDENCIA | Q7: DIRECCION DE COMUNICACION ESTRATEGICA
C8: OFICIALIA_MAYOR | D8: DEPARTAMENTO DE CAPACITACION Y SERVICIO SOCIAL | E8: Fortalecimiento y Desarrollo de Habilidades Técnicas | P8: OFICINA_DE_PRESIDENCIA | Q8: SUBDIRECCION DE GESTION DE PARTICIPACION TERRITORIAL
C9: OFICIALIA_MAYOR | D9: DEPARTAMENTO DE CAPACITACION Y SERVICIO SOCIAL | E9: Promoción de estilos de vida y entornos laboral, alimentaria y físicamente saludable para el personal | P9: OFICINA_DE_PRESIDENCIA | Q9: UNIDAD DE TRANSPARENCIA
C10: OFICIALIA_MAYOR | D10: DEPARTAMENTO DE CAPACITACION Y SERVICIO SOCIAL | E10: Tlaquepaque Universitario | P10: OPD | Q10: COMUCAT
C11: OFICIALIA_MAYOR | D11: DEPARTAMENTO DE INCIDENCIAS Y CALCULO DE NOMINA | E11: Pago de Nóminas | P11: OPD | Q11: COMUDE
C12: OFICIALIA_MAYOR | D12: DIRECCION DE DESARROLLO ORGANIZACIONAL | E12: Armonización Organizativa | P12: OPD | Q12: IMJUVET
C13: OFICIALIA_MAYOR | D13: DIRECCION DE DESARROLLO ORGANIZACIONAL | E13: Elaboración de Manuales Administrativos | P13: OPD | Q13: IMMUJERES
C14: OFICINA_DE_PRESIDENCIA | D14: DIRECCION DE ATENCION Y VINCULACION CIUDADANA | E14: Atención a Reportes de Servicios Públicos, Información sobre Ayudas Sociales y Reportes en General | P14: OPD | Q14: PREMIO NACIONAL DE LA CERÁMICA
C15: OFICINA_DE_PRESIDENCIA | D15: DIRECCION DE COMUNICACION ESTRATEGICA | E15: Campañas en Redes Sociales | P15: OPD | Q15: Sistema de Desarrollo Integral de la Familia (DIF) de Tlaquepaque
C16: OFICINA_DE_PRESIDENCIA | D16: SUBDIRECCION DE GESTION DE PARTICIPACION TERRITORIAL | E16: Actualizacion de Organizaciones Vecinales | P16: SECRETARIA_DE_ADMINISTRACION_Y_FINANZAS | Q16: DEPARTAMENTO DE BIENES MUEBLES
C17: OFICINA_DE_PRESIDENCIA | D17: SUBDIRECCION DE GESTION DE PARTICIPACION TERRITORIAL | E17: Atencion y capacitacion a organizaciones vecinales en materia de participacion ciudadana | P17: SECRETARIA_DE_ADMINISTRACION_Y_FINANZAS | Q17: DEPARTAMENTO DE REDES Y TELECOMUNICACIONES
C18: OFICINA_DE_PRESIDENCIA | D18: SUBDIRECCION DE GESTION DE PARTICIPACION TERRITORIAL | E18: Socializando y perifoneando para la cuidadania | P18: SECRETARIA_DE_ADMINISTRACION_Y_FINANZAS | Q18: DEPARTAMENTO DE SERVICIOS GENERALES
C19: OFICINA_DE_PRESIDENCIA | D19: UNIDAD DE TRANSPARENCIA | E19: Programa de Transparencia y Atención de solicitudes de acceso a la información y protección de datos personales | P19: SECRETARIA_DE_ADMINISTRACION_Y_FINANZAS | Q19: DEPARTAMENTO DE SOPORTE Y MANTENIMIENTO
C20: OPD | D20: COMUCAT | E20: Atención Terapéutica | P20: SECRETARIA_DE_ADMINISTRACION_Y_FINANZAS | Q20: DEPARTAMENTO DE TALLER MUNICIPAL
C21: OPD | D21: COMUCAT | E21: Capacitaciones Preventivas en Adicciones | P21: SECRETARIA_DE_ADMINISTRACION_Y_FINANZAS | Q21: DIRECCION DE CATASTRO
C22: OPD | D22: COMUCAT | E22: Espacios COMUCAT | P22: SECRETARIA_DE_ADMINISTRACION_Y_FINANZAS | Q22: DIRECCION DE CONTABILIDAD Y GLOSA
C23: OPD | D23: COMUCAT | E23: Red de Apoyo para Establecimientos especializado en Adicciones | P23: SECRETARIA_DE_ADMINISTRACION_Y_FINANZAS | Q23: DIRECCION DE EGRESOS
C24: OPD | D24: COMUDE | E24: Administración y Gestión Institucional | P24: SECRETARIA_DE_ADMINISTRACION_Y_FINANZAS | Q24: DIRECCION DE INGRESOS
C25: OPD | D25: COMUDE | E25: Infraestructura | P25: SECRETARIA_DE_ADMINISTRACION_Y_FINANZAS | Q25: DIRECCION DE RECURSOS MATERIALES
C26: OPD | D26: COMUDE | E26: Macro Eventos | P26: SECRETARIA_DE_ADMINISTRACION_Y_FINANZAS | Q26: SUBDIRECCION DE COMPRAS Y ADQUISICIONES
C27: OPD | D27: COMUDE | E27: Tlaquepaque Acude | P27: SECRETARIA_DE_ADMINISTRACION_Y_FINANZAS | Q27: SUBDIRECCION DE CONTROL DE PAGOS
C28: OPD | D28: COMUDE | E28: Vía recreactiva metropolitana San Pedro Tlaquepaque | P28: SECRETARIA_DE_ADMINISTRACION_Y_FINANZAS | Q28: SUBDIRECCION DE PATRIMONIO
C29: OPD | D29: IMJUVET | E29: Beca Joven | P29: SECRETARIA_DE_BIENESTAR | Q29: DIRECCION DE EDUCACION
C30: OPD | D30: IMJUVET | E30: Cabildo Juvenil | P30: SECRETARIA_DE_BIENESTAR | Q30: DIRECCION DE PROGRAMAS SOCIALES PARA EL BIENESTAR
C31: OPD | D31: IMJUVET | E31: Cine en tu Barrio | P31: SECRETARIA_DE_BIENESTAR | Q31: SUBDIRECCION DE DESARROLLO Y ATENCION AL SECTOR AGROPECUARIO
C32: OPD | D32: IMJUVET | E32: Coloquios Juveniles | P32: SECRETARIA_DE_CONTRALORIA_MUNICIPAL_Y_COMBATE_A_LA_CORRUPCION | Q32: DIRECCION DE AUDITORIA A OBRA PUBLICA Y SERVICIOS
C33: OPD | D33: IMJUVET | E33: Conoce tus derechos | P33: SECRETARIA_DE_CONTRALORIA_MUNICIPAL_Y_COMBATE_A_LA_CORRUPCION | Q33: DIRECCION DE AUDITORIA GUBERNAMENTAL Y COMBATE A LA CORRUPCION
C34: OPD | D34: IMJUVET | E34: Cultiva-T | P34: SECRETARIA_DE_CONTRALORIA_MUNICIPAL_Y_COMBATE_A_LA_CORRUPCION | Q34: DIRECCION DE RESPONSABILIDADES Y EVOLUCION PATRIMONIAL
C35: OPD | D35: IMJUVET | E35: Cultura en tu escuela | P35: SECRETARIA_DE_CONTRALORIA_MUNICIPAL_Y_COMBATE_A_LA_CORRUPCION | Q35: SUBDIRECCION DE AUDITORIA FINANCIERA Y DE DESEMPEÑO
C36: OPD | D36: IMJUVET | E36: Enchula tu barrio | P36: SECRETARIA_DE_FOMENTO_ECONOMICO_Y_CULTURAL | Q36: DIRECCIÓN DE CEMENTERIOS
C37: OPD | D37: IMJUVET | E37: Festival Juventudes Tlaquepaque | P37: SECRETARIA_DE_FOMENTO_ECONOMICO_Y_CULTURAL | Q37: DIRECCION DE CULTURA
C38: OPD | D38: IMJUVET | E38: Jóvenes con arte | P38: SECRETARIA_DE_FOMENTO_ECONOMICO_Y_CULTURAL | Q38: DIRECCION DE DESARROLLO ARTESANAL Y TURISTICO
C39: OPD | D39: IMJUVET | E39: Jóvenes Con-Ciencia | P39: SECRETARIA_DE_FOMENTO_ECONOMICO_Y_CULTURAL | Q39: DIRECCION DE GESTION EMPRESARIAL E INDUSTRIAL
C40: OPD | D40: IMJUVET | E40: Juventudes a la cancha | P40: SECRETARIA_DE_FOMENTO_ECONOMICO_Y_CULTURAL | Q40: DIRECCION DEL CENTRO HISTORICO
C41: OPD | D41: IMJUVET | E41: Juventudes con historia | P41: SECRETARIA_DE_FOMENTO_ECONOMICO_Y_CULTURAL | Q41: SUBDIRECCION DE BIBLIOTECAS
C42: OPD | D42: IMJUVET | E42: Juventudes Emprendedoras | P42: SECRETARIA_DE_FOMENTO_ECONOMICO_Y_CULTURAL | Q42: SUBDIRECCION DE MUSEOS
C43: OPD | D43: IMJUVET | E43: Oportunidad joven | P43: SECRETARIA_DE_GOBERNANZA_Y_TERRITORIO | Q43: DELEGACION SAN SEBASTIANITO
C44: OPD | D44: IMJUVET | E44: Premio de las juventudes | P44: SECRETARIA_DE_GOBERNANZA_Y_TERRITORIO | Q44: DEPARTAMENTO DE ASUNTOS RELIGIOSOS
C45: OPD | D45: IMJUVET | E45: Servicio Social Integral | P45: SECRETARIA_DE_GOBERNANZA_Y_TERRITORIO | Q45: DEPARTAMENTO DE OFICINA DE PASAPORTES
C46: OPD | D46: IMJUVET | E46: Suetertón & Juguetón | P46: SECRETARIA_DE_GOBERNANZA_Y_TERRITORIO | Q46: DIRECCION DE ARCHIVO MUNICIPAL
C47: OPD | D47: IMJUVET | E47: Tlaque-Can | P47: SECRETARIA_DE_GOBERNANZA_Y_TERRITORIO | Q47: DIRECCION DE DELEGACIONES Y AGENCIAS
C48: OPD | D48: IMMUJERES | E48: Enfoque Transversal con Perspectiva de Género | P48: SECRETARIA_DE_GOBERNANZA_Y_TERRITORIO | Q48: DIRECCION DE INSPECCION Y VIGILANCIA
C49: OPD | D49: IMMUJERES | E49: Libres por la igualdad | P49: SECRETARIA_DE_GOBERNANZA_Y_TERRITORIO | Q49: DIRECCION DE PADRON Y LICENCIAS
C50: OPD | D50: IMMUJERES | E50: Vivir sin violencia | P50: SECRETARIA_DE_GOBERNANZA_Y_TERRITORIO | Q50: DIRECCION DE PADRON Y LICENCIAS 1
C51: OPD | D51: PREMIO NACIONAL DE LA CERÁMICA | E51: Premio Nacional de la Cerámica | P51: SECRETARIA_DE_GOBERNANZA_Y_TERRITORIO | Q51: SUBDIRECCION DE ATENCION E INSPECCION A TIANGUIS Y ESPACIOS ABIERTOS
C52: OPD | D52: Sistema de Desarrollo Integral de la Familia (DIF) de Tlaquepaque | E52: Albergue Vista Hermosa | P52: SECRETARIA_DE_GOBERNANZA_Y_TERRITORIO | Q52: SUBDIRECCION DE ATENCION E INSPECCION DE MERCADOS
C53: OPD | D53: Sistema de Desarrollo Integral de la Familia (DIF) de Tlaquepaque | E53: Área Alimentaria | P53: SECRETARIA_DE_GOBERNANZA_Y_TERRITORIO | Q53: SUBDIRECCION DE INSPECCION AMBIENTAL
C54: OPD | D54: Sistema de Desarrollo Integral de la Familia (DIF) de Tlaquepaque | E54: Área Médica | P54: SECRETARIA_DE_LA_CONSEJERIA_JURIDICA | Q54: DEPARTAMENTO DE RECLUTAMIENTO MILITAR
C55: OPD | D55: Sistema de Desarrollo Integral de la Familia (DIF) de Tlaquepaque | E55: Atención a la Población en Condiciones de Emergencia | P55: SECRETARIA_DE_LA_CONSEJERIA_JURIDICA | Q55: DIRECCION DE APOYO A CABILDO
C56: OPD | D56: Sistema de Desarrollo Integral de la Familia (DIF) de Tlaquepaque | E56: Atención Integral a personas a Adultos Mayores | P56: SECRETARIA_DE_LA_CONSEJERIA_JURIDICA | Q56: DIRECCION DE DERECHOS HUMANOS
C57: OPD | D57: Sistema de Desarrollo Integral de la Familia (DIF) de Tlaquepaque | E57: CDC | P57: SECRETARIA_DE_LA_CONSEJERIA_JURIDICA | Q57: DIRECCION DE MEDIACION Y JUZGADOS CIVICOS MUNICIPALES
C58: OPD | D58: Sistema de Desarrollo Integral de la Familia (DIF) de Tlaquepaque | E58: Clínica Deportiva Prevención de Adicciones | P58: SECRETARIA_DE_LA_CONSEJERIA_JURIDICA | Q58: DIRECCION DE REGISTRO CIVIL
C59: OPD | D59: Sistema de Desarrollo Integral de la Familia (DIF) de Tlaquepaque | E59: Crecer sin Violencia | P59: SECRETARIA_DE_LA_CONSEJERIA_JURIDICA | Q59: DIRECCION LEGAL-CONSULTIVA
C60: OPD | D60: Sistema de Desarrollo Integral de la Familia (DIF) de Tlaquepaque | E60: Fortalecimiento Sociofamiliar | P60: SECRETARIA_DE_LA_CONSEJERIA_JURIDICA | Q60: OFICINA DEL REGISTRO CIVIL NO. 1
C61: OPD | D61: Sistema de Desarrollo Integral de la Familia (DIF) de Tlaquepaque | E61: Inclusión y Derechos Humanos de las Personas con Discapacidad | P61: SECRETARIA_DE_LA_CONSEJERIA_JURIDICA | Q61: SECRETARIA DE LA CONSEJERIA JURIDICA
C62: OPD | D62: Sistema de Desarrollo Integral de la Familia (DIF) de Tlaquepaque | E62: Laboratorio Clínico | P62: SECRETARIA_DE_OBRAS_PUBLICAS | Q62: DIRECCION DE CONSTRUCCION Y MANTENIMIENTO
C63: OPD | D63: Sistema de Desarrollo Integral de la Familia (DIF) de Tlaquepaque | E63: Mejoramiento Educativo | P63: SECRETARIA_DE_OBRAS_PUBLICAS | Q63: DIRECCION DE PRESUPUESTOS Y CONTRATACION DE OBRA PUBLICA
C64: OPD | D64: Sistema de Desarrollo Integral de la Familia (DIF) de Tlaquepaque | E64: Por una Gestión Responsable | P64: SECRETARIA_DE_OBRAS_PUBLICAS | Q64: SUBDIRECCION DE INSPECCION DE CONTROL DE LA EDIFICACION Y ORDENAMIENTO TERRITORIAL
C65: OPD | D65: Sistema de Desarrollo Integral de la Familia (DIF) de Tlaquepaque | E65: Prevención de Embarazo Adolescente | P65: SECRETARIA_DE_OBRAS_PUBLICAS | Q65: SUBDIRECCION DE MANTENIMIENTO
C66: OPD | D66: Sistema de Desarrollo Integral de la Familia (DIF) de Tlaquepaque | E66: Prevención y Detención de abuso Sexual | P66: SECRETARIA_DE_PLANIFICACION_ANALISIS_Y_GESTION_URBANA | Q66: DEPARTAMENTO DE EVALUACION DE PROYECTOS Y PROGRAMAS
C67: OPD | D67: Sistema de Desarrollo Integral de la Familia (DIF) de Tlaquepaque | E67: Procuraduría de Protección de NNA | P67: SECRETARIA_DE_PLANIFICACION_ANALISIS_Y_GESTION_URBANA | Q67: DEPARTAMENTO DE GESTION TERRITORIAL SUELO Y VIVIENDA
C68: OPD | D68: Sistema de Desarrollo Integral de la Familia (DIF) de Tlaquepaque | E68: Programa de Atención a la Discapacidad | P68: SECRETARIA_DE_PLANIFICACION_ANALISIS_Y_GESTION_URBANA | Q68: DEPARTAMENTO DE INDICADORES Y METAS PARA RESULTADOS
C69: OPD | D69: Sistema de Desarrollo Integral de la Familia (DIF) de Tlaquepaque | E69: Protección y Atención ante casos de Violencia Familia | P69: SECRETARIA_DE_PLANIFICACION_ANALISIS_Y_GESTION_URBANA | Q69: DEPARTAMENTO DE PLANEACION URBANA
C70: OPD | D70: Sistema de Desarrollo Integral de la Familia (DIF) de Tlaquepaque | E70: Protección y Restitución de Derechos de Niñas. Niños y Adolescentes | P70: SECRETARIA_DE_PLANIFICACION_ANALISIS_Y_GESTION_URBANA | Q70: DEPARTAMENTO DEL SISTEMA DE EVALUACION DEL DESEMPEÑO
C71: OPD | D71: Sistema de Desarrollo Integral de la Familia (DIF) de Tlaquepaque | E71: Psicología | P71: SECRETARIA_DE_PLANIFICACION_ANALISIS_Y_GESTION_URBANA | Q71: DIRECCION DE GESTION DEL DESEMPEÑO, EVALUACION DE RESULTADOS Y TABLERO DE CONTROL
C72: OPD | D72: Sistema de Desarrollo Integral de la Familia (DIF) de Tlaquepaque | E72: Rehabilitación | P72: SECRETARIA_DE_PLANIFICACION_ANALISIS_Y_GESTION_URBANA | Q72: DIRECCION DE GESTION TERRITORIAL Y PLANEACION URBANA
C73: OPD | D73: Sistema de Desarrollo Integral de la Familia (DIF) de Tlaquepaque | E73: Situación de Calle | P73: SECRETARIA_DE_PLANIFICACION_ANALISIS_Y_GESTION_URBANA | Q73: DIRECCION DEL BANCO INTEGRADO DE PROYECTOS Y PROGRAMAS
C74: OPD | D74: Sistema de Desarrollo Integral de la Familia (DIF) de Tlaquepaque | E74: Talleres de Esperanza | P74: SECRETARIA_DE_PLANIFICACION_ANALISIS_Y_GESTION_URBANA | Q74: SECRETARIA DE PLANIFICACION, ANALISIS Y GESTION URBANA
C75: SECRETARIA_DE_ADMINISTRACION_Y_FINANZAS | D75: DEPARTAMENTO DE BIENES MUEBLES | E75: Actualización y control de los inventarios de los bienes muebles. | P75: SECRETARIA_DE_SALUD | Q75: DEPARTAMENTO DE TRABAJO SOCIAL
C76: SECRETARIA_DE_ADMINISTRACION_Y_FINANZAS | D76: DEPARTAMENTO DE REDES Y TELECOMUNICACIONES | E76: Instalación de Cámaras de Seguridad | P76: SECRETARIA_DE_SALUD | Q76: DIRECCION DE SALUD PUBLICA
C77: SECRETARIA_DE_ADMINISTRACION_Y_FINANZAS | D77: DEPARTAMENTO DE SERVICIOS GENERALES | E77: Recursos Humanos eficiente | P77: SECRETARIA_DE_SALUD | Q77: DIRECCION DE URGENCIAS MEDICAS
C78: SECRETARIA_DE_ADMINISTRACION_Y_FINANZAS | D78: DEPARTAMENTO DE SOPORTE Y MANTENIMIENTO | E78: Sistema de control de servicios | P78: SECRETARIA_DE_SALUD | Q78: SUBDIRECCION DE ENSEÑANZA
C79: SECRETARIA_DE_ADMINISTRACION_Y_FINANZAS | D79: DEPARTAMENTO DE TALLER MUNICIPAL | E79: Mantenimiento preventivo y correctivo del parque vehicular | P79: SECRETARIA_DE_SALUD | Q79: SUBDIRECCION DE SALUD ANIMAL
C80: SECRETARIA_DE_ADMINISTRACION_Y_FINANZAS | D80: DIRECCION DE CATASTRO | E80: Tramites y Servicios | P80: SECRETARIA_DE_SEGURIDAD_Y_PROTECCION_CIUDADANA | Q80: DEPARTAMENTO DE AREA DE PREVENCION
C81: SECRETARIA_DE_ADMINISTRACION_Y_FINANZAS | D81: DIRECCION DE CONTABILIDAD Y GLOSA | E81: Programa de elaboración y presentación de Cuentas Públicas | P81: SECRETARIA_DE_SEGURIDAD_Y_PROTECCION_CIUDADANA | Q81: DIRECCION ADMINISTRATIVA
C82: SECRETARIA_DE_ADMINISTRACION_Y_FINANZAS | D82: DIRECCION DE EGRESOS | E82: Porcentaje De Presupuesto Ejercido De Acuerdo Con Criterios De Eficiencia, Austeridad Y Ahorro | P82: SECRETARIA_DE_SEGURIDAD_Y_PROTECCION_CIUDADANA | Q82: DIRECCION DE ATENCION A LA VIOLENCIA DE GENERO
C83: SECRETARIA_DE_ADMINISTRACION_Y_FINANZAS | D83: DIRECCION DE INGRESOS | E83: Programa De Apoyo A Adultos Mayores | P83: SECRETARIA_DE_SEGURIDAD_Y_PROTECCION_CIUDADANA | Q83: DIRECCION DE BOMBEROS Y PROTECCION CIVIL
C84: SECRETARIA_DE_ADMINISTRACION_Y_FINANZAS | D84: DIRECCION DE INGRESOS | E84: Programa de Convenios | P84: SECRETARIA_DE_SEGURIDAD_Y_PROTECCION_CIUDADANA | Q84: DIRECCION OPERATIVA
C85: SECRETARIA_DE_ADMINISTRACION_Y_FINANZAS | D85: DIRECCION DE INGRESOS | E85: Programa Integral de Recaudación | P85: SECRETARIA_DE_SEGURIDAD_Y_PROTECCION_CIUDADANA | Q85: SUBDIRECCION DE GESTION GENERAL DEL RIESGO
C86: SECRETARIA_DE_ADMINISTRACION_Y_FINANZAS | D86: DIRECCION DE RECURSOS MATERIALES | E86: Administración y control de los Recursos Materiales | P86: SECRETARIA_DE_SEGURIDAD_Y_PROTECCION_CIUDADANA | Q86: SUBDIRECCION DE PLANEACION ESTRATEGICA
C87: SECRETARIA_DE_ADMINISTRACION_Y_FINANZAS | D87: SUBDIRECCION DE COMPRAS Y ADQUISICIONES | E87: Capacitación para Adquisiciones | P87: SECRETARIA_DE_SEGURIDAD_Y_PROTECCION_CIUDADANA | Q87: SUBDIRECCION DE PREVENCION AL DELITO
C88: SECRETARIA_DE_ADMINISTRACION_Y_FINANZAS | D88: SUBDIRECCION DE COMPRAS Y ADQUISICIONES | E88: Licitaciones Ejecutadas | P88: SECRETARIA_DE_SEGURIDAD_Y_PROTECCION_CIUDADANA | Q88: SUBDIRECCION DE PROFESIONALIZACION Y ACREDITACION POLICIAL
C89: SECRETARIA_DE_ADMINISTRACION_Y_FINANZAS | D89: SUBDIRECCION DE CONTROL DE PAGOS | E89: Optimizar el proceso de pagos | P89: SECRETARIA_DE_SEGURIDAD_Y_PROTECCION_CIUDADANA | Q89: SUBDIRECCION DE VIALIDAD
C90: SECRETARIA_DE_ADMINISTRACION_Y_FINANZAS | D90: SUBDIRECCION DE PATRIMONIO | E90: Administración de Bienes Inmuebles | P90: SECRETARIA_DE_SEGURIDAD_Y_PROTECCION_CIUDADANA | Q90: SUBDIRECCION DE VINCULACION CIUDADANA
C91: SECRETARIA_DE_BIENESTAR | D91: DIRECCION DE EDUCACION | E91: Abrigando Tu Bienestar | P91: SECRETARIA_DE_SEGURIDAD_Y_PROTECCION_CIUDADANA | Q91: SUBDIRECCION JURIDICA Y DE DERECHOS HUMANOS
C92: SECRETARIA_DE_BIENESTAR | D92: DIRECCION DE EDUCACION | E92: Actividades Extraescolares | P92: SECRETARIA_DE_SEGURIDAD_Y_PROTECCION_CIUDADANA | Q92: SUBDIRECCION OPERATIVA
C93: SECRETARIA_DE_BIENESTAR | D93: DIRECCION DE EDUCACION | E93: Cabildo Infantil Y Juvenil | P93: SECRETARIA_DE_SERVICIOS_PUBLICOS_Y_MEDIO_AMBIENTE | Q93: DEPARTAMENTO DE REGULACION AMBIENTAL
C94: SECRETARIA_DE_BIENESTAR | D94: DIRECCION DE EDUCACION | E94: Educación Y Capacitación Para El Medio Ambiente | P94: SECRETARIA_DE_SERVICIOS_PUBLICOS_Y_MEDIO_AMBIENTE | Q94: DIRECCION DE AGUA POTABLE, DRENAJE Y ALCANTARILLADO
C95: SECRETARIA_DE_BIENESTAR | D95: DIRECCION DE EDUCACION | E95: Feria de la oferta educativa media superior y superior | P95: SECRETARIA_DE_SERVICIOS_PUBLICOS_Y_MEDIO_AMBIENTE | Q95: DIRECCION DE ALUMBRADO PUBLICO
C96: SECRETARIA_DE_BIENESTAR | D96: DIRECCION DE PROGRAMAS SOCIALES PARA EL BIENESTAR | E96: Aprendiendo con Bienestar | P96: SECRETARIA_DE_SERVICIOS_PUBLICOS_Y_MEDIO_AMBIENTE | Q96: DIRECCION DE ASEO PUBLICO
C97: SECRETARIA_DE_BIENESTAR | D97: DIRECCION DE PROGRAMAS SOCIALES PARA EL BIENESTAR | E97: Bienestar Incluyente | P97: SECRETARIA_DE_SERVICIOS_PUBLICOS_Y_MEDIO_AMBIENTE | Q97: DIRECCION DE RASTRO
C98: SECRETARIA_DE_BIENESTAR | D98: DIRECCION DE PROGRAMAS SOCIALES PARA EL BIENESTAR | E98: Líderes de Esperanza | P98: SECRETARIA_DE_SERVICIOS_PUBLICOS_Y_MEDIO_AMBIENTE | Q98: DIRECCION DE SALUD AMBIENTAL Y CAMBIO CLIMATICO MEDIO AMBIENTE
C99: SECRETARIA_DE_BIENESTAR | D99: DIRECCION DE PROGRAMAS SOCIALES PARA EL BIENESTAR | E99: Raíces de Esperanza | P99: SECRETARIA_DE_SERVICIOS_PUBLICOS_Y_MEDIO_AMBIENTE | Q99: DIRECCION MEDIO AMBIENTE (DE SALUD AMBIENTAL Y CAMBIO CLIMATICO
C100: SECRETARIA_DE_BIENESTAR | D100: SUBDIRECCION DE DESARROLLO Y ATENCION AL SECTOR AGROPECUARIO | E100: Conservación y mejoramiento de suelos agrícolas | P100: SECRETARIA_DE_SERVICIOS_PUBLICOS_Y_MEDIO_AMBIENTE | Q100: SUBDIRECCION DE SERVICIOS ECOSISTEMICOS Y GESTION DEL CAMBIO CLIMATICO DE PARQUES, JARDINES Y GESTIÓN DEL CAMBIO CLIMÁTICO
C101: SECRETARIA_DE_BIENESTAR | D101: SUBDIRECCION DE DESARROLLO Y ATENCION AL SECTOR AGROPECUARIO | E101: Hidroponía | P101: SECRETARIA_DE_SERVICIOS_PUBLICOS_Y_MEDIO_AMBIENTE | Q101: SUBDIRECCION DE PARQUES, JARDINES Y GESTIÓN DEL CAMBIO CLIMÁTICO DE SERVICIOS ECOSISTEMICOS Y GESTION DEL CAMBIO CLIMATICO
C102: SECRETARIA_DE_BIENESTAR | D102: SUBDIRECCION DE DESARROLLO Y ATENCION AL SECTOR AGROPECUARIO | E102: Pozos de absorción Tecnificados. | P102: SINDICATURA | Q102: DEPARTAMENTO DE CONTRATOS Y CONVENIOS
C103: SECRETARIA_DE_BIENESTAR | D103: SUBDIRECCION DE DESARROLLO Y ATENCION AL SECTOR AGROPECUARIO | E103: Procesadora de composta orgánica. | P103: SINDICATURA | Q103: DEPARTAMENTO DE MEJORA REGULATORIA
C104: SECRETARIA_DE_BIENESTAR | D104: SUBDIRECCION DE DESARROLLO Y ATENCION AL SECTOR AGROPECUARIO | E104: Rehabilitación Permanente De Caminos Rurales | P104: SINDICATURA | Q104: DIRECCION JURIDICA
C105: SECRETARIA_DE_CONTRALORIA_MUNICIPAL_Y_COMBATE_A_LA_CORRUPCION | D105: DIRECCION DE AUDITORIA A OBRA PUBLICA Y SERVICIOS | E105: Análisis documental de expedientes de obras | P105: SINDICATURA | Q105: SINDICATURA
C106: SECRETARIA_DE_CONTRALORIA_MUNICIPAL_Y_COMBATE_A_LA_CORRUPCION | D106: DIRECCION DE AUDITORIA A OBRA PUBLICA Y SERVICIOS | E106: Control documental de expedientes de obras
C107: SECRETARIA_DE_CONTRALORIA_MUNICIPAL_Y_COMBATE_A_LA_CORRUPCION | D107: DIRECCION DE AUDITORIA GUBERNAMENTAL Y COMBATE A LA CORRUPCION | E107: Auditorías
C108: SECRETARIA_DE_CONTRALORIA_MUNICIPAL_Y_COMBATE_A_LA_CORRUPCION | D108: DIRECCION DE AUDITORIA GUBERNAMENTAL Y COMBATE A LA CORRUPCION | E108: Visitas de Inspección
C109: SECRETARIA_DE_CONTRALORIA_MUNICIPAL_Y_COMBATE_A_LA_CORRUPCION | D109: DIRECCION DE RESPONSABILIDADES Y EVOLUCION PATRIMONIAL | E109: Educación e Innovación Tecnológica
C110: SECRETARIA_DE_CONTRALORIA_MUNICIPAL_Y_COMBATE_A_LA_CORRUPCION | D110: SUBDIRECCION DE AUDITORIA FINANCIERA Y DE DESEMPEÑO | E110: Auditorías
C111: SECRETARIA_DE_CONTRALORIA_MUNICIPAL_Y_COMBATE_A_LA_CORRUPCION | D111: SUBDIRECCION DE AUDITORIA FINANCIERA Y DE DESEMPEÑO | E111: Procedimientos de aclaración derivados de entrega recepción
C112: SECRETARIA_DE_CONTRALORIA_MUNICIPAL_Y_COMBATE_A_LA_CORRUPCION | D112: SUBDIRECCION DE AUDITORIA FINANCIERA Y DE DESEMPEÑO | E112: Visitas de Inspección
C113: SECRETARIA_DE_FOMENTO_ECONOMICO_Y_CULTURAL | D113: DIRECCIÓN DE CEMENTERIOS | E113: Digitalización Administrativa
C114: SECRETARIA_DE_FOMENTO_ECONOMICO_Y_CULTURAL | D114: DIRECCION DE CULTURA | E114: Amigos de Refugio
C115: SECRETARIA_DE_FOMENTO_ECONOMICO_Y_CULTURAL | D115: DIRECCION DE CULTURA | E115: Cultura en tu colonia
C116: SECRETARIA_DE_FOMENTO_ECONOMICO_Y_CULTURAL | D116: DIRECCION DE CULTURA | E116: Cultura Por La Paz
C117: SECRETARIA_DE_FOMENTO_ECONOMICO_Y_CULTURAL | D117: DIRECCION DE CULTURA | E117: Ferias, Festivales Y Exposiciones
C118: SECRETARIA_DE_FOMENTO_ECONOMICO_Y_CULTURAL | D118: DIRECCION DE CULTURA | E118: Formacion Continua
C119: SECRETARIA_DE_FOMENTO_ECONOMICO_Y_CULTURAL | D119: DIRECCION DE DESARROLLO ARTESANAL Y TURISTICO | E119: Capacitación
C120: SECRETARIA_DE_FOMENTO_ECONOMICO_Y_CULTURAL | D120: DIRECCION DE DESARROLLO ARTESANAL Y TURISTICO | E120: Festivales, Eventos, Ferías y Exposiciones
C121: SECRETARIA_DE_FOMENTO_ECONOMICO_Y_CULTURAL | D121: DIRECCION DE DESARROLLO ARTESANAL Y TURISTICO | E121: Padrón Artesanal y Credencialización
C122: SECRETARIA_DE_FOMENTO_ECONOMICO_Y_CULTURAL | D122: DIRECCION DE DESARROLLO ARTESANAL Y TURISTICO | E122: Permanencia Pueblo Mágico
C123: SECRETARIA_DE_FOMENTO_ECONOMICO_Y_CULTURAL | D123: DIRECCION DE DESARROLLO ARTESANAL Y TURISTICO | E123: Rescatando nuestras Tradiciones
C124: SECRETARIA_DE_FOMENTO_ECONOMICO_Y_CULTURAL | D124: DIRECCION DE GESTION EMPRESARIAL E INDUSTRIAL | E124: Capacitación Permanente Empresarial, Cooperativas bienes y/o Servicios y Talleres Autoempleo
C125: SECRETARIA_DE_FOMENTO_ECONOMICO_Y_CULTURAL | D125: DIRECCION DE GESTION EMPRESARIAL E INDUSTRIAL | E125: Empleo a Tu Alcance
C126: SECRETARIA_DE_FOMENTO_ECONOMICO_Y_CULTURAL | D126: DIRECCION DE GESTION EMPRESARIAL E INDUSTRIAL | E126: Expo Emprende y Transforma 2025
C127: SECRETARIA_DE_FOMENTO_ECONOMICO_Y_CULTURAL | D127: DIRECCION DE GESTION EMPRESARIAL E INDUSTRIAL | E127: Mujeres Empresarias en Tlaquepaque
C128: SECRETARIA_DE_FOMENTO_ECONOMICO_Y_CULTURAL | D128: DIRECCION DE GESTION EMPRESARIAL E INDUSTRIAL | E128: Vinculación directa con empresas
C129: SECRETARIA_DE_FOMENTO_ECONOMICO_Y_CULTURAL | D129: DIRECCION DEL CENTRO HISTORICO | E129: Agenda del Espacio Público
C130: SECRETARIA_DE_FOMENTO_ECONOMICO_Y_CULTURAL | D130: DIRECCION DEL CENTRO HISTORICO | E130: Mantenimiento y Conservación del Centro Histórico
C131: SECRETARIA_DE_FOMENTO_ECONOMICO_Y_CULTURAL | D131: SUBDIRECCION DE BIBLIOTECAS | E131: Talleres De Fomento A Cultura
C132: SECRETARIA_DE_FOMENTO_ECONOMICO_Y_CULTURAL | D132: SUBDIRECCION DE MUSEOS | E132: Exposiciones Temporales
C133: SECRETARIA_DE_FOMENTO_ECONOMICO_Y_CULTURAL | D133: SUBDIRECCION DE MUSEOS | E133: Museo Itinerante
C134: SECRETARIA_DE_FOMENTO_ECONOMICO_Y_CULTURAL | D134: SUBDIRECCION DE MUSEOS | E134: Museos a la Calle
C135: SECRETARIA_DE_FOMENTO_ECONOMICO_Y_CULTURAL | D135: SUBDIRECCION DE MUSEOS | E135: Xvlvii Premio Nacional De La Cerámica
C136: SECRETARIA_DE_GOBERNANZA_Y_TERRITORIO | D136: DELEGACION SAN SEBASTIANITO | E136: VISITAS A COLONIAS
C137: SECRETARIA_DE_GOBERNANZA_Y_TERRITORIO | D137: DEPARTAMENTO DE ASUNTOS RELIGIOSOS | E137: Servicio de atención a las necesidades de las distintas asociaciones religiosas del municipio
C138: SECRETARIA_DE_GOBERNANZA_Y_TERRITORIO | D138: DEPARTAMENTO DE OFICINA DE PASAPORTES | E138: Trámite de Pasaporte Mexicano en Oficinas de Enlace de Tlaquepaque
C139: SECRETARIA_DE_GOBERNANZA_Y_TERRITORIO | D139: DIRECCION DE ARCHIVO MUNICIPAL | E139: Campaña de divulgación cultural histórica del Archivo Muicipal a escuelas de educación básica en Tlaquepaque
C140: SECRETARIA_DE_GOBERNANZA_Y_TERRITORIO | D140: DIRECCION DE ARCHIVO MUNICIPAL | E140: Programa de capacitación para la clasificación, organización, transferencia, resguardo y consulta de información oficial
C141: SECRETARIA_DE_GOBERNANZA_Y_TERRITORIO | D141: DIRECCION DE ARCHIVO MUNICIPAL | E141: Proyecto de digitalización para el Archivo Municipal
C142: SECRETARIA_DE_GOBERNANZA_Y_TERRITORIO | D142: DIRECCION DE DELEGACIONES Y AGENCIAS | E142: Actividades Administrativas
C143: SECRETARIA_DE_GOBERNANZA_Y_TERRITORIO | D143: DIRECCION DE DELEGACIONES Y AGENCIAS | E143: Atención a Solicitudes Ciudadanas
C144: SECRETARIA_DE_GOBERNANZA_Y_TERRITORIO | D144: DIRECCION DE DELEGACIONES Y AGENCIAS | E144: Brigadas de Mantenimiento y Recuperación de Espacios Públicos
C145: SECRETARIA_DE_GOBERNANZA_Y_TERRITORIO | D145: DIRECCION DE DELEGACIONES Y AGENCIAS | E145: Festividades Tradicionales Cívicas
C146: SECRETARIA_DE_GOBERNANZA_Y_TERRITORIO | D146: DIRECCION DE INSPECCION Y VIGILANCIA | E146: Verificación De Giros Comerciales Rezagados En El Municipio De San Pedro Tlaquepaque
C147: SECRETARIA_DE_GOBERNANZA_Y_TERRITORIO | D147: DIRECCION DE PADRON Y LICENCIAS | E147: Servicio eficaz de trámite de licencias municipal presencial y en línea
C148: SECRETARIA_DE_GOBERNANZA_Y_TERRITORIO | D148: DIRECCION DE PADRON Y LICENCIAS 1 | E148: Regularizacion de licencias en base a la ley de hacienda
C149: SECRETARIA_DE_GOBERNANZA_Y_TERRITORIO | D149: SUBDIRECCION DE ATENCION E INSPECCION A TIANGUIS Y ESPACIOS ABIERTOS | E149: Actualizar los padrones de los comerciantes de tianguis
C150: SECRETARIA_DE_GOBERNANZA_Y_TERRITORIO | D150: SUBDIRECCION DE ATENCION E INSPECCION A TIANGUIS Y ESPACIOS ABIERTOS | E150: Regularizar comercio en espacio abierto en la colonia San Martín de las Flores
C151: SECRETARIA_DE_GOBERNANZA_Y_TERRITORIO | D151: SUBDIRECCION DE ATENCION E INSPECCION DE MERCADOS | E151: Recuperación de locales abandonados en merados municipales
C152: SECRETARIA_DE_GOBERNANZA_Y_TERRITORIO | D152: SUBDIRECCION DE INSPECCION AMBIENTAL | E152: Verificación y regularización de residuos peligrosos y emisiones en talleres de laminado y pintura
C153: SECRETARIA_DE_LA_CONSEJERIA_JURIDICA | D153: DEPARTAMENTO DE RECLUTAMIENTO MILITAR | E153: Cartillas Militares
C154: SECRETARIA_DE_LA_CONSEJERIA_JURIDICA | D154: DIRECCION DE APOYO A CABILDO | E154: Apoyo Asuntos derivados por Secretaría
C155: SECRETARIA_DE_LA_CONSEJERIA_JURIDICA | D155: DIRECCION DE APOYO A CABILDO | E155: Consolidar El Sistema De Información De Acuerdos Del Pleno
C156: SECRETARIA_DE_LA_CONSEJERIA_JURIDICA | D156: DIRECCION DE APOYO A CABILDO | E156: Integración, Dictaminación de Iniciativas
C157: SECRETARIA_DE_LA_CONSEJERIA_JURIDICA | D157: DIRECCION DE APOYO A CABILDO | E157: Participación En Sesiones Del Ayuntamiento
C158: SECRETARIA_DE_LA_CONSEJERIA_JURIDICA | D158: DIRECCION DE APOYO A CABILDO | E158: Sitio Web de Actas y Acuerdos
C159: SECRETARIA_DE_LA_CONSEJERIA_JURIDICA | D159: DIRECCION DE DERECHOS HUMANOS | E159: Atención a los grupos vulnerables.
C160: SECRETARIA_DE_LA_CONSEJERIA_JURIDICA | D160: DIRECCION DE MEDIACION Y JUZGADOS CIVICOS MUNICIPALES | E160: Atención y desahogo de los MASC
C161: SECRETARIA_DE_LA_CONSEJERIA_JURIDICA | D161: DIRECCION DE MEDIACION Y JUZGADOS CIVICOS MUNICIPALES | E161: Calificación de Actas de Infracción
C162: SECRETARIA_DE_LA_CONSEJERIA_JURIDICA | D162: DIRECCION DE MEDIACION Y JUZGADOS CIVICOS MUNICIPALES | E162: Difusión de la Cultura de Paz en conflictos comunitarios
C163: SECRETARIA_DE_LA_CONSEJERIA_JURIDICA | D163: DIRECCION DE MEDIACION Y JUZGADOS CIVICOS MUNICIPALES | E163: La Mediación Con Rumbo A Tu Colonia
C164: SECRETARIA_DE_LA_CONSEJERIA_JURIDICA | D164: DIRECCION DE MEDIACION Y JUZGADOS CIVICOS MUNICIPALES | E164: Orientación y Asesoría Jurídica
C165: SECRETARIA_DE_LA_CONSEJERIA_JURIDICA | D165: DIRECCION DE MEDIACION Y JUZGADOS CIVICOS MUNICIPALES | E165: Servicio de trabajo social y psicología a Juzgados Cívicos Municipales
C166: SECRETARIA_DE_LA_CONSEJERIA_JURIDICA | D166: DIRECCION DE REGISTRO CIVIL | E166: Celebración de Matrimonios en Lugares emblemáticos
C167: SECRETARIA_DE_LA_CONSEJERIA_JURIDICA | D167: DIRECCION LEGAL-CONSULTIVA | E167: Consultas Y Asesoría Jurídica
C168: SECRETARIA_DE_LA_CONSEJERIA_JURIDICA | D168: DIRECCION LEGAL-CONSULTIVA | E168: Opiniones Jurídicas
C169: SECRETARIA_DE_LA_CONSEJERIA_JURIDICA | D169: OFICINA DEL REGISTRO CIVIL NO. 1 | E169: Campaña de Integración Familiar 2025
C170: SECRETARIA_DE_LA_CONSEJERIA_JURIDICA | D170: SECRETARIA DE LA CONSEJERIA JURIDICA | E170: Atención Y Orientación Jurídica A La Ciudadanía
C171: SECRETARIA_DE_LA_CONSEJERIA_JURIDICA | D171: SECRETARIA DE LA CONSEJERIA JURIDICA | E171: Capacitación Jurídica Al Gobierno Municipal
C172: SECRETARIA_DE_LA_CONSEJERIA_JURIDICA | D172: SECRETARIA DE LA CONSEJERIA JURIDICA | E172: Participación Comisiones, Comités Y Grupos De Trabajo
C173: SECRETARIA_DE_LA_CONSEJERIA_JURIDICA | D173: SECRETARIA DE LA CONSEJERIA JURIDICA | E173: Revisión Documentos Para Firma Presidenta
C174: SECRETARIA_DE_OBRAS_PUBLICAS | D174: DIRECCION DE CONSTRUCCION Y MANTENIMIENTO | E174: Programa De Urbanización
C175: SECRETARIA_DE_OBRAS_PUBLICAS | D175: DIRECCION DE PRESUPUESTOS Y CONTRATACION DE OBRA PUBLICA | E175: Programa Fortalecimiento institucional financiero y operativo, para la provisión de los servicios públicos municipales bajo criterios de calidad, eficiencia y oportunidad.
C176: SECRETARIA_DE_OBRAS_PUBLICAS | D176: DIRECCION DE PRESUPUESTOS Y CONTRATACION DE OBRA PUBLICA | E176: Programa para la gestión sustentable de la infraestructura básica.
C177: SECRETARIA_DE_OBRAS_PUBLICAS | D177: DIRECCION DE PRESUPUESTOS Y CONTRATACION DE OBRA PUBLICA | E177: Programa para la gestión sustentable de la infraestructura y movilidad segura.
C178: SECRETARIA_DE_OBRAS_PUBLICAS | D178: DIRECCION DE PRESUPUESTOS Y CONTRATACION DE OBRA PUBLICA | E178: Programa para la recuperación del espacio público y regeneración del tejido social
C179: SECRETARIA_DE_OBRAS_PUBLICAS | D179: SUBDIRECCION DE INSPECCION DE CONTROL DE LA EDIFICACION Y ORDENAMIENTO TERRITORIAL | E179: Programa de Inspección y Vigilancia de Tramites y Licencias de Construcción.
C180: SECRETARIA_DE_OBRAS_PUBLICAS | D180: SUBDIRECCION DE INSPECCION DE CONTROL DE LA EDIFICACION Y ORDENAMIENTO TERRITORIAL | E180: Trámites y Servicios
C181: SECRETARIA_DE_OBRAS_PUBLICAS | D181: SUBDIRECCION DE MANTENIMIENTO | E181: Intervenciones Al Entorno Urbano
C182: SECRETARIA_DE_OBRAS_PUBLICAS | D182: SUBDIRECCION DE MANTENIMIENTO | E182: Mantenimiento a Edificios y Espacios Públicos
C183: SECRETARIA_DE_OBRAS_PUBLICAS | D183: SUBDIRECCION DE MANTENIMIENTO | E183: Mantenimiento A Escuelas
C184: SECRETARIA_DE_OBRAS_PUBLICAS | D184: SUBDIRECCION DE MANTENIMIENTO | E184: Programa Permanente De Mantenimiento De Vialidades
C185: SECRETARIA_DE_OBRAS_PUBLICAS | D185: SUBDIRECCION DE MANTENIMIENTO | E185: Señalización Horizontal y Vertical
C186: SECRETARIA_DE_PLANIFICACION_ANALISIS_Y_GESTION_URBANA | D186: DEPARTAMENTO DE EVALUACION DE PROYECTOS Y PROGRAMAS | E186: Dictamen de evaluación de solicitud de obras
C187: SECRETARIA_DE_PLANIFICACION_ANALISIS_Y_GESTION_URBANA | D187: DEPARTAMENTO DE GESTION TERRITORIAL SUELO Y VIVIENDA | E187: Mejoramiento de la atencion al publico asi como fiscalización de la Auditoria Superior del Estado
C188: SECRETARIA_DE_PLANIFICACION_ANALISIS_Y_GESTION_URBANA | D188: DEPARTAMENTO DE INDICADORES Y METAS PARA RESULTADOS | E188: Servicio de Acompañamiento para la gestión del sistema de Planeación Municipal
C189: SECRETARIA_DE_PLANIFICACION_ANALISIS_Y_GESTION_URBANA | D189: DEPARTAMENTO DE PLANEACION URBANA | E189: Planes parciales y reglamentos municipales actualizados
C190: SECRETARIA_DE_PLANIFICACION_ANALISIS_Y_GESTION_URBANA | D190: DEPARTAMENTO DEL SISTEMA DE EVALUACION DEL DESEMPEÑO | E190: Seguimiento y Evaluación a la Administración Pública Municipal
C191: SECRETARIA_DE_PLANIFICACION_ANALISIS_Y_GESTION_URBANA | D191: DEPARTAMENTO DEL SISTEMA DE EVALUACION DEL DESEMPEÑO | E191: Seguimiento y Evaluación a los Programas Sociales
C192: SECRETARIA_DE_PLANIFICACION_ANALISIS_Y_GESTION_URBANA | D192: DIRECCION DE GESTION DEL DESEMPEÑO, EVALUACION DE RESULTADOS Y TABLERO DE CONTROL | E192: Coordinación de actividades de los departamentos de la Dirección de Desempeño, Resultados y Tablero de Control
C193: SECRETARIA_DE_PLANIFICACION_ANALISIS_Y_GESTION_URBANA | D193: DIRECCION DE GESTION DEL DESEMPEÑO, EVALUACION DE RESULTADOS Y TABLERO DE CONTROL | E193: Gestión para el sistema integral para la planeación y evaluación de la auditoria publica municipal
C194: SECRETARIA_DE_PLANIFICACION_ANALISIS_Y_GESTION_URBANA | D194: DIRECCION DE GESTION DEL DESEMPEÑO, EVALUACION DE RESULTADOS Y TABLERO DE CONTROL | E194: Seguimiento y Evaluación a los Fondos de Origen Federal
C195: SECRETARIA_DE_PLANIFICACION_ANALISIS_Y_GESTION_URBANA | D195: DIRECCION DE GESTION TERRITORIAL Y PLANEACION URBANA | E195: Regularización de predios efectiva
C196: SECRETARIA_DE_PLANIFICACION_ANALISIS_Y_GESTION_URBANA | D196: DIRECCION DEL BANCO INTEGRADO DE PROYECTOS Y PROGRAMAS | E196: Banco integrado de proyectos y programas
C197: SECRETARIA_DE_PLANIFICACION_ANALISIS_Y_GESTION_URBANA | D197: DIRECCION DEL BANCO INTEGRADO DE PROYECTOS Y PROGRAMAS | E197: Seguimiento de Mesas de gestión Metropolitana ante el IMEPLAN
C198: SECRETARIA_DE_PLANIFICACION_ANALISIS_Y_GESTION_URBANA | D198: SECRETARIA DE PLANIFICACION, ANALISIS Y GESTION URBANA | E198: Coordinación de actividades de las direcciones que integran la Secretaría de Planificación, Análisis y Gestión Urbana
C199: SECRETARIA_DE_SALUD | D199: DEPARTAMENTO DE TRABAJO SOCIAL | E199: Vinculación De Asistencia Social
C200: SECRETARIA_DE_SALUD | D200: DIRECCION DE SALUD PUBLICA | E200: Ferias de la Salud Tlaquepaque
C201: SECRETARIA_DE_SALUD | D201: DIRECCION DE URGENCIAS MEDICAS | E201: Atención Urgente En Sala De Choque
C202: SECRETARIA_DE_SALUD | D202: SUBDIRECCION DE ENSEÑANZA | E202: Enseñanza Continua
... 70 more rows
